Workbook

Sheet LÉEME
D11: Léeme
D16: INVIERTE – Herramienta de cálculo de amortización
D18: Introducción
D19: Esta herramienta permite hacer una evaluación comparativa entre ingresos y tres opciones de bombeo para riego diferentes. La información necesaria para utilizar esta herramienta incluye los costos de inversión y operativos de los diferentes sistemas de bombeo, los ingresos que se esperan obtener de la producción agrícola y las condiciones económicas básicas que se prevén (p. ej. tasa de inflación). Está disponible una herramienta alternativa en:
D24: http://www.fao.org/energy/agrifood-chains/power-irrigation-tool/es/
D26: Consejos y trucos
D37: Sinopsis
D38: Esta herramienta incluye las siguientes hojas:
D40: 1. Entradas | G40: para introducir datos de ingresos y gastos previstos en relación con la tecnología de riego
D43: 2. Resultados | G43: para analizar los resultados generados automáticamente desde la hoja de entradas
D45: 3. Traducción | G45: para traducir palabras clave
D47: Acerca de
D48: Publicado por: | F48: GIZ & FAO
D49: Responsable: | F49: GIZ project Sustainable Energy for Food - Powering Agriculture
D51: Contacto: | F51: Powering.Agriculture@giz.de
D52: Enlace descarga: | F52: https://energypedia.info/wiki/Toolbox_on_SPIS
D53: Acerca de: | F53: Powering Agriculture: An Energy Grand Challenge for Development. Disponible en:
F55: https://poweringag.org
D56: Versión: | F56: 1.5 (Enero 2019)
D58: La publicación de la Caja de herramientas de sistemas de riego solar ha sido posible gracias al apoyo brindado por la iniciativa mundial Powering Agriculture: An Energy Grand Challenge for Development (PAEGC) (Energización Rural: Un gran desafío energético para el desarrollo). En 2012, la Agencia de los Estados Unidos para el Desarrollo Internacional (USAID), la Agencia Sueca de Cooperación Internacional para el Desarrollo (Sida), el Ministerio Federal de Cooperación Económica y Desarrollo (BMZ) de Alemania, la empresa de energía Duke Energy Corporation y la Corporación de Inversiones Privadas en el Extranjero (OPIC) juntaron recursos para crear la iniciativa PAEGC. El objetivo de PAEGC es fomentar nuevos enfoques sostenibles con el fin de acelerar el desarrollo y asegurar el establecimiento de energías limpias que incrementen la productividad y/o el valor de la agricultura en países en desarrollo y regiones emergentes sin acceso a fuentes de energía confiables, asequibles y limpias.
D71: Las denominaciones empleadas y la presentación del material en este producto informativo no implican juicio alguno por parte de la Deutsche Gesellschaft für Internationale Zusammenarbeit (GIZ) GmbH, la Organización de las Naciones Unidas para la Alimentación y la Agricultura (FAO), o los socios fundadores de la iniciativa PAEGC, sobre la condición jurídica o el grado de desarrollo de ninguno de los países, territorios, ciudades o zonas citados o de sus autoridades, ni respecto de la delimitación de sus fronteras o límites. La mención de empresas o productos de fabricantes en particular, estén o no patentados, no implica que la GIZ, la FAO o alguno de los socios fundadores de la iniciativa PAEGC los aprueben o recomienden, dándoles preferencia sobre otros de naturaleza similar que no se mencionan. Las opiniones expresadas en este producto informativo son las de su(s) autor(es) o autora(s), y no reflejan necesariamente los puntos de vista o las políticas de la GIZ, la FAO o ninguno de los socios fundadores de la iniciativa PAEGC.
D86: La GIZ, la FAO y los socios fundadores de la iniciativa PAEGC fomentan la utilización, la reproducción y la difusión del material presentado en este producto informativo. A menos que se indique lo contrario, el material puede ser copiado, descargado e impreso con fines de estudio privado, enseñanza e investigación científica, o para su utilización en productos o servicios no comerciales, siempre que se otorgue a la GIZ y la FAO el debido reconocimiento como fuentes y como titulares de los derechos de autor.
D94: © GIZ and FAO, 2017

Sheet Entradas
B1: INVIERTE – Herramienta de cálculo de amortización
B3: Esta hoja de ENTRADAS requiere la introducción de valores mediante los que se obtendrán los resultados mostrados en la siguiente hoja de RESULTADOS.
B6: Supuestos básicos
B8: Moneda utilizada para el cálculo: | E8: CLP | F8: usar cualquier moneda
B10: Inflación | E10: 0.027 | F10: la tasa porcentual nacional de devaluación del dinero por año (recabada de las estadísticas nacionales)
B12: Tasa de descuento | E12: 0.045 | F12: la tasa anual utilizada para determinar el valor actual de futuros flujos de efectivo (truco: la tasa de descuento simplificada suele ser igual al tipo de interés devengado por las cuentas de ahorro bancario o bonos del tesoro)
B14: Aumento del margen de beneficio anual | E14: 0.03 | F14: la tasa con la que el agricultor aumentará los precios cada año (calculada según el propio registro)
B16: Aumento anual del precio del combustible | E16: 0.0384 | F16: la tasa con la que aumentará el precio del combustible (gasóleo, gasolina o GLP) cada año (según lo indicado por la autoridad reguladora nacional o a partir de las estadísticas nacionales sobre energía)
B18: Aumento anual del precio de la electricidad | E18: 0.1 | F18: la tasa con la que aumentarán los precios del suministro eléctrico cada año (indicada por la autoridad reguladora nacional o la empresa de suministro eléctrico)
B20: Tasa de agua (recargo por derechos de utilización del agua) | F20: =E8 & " per m³" -> CLP per m³ | G20: el precio del agua por m³, determinado por el gobierno o la autoridad local, para utilizar los recursos hídricos compartidos con los propios sistemas de bombeo
B22: Total de agua bombeada por día | E22: 32.6 | F22: m³ por día | G22: conforme a los cálculos de SALVAGUARDA EL AGUA – Herramienta de Estimación de las Necesidades de Agua o a lo indicado por el proveedor de la bomba
B24: Ingresos: Beneficio bruto de la explotación por año | E24: 16459141 | F24: =E8 &" per year" -> CLP per year | G24: conforme a los cálculos de INVIERTE - Herramienta de Cálculo del Balance Económico o a partir de los propios registros
B26: Porcentaje de beneficio a invertir | E26: 1 | F26: % de beneficio disponible para invertir en sistema de bombeo de agua
B30: Supuestos de costo para: | D30: Sistema de riego con energía solar
E33: ="Precio en "& E8 -> Precio en CLP | G33: Vida útil de componentes
C34: Paneles solares | E34: 2700000 | G34: 20 | H34: Años
C35: Estructura de montaje | H35: Años
C36: Unidad de control | E36: 335000 | G36: 5 | H36: Años
B37: Costos de capital inicial | C37: Bomba | E37: 1700000 | G37: 5 | H37: Años
C38: Cables/tubos | E38: 135000 | G38: 5 | H38: Años
C39: Almacenamiento de agua | E39: 370000 | F39: =IF($E$8="","",$E$8) -> CLP | G39: 20 | H39: Años
C40: Sistema de riego | E40: 535000 | F40: CLP | G40: 5 | H40: Años
C41: Perforación | F41: CLP | G41: En relación con la calidad del producto
C42: Instalación | E42: 170000 | F42: CLP
C43: Otros costos | F43: CLP | G43: Subsidio
C44: Total de costos | E44: =SUM(E34:E43)-J44 -> 5945000 | F44: CLP | G44: Importe de subsidio en los costos de capital | K44: =E8 -> CLP
B47: Costos | C47: Costos de mantenimiento por año: | E47: 40000
B48: corrientes | C48: Costos operativos por año: | F48: =IF($E$8="","",$E$8) -> CLP
C50: Total de costos por año: | E50: =SUM(E46:E48) -> 40000 | F50: =IF($E$8="","",$E$8) -> CLP
C53: Importe préstamo | F53: =IF($E$8="","",$E$8) -> CLP
B54: Préstamo | C54: Tasa de interés
C55: Período de inversión | F55: Años
C56: Nombre de entidad bancaria | E56: Banco Alpha
B60: Supuestos de costo para: | D60: Sistema de riego conectado a la red eléctrica
J62: Emisiones de CO2 por año:
E63: ="Precio en "& E8 -> Precio en CLP | G63: Vida útil de componentes | J63: =J66*J83 -> 0 | K63: kg/año
C64: Inversor (si la bomba es CC) | H64: Años | I64: Factor de emisiones:
C65: Unidad de control | H65: Años | I65: Agregar factor de emisiones de la red
B66: Costos de capital inicial | C66: Bomba | E66: 1000000 | G66: 5 | H66: Años | K66: kgCO2/kWh
C67: Cables/tubos | E67: 335000 | G67: 5 | H67: Años | I67: Buscar factor de emisiones de diferentes países:
C68: Almacenamiento de agua | E68: 370000 | F68: =IF($E$8="","",$E$8) -> CLP | G68: 20 | H68: Años | I68: https://ecometrica.com/assets/Electricity-specific-emission-factors-for-grid-electricity.pdf
C69: Sistema de riego | E69: 535000 | F69: CLP | G69: 5 | H69: Años
C70: Perforación | F70: CLP | G70: En relación con la calidad del producto
C71: Instalación | E71: 100000 | F71: CLP
C72: Otros costos | F72: CLP | G72: Subsidio
C73: Total de costos | E73: =SUM(E64:E72)-J73 -> 2340000 | F73: CLP | G73: Importe de subsidio en los costos de capital | K73: =E8 -> CLP
G76: Supuestos relativos a costos de conexión de la red eléctrica
C77: Costos de electricidad por año: | E77: =J86 -> 130400 | F77: =IF($E$8="","",$E$8) -> CLP
B78: Costos | C78: Costos de mantenimiento por año: | E78: 335000 | F78: =IF($E$8="","",$E$8) -> CLP | G78: Demanda de potencia de la bomba: | J78: 0.75 | K78: kW
B79: corrientes | C79: Costos operativos por año: | F79: =IF($E$8="","",$E$8) -> CLP | G79: Necesidades diarias de agua: | J79: =E22 -> 32.6 | K79: m³/día
G80: Volumen del flujo m³/hora: | J80: 6 | K80: m³/hora
C81: Total de costos por año: | E81: =SUM(E77:E79) -> 465400 | F81: =IF($E$8="","",$E$8) -> CLP | G81: kWh necesarios por día: | J81: =(J79/J80)*J78 -> 4.075 | K81: kWh
G82: Días de riego anuales: | J82: 200 | K82: días/año
G83: kWh necesarios por año: | J83: =J82*J81 -> 815 | K83: kWh
G84: Costo kWh: | J84: 160 | K84: =IF($E$8="","",$E$8) & "/kWh" -> CLP/kWh
C85: Importe préstamo | F85: =IF($E$8="","",$E$8) -> CLP | G85: Tarifa básica de conexión al mes | K85: =IF($E$8="","",$E$8) & "/mes" -> CLP/mes
B86: Loan | C86: Tasa de interés | G86: Costos de electricidad por año: | J86: =(J84*J83)+(J85*12) -> 130400 | K86: =E8 -> CLP
C87: Período de inversión | F87: Años
C88: Nombre de entidad bancaria | E88: Banco Alpha
B92: Supuestos de costo para: | D92: Sistema de riego con generador diésel
J94: Emisiones de CO2 por año:
E95: ="Price in "& E8 -> Price in CLP | G95: Vida útil de componentes | I95: GLP | J95: =VLOOKUP(I95,I97:J99,2,FALSE)*J115 -> 1651.733333 | K95: kg/año
C96: Generador | E96: 1000000 | F96: =IF($E$8="","",$E$8) -> CLP | G96: 3 | H96: Años | I96: Factor de emisiones:
B97: Costos de capital inicial | C97: Bomba | E97: 1000000 | F97: CLP | G97: 5 | H97: Años | I97: Gasóleo | J97: 2.687 | K97: kg of CO2/liter
C98: Cables/tubos | E98: 335000 | F98: CLP | G98: 5 | H98: Años | I98: Gasolina | J98: 2.31 | K98: kg of CO2/liter
C99: Almacenamiento de agua | E99: 370000 | F99: CLP | G99: 20 | H99: Años | I99: GLP | J99: 1.52 | K99: kg of CO2/liter
C100: Sistema de riego | E100: 535000 | F100: CLP | G100: 5 | H100: Años | I100: Source: | J100: https://www.gov.uk/government/publications/greenhouse-gas-reporting-conversion-factors-2018
C101: Perforación | F101: CLP | G101: En relación con la calidad del producto
C102: Instalación | E102: 170000 | F102: CLP
C103: Otros costos | F103: CLP
C104: Total de costos | E104: =SUM(E94:E103) -> 3410000 | F104: CLP | G104: Subsidio
G105: Importe de subsidio en los costos de capital | K105: =E8 -> CLP
C108: Costos de combustible por año: | E108: =J117 -> 652000 | F108: =IF($E$8="","",$E$8) -> CLP | G108: Supuestos relativos a costos de combustible
B109: Costos | C109: Costos de mantenimiento por año: | E109: 200000 | F109: =IF($E$8="","",$E$8) -> CLP
B110: corrientes | C110: Costos operativos por año: | F110: =IF($E$8="","",$E$8) -> CLP | G110: Demanda de combustible de la bomba: | J110: 1 | K110: l/hora
G111: Necesidades diarias de agua: | J111: =E22 -> 32.6 | K111: m³/día
C112: Total de costos por año: | E112: =SUM(E108:E110) -> 852000 | F112: =IF($E$8="","",$E$8) -> CLP | G112: Volumen del flujo m³/hora: | J112: 6 | K112: m³/hora
G113: Combustible necesario por día: | J113: =(J111/J112)*J110 -> 5.433333333 | K113: l/día
G114: Días de riego anuales: | J114: 200 | K114: días/año
G115: Combustible necesario por año: | J115: =J114*J113 -> 1086.666667 | K115: l/año
C116: Importe préstamo | F116: =IF($E$8="","",$E$8) -> CLP | G116: Costos combustible | J116: 600 | K116: =IF($E$8="","",$E$8) & "/l" -> CLP/l
B117: Préstamo | C117: Tasa de interés | G117: Costos de combustible por año: | J117: =J116*J115 -> 652000 | K117: =IF($E$8="","",$E$8) -> CLP
C118: Período de inversión | F118: Años
C119: Nombre de entidad bancaria

Sheet Resultados
G1: INVIERTE – Herramienta de cálculo de amortización
G3: Esta hoja de RESULTADOS resume los resultados obtenidos a partir de los valores introducidos en la hoja ENTRADAS completada anteriormente.
B5: Supuestos básicos
B6: Necesidad de agua total por día | E6: =Entradas!E22 & " m³ per day" -> 32,6 m³ per day | H6: Nota:
H7: Si aparece el mensaje “not feasable” en relación con la tasa interna de retorno (TIR), el valor de TIR es inferior a 0%.
B8: Total de ingresos por año | E8: =TEXT(Entradas!E24,"#.##0") &" " & Entradas!E8 -> 16.459.141 CLP
B10: Cantidad total de la inversión por año | E10: =TEXT(Entradas!E24,"#.##0")*Entradas!E26 &" " & Entradas!E8 -> 16459141 CLP | H10: Si se muestra un valor actual neto (VAN) negativo (-), entonces la inversión no es factible.
B12: Inflación | E12: =Entradas!E10 -> 0.027
H13: Si aparece el mensaje "no payback" en "Años para amortización" entonces los costos de capital y/o operativos superan los ingresos dentro de los 25 años.
B14: Tasa de descuento | E14: =Entradas!E12 -> 0.045
B16: Aumento del margen de beneficio anual | E16: =Entradas!E14 -> 0.03
B18: Aumento anual del precio del combustible | E18: =Entradas!E16 -> 0.0384
A19: m³ per day
B20: ="Análisis del " &Entradas!D30 -> Análisis del Sistema de riego con energía solar | H20: ="Análisis del " &Entradas!D60 -> Análisis del Sistema de riego conectado a la red eléctrica | N20: ="Análisis del " &Entradas!D92 -> Análisis del Sistema de riego con generador diésel
B21: Tasa interna de retorno (TIR) durante más de 25 años: | E21: =IFERROR('Cashflow Calculation'!C52,"not feasible") -> 2.955310181 | H21: Tasa interna de retorno (TIR) durante más de 25 años: | K21: =IFERROR('Cashflow Calculation'!C90,"not feasible") -> 6.86421073 | N21: Tasa interna de retorno (TIR) durante más de 25 años: | Q21: =IFERROR('Cashflow Calculation'!C156,"not feasible") -> 4.597715967
B23: Valor actual neto (VAN): | E23: =TEXT('Cashflow Calculation'!C51,"#.##0") & " " &Entradas!E8 -> 3.103.344.934 CLP | H23: Valor actual neto (VAN): | K23: =TEXT('Cashflow Calculation'!C89,"#.##0") &" " &Entradas!E8 -> 3.076.171.951 CLP | N23: Valor actual neto (VAN): | Q23: =TEXT('Cashflow Calculation'!C155,"#.##0") &" " &Entradas!E8 -> 2.932.854.153 CLP
B25: Flujo de efectivo acumulado tras el año 25: | E25: =TEXT('Cashflow Calculation'!S187,"#.##0") &" " &Entradas!E8 -> 569.858.634 CLP | H25: Flujo de efectivo acumulado tras el año 25: | K25: =TEXT('Cashflow Calculation'!S188,"#.##0") &" " &Entradas!E8 -> 558.357.285 CLP | N25: Flujo de efectivo acumulado tras el año 25: | Q25: =TEXT('Cashflow Calculation'!S189,"#.##0") &" " &Entradas!E8 -> 536.613.052 CLP
B27: Costos del ciclo de vida del sistema (25 años): | E27: =TEXT('Cashflow Calculation'!B46,"#.##0") &" " &Entradas!E8 -> 30.229.539 CLP | H27: Costos del ciclo de vida del sistema (25 años): | K27: =TEXT('Cashflow Calculation'!B84,"#.##0") &" " &Entradas!E8 -> 41.730.887 CLP | N27: Costos del ciclo de vida del sistema (25 años): | Q27: =TEXT('Cashflow Calculation'!B150,"#.##0") &" " &Entradas!E8 -> 63.475.120 CLP
B29: Años para amortización: | E29: ='Cashflow Calculation'!B44 -> 1 | H29: Años para amortización: | K29: ='Cashflow Calculation'!B82 -> 1 | N29: Años para amortización: | Q29: ='Cashflow Calculation'!B148 -> 1
B31: Banco de crédito: | E31: =IF(Entradas!E56=0,"",Entradas!E56) -> Banco Alpha | H31: Banco de crédito: | K31: =IF(Entradas!E88=0,"",Entradas!E88) -> Banco Alpha | N31: Banco de crédito: | Q31: =IF(Entradas!E119=0,"",Entradas!E119) -> 
B33: Amortización del préstamo anual: | E33: =TEXT('Loan Repayment Solar'!Scheduled_Monthly_Payment,"#.##0") &" " &Entradas!E8 -> 0 CLP | H33: Amortización del préstamo anual: | K33: =TEXT('Loan Repayment Grid'!Scheduled_Monthly_Payment,"#.##0") &" " &Entradas!E8 -> 0 CLP | N33: Amortización del préstamo anual: | Q33: =TEXT('Loan Repayment Diesel'!Scheduled_Monthly_Payment,"#.##0") &" " &Entradas!E8 -> 0 CLP
H35: Emisiones de CO2 por año: | K35: =Entradas!J63 -> 0 | L35: =Entradas!K63 -> kg/año | N35: Emisiones de CO2 por año: | Q35: =Entradas!J95 -> 1651.733333 | R35: =Entradas!K95 -> kg/año

Sheet Traducción
A2: HOJA DE TRADUCCIÓN
A4: Introducción
A5: Algunas partes del texto usado en esta herramienta forman parte de fórmulas basadas en reconocimento de texto. Para mantener la integridad y el funcionamiento de las fórmulas, dichos fragmentos permanecerán en inglés. Una lista de los fragmentos de texto y su traducción correspondiente ha sido compilada en esta hoja de traducción complementaria:
A6: Texto original en inglés | B6: Hoja | C6: Traducción al español
A7: Accumulated Income | B7: Resultados | C7: Ingresos acumulados
A8: Average annual water cost in | B8: Resultados | C8: Costo promedio del agua annual
A9: Comparative accumulated cash flow over first 10 years in | B9: Resultados | C9: Flujo de efectivo acumulado comparado durante los primeros 10 años
A10: Comparative accumulated income and system costs over first 10 years in | B10: Resultados | C10: Comparación de ingresos acumulados y costos del sistema durante los primeros 10 años
A11: Comparative accumulated income and system costs over first 25 years in | B11: Resultados | C11: Flujo de efectivo acumulado comparado durante los primeros 25 años
A12: m³ per day | B12: Resultados | C12: m³ al día
A13: not feasible | B13: Resultados | C13: no factible
A14: per m³ | B14: Entradas | C14: por m³
A15: per year | B15: Entradas | C15: al año
A16: years | B16: Resultados | C16: años
A17: 5 years | B17: Resultados | C17: 5 años
A18: 10 years | B18: Resultados | C18: 10 años
A19: 25 years | B19: Resultados | C19: 25 años

Sheet Cashflow Calculation (hidden)
A1: Annual profit margin increase: | B1: =Entradas!E14 -> 0.03
A2: Inflation rate: | B2: =Entradas!E10 -> 0.027
A3: Income-Gross farm profit/year: | B3: =Entradas!E24 -> 16459141 | C3: =IF(Entradas!$E$8="","",Entradas!$E$8) -> CLP
A4: Percentage profit to invest | B4: =Entradas!E26 -> 1
A5: Fuel price increase/year: | B5: =Entradas!E16 -> 0.0384
A6: Electricity price increase/year: | B6: =Entradas!E18 -> 0.1
A7: Discount rate | B7: =Entradas!E12 -> 0.045
A8: Water levy | B8: =Entradas!E20 -> 0 | C8: =IF(Entradas!$E$8="","",Entradas!$E$8) -> CLP
A9: Total water need per day | B9: =Entradas!E22 -> 32.6 | C9: =Entradas!F22 -> m³ por día
C11: year | D11: 0 | E11: 1 | F11: 2 | G11: 3 | H11: 4 | I11: 5 | J11: 6 | K11: 7 | L11: 8 | M11: 9 | N11: 10 | O11: 11 | P11: 12 | Q11: 13 | R11: 14 | S11: 15 | T11: 16 | U11: 17 | V11: 18 | W11: 19 | X11: 20 | Y11: 21 | Z11: 22 | AA11: 23 | AB11: 24 | AC11: 25
C12: =IF(Entradas!$E$8="","",Entradas!$E$8) -> CLP | D12: 0 | E12: =B3*B4 -> 16459141 | F12: =E12*(1+(1*$B$1)) -> 16952915.23 | G12: =F12*(1+(1*$B$1)) -> 17461502.69 | H12: =G12*(1+(1*$B$1)) -> 17985347.77 | I12: 18524908.2 | J12: 19080655.45 | K12: 19653075.11 | L12: 20242667.36 | M12: 20849947.38 | N12: 21475445.81 | O12: 22119709.18 | P12: 22783300.46 | Q12: 23466799.47 | R12: 24170803.45 | S12: 24895927.56 | T12: 25642805.38 | U12: 26412089.54 | V12: 27204452.23 | W12: 28020585.8 | X12: 28861203.37 | Y12: 29727039.47 | Z12: 30618850.66 | AA12: 31537416.18 | AB12: 32483538.66 | AC12: 33458044.82
A13: Capital investment per year:
A14: TRUE | C14: accumulated | D14: =IF($A$14=TRUE,D15,NA()) -> 0 | E14: =IF($A$14=TRUE,E15,NA()) -> 16459141 | F14: =IF($A$14=TRUE,F15,NA()) -> 33412056.23 | G14: 50873558.92 | H14: 68858906.68 | I14: 87383814.88 | J14: 106464470.3 | K14: 126117545.4 | L14: 146360212.8 | M14: 167210160.2 | N14: 188685606 | O14: 210805315.2 | P14: 233588615.6 | Q14: 257055415.1 | R14: 281226218.6 | S14: 306122146.1 | T14: 331764951.5 | U14: 358177041 | V14: 385381493.3 | W14: 413402079.1 | X14: 442263282.4 | Y14: 471990321.9 | Z14: 502609172.6 | AA14: 534146588.7 | AB14: 566630127.4 | AC14: 600088172.2
D15: 0 | E15: =SUM(E12) -> 16459141 | F15: =SUM($E$12:F12) -> 33412056.23 | G15: =SUM($E$12:G12) -> 50873558.92 | H15: =SUM($E$12:H12) -> 68858906.68 | I15: =SUM($E$12:I12) -> 87383814.88 | J15: =SUM($E$12:J12) -> 106464470.3 | K15: =SUM($E$12:K12) -> 126117545.4 | L15: =SUM($E$12:L12) -> 146360212.8 | M15: =SUM($E$12:M12) -> 167210160.2 | N15: =SUM($E$12:N12) -> 188685606 | O15: =SUM($E$12:O12) -> 210805315.2 | P15: =SUM($E$12:P12) -> 233588615.6 | Q15: =SUM($E$12:Q12) -> 257055415.1 | R15: =SUM($E$12:R12) -> 281226218.6 | S15: =SUM($E$12:S12) -> 306122146.1 | T15: =SUM($E$12:T12) -> 331764951.5 | U15: =SUM($E$12:U12) -> 358177041 | V15: =SUM($E$12:V12) -> 385381493.3 | W15: =SUM($E$12:W12) -> 413402079.1 | X15: =SUM($E$12:X12) -> 442263282.4 | Y15: =SUM($E$12:Y12) -> 471990321.9 | Z15: =SUM($E$12:Z12) -> 502609172.6 | AA15: =SUM($E$12:AA12) -> 534146588.7 | AB15: =SUM($E$12:AB12) -> 566630127.4 | AC15: =SUM($E$12:AC12) -> 600088172.2
A21: =Entradas!D30 -> Sistema de riego con energía solar
A24: =Entradas!C34 -> Paneles solares | C24: =IF(Entradas!$E$8="","",Entradas!$E$8) -> CLP | D24: =Entradas!E34 -> 2700000 | E24: =IF(MOD(E11,Entradas!$G$34)=0,($D$24*(1+$B$2)^E11),0) -> 0 | F24: =IF(MOD(F11,Entradas!$G$34)=0,($D$24*(1+$B$2)^F11),0) -> 0 | G24: =IF(MOD(G11,Entradas!$G$34)=0,($D$24*(1+$B$2)^G11),0) -> 0 | H24: =IF(MOD(H11,Entradas!$G$34)=0,($D$24*(1+$B$2)^H11),0) -> 0 | I24: =IF(MOD(I11,Entradas!$G$34)=0,($D$24*(1+$B$2)^I11),0) -> 0 | J24: =IF(MOD(J11,Entradas!$G$34)=0,($D$24*(1+$B$2)^J11),0) -> 0 | K24: =IF(MOD(K11,Entradas!$G$34)=0,($D$24*(1+$B$2)^K11),0) -> 0 | L24: =IF(MOD(L11,Entradas!$G$34)=0,($D$24*(1+$B$2)^L11),0) -> 0 | M24: =IF(MOD(M11,Entradas!$G$34)=0,($D$24*(1+$B$2)^M11),0) -> 0 | N24: =IF(MOD(N11,Entradas!$G$34)=0,($D$24*(1+$B$2)^N11),0) -> 0 | O24: =IF(MOD(O11,Entradas!$G$34)=0,($D$24*(1+$B$2)^O11),0) -> 0 | P24: =IF(MOD(P11,Entradas!$G$34)=0,($D$24*(1+$B$2)^P11),0) -> 0 | Q24: =IF(MOD(Q11,Entradas!$G$34)=0,($D$24*(1+$B$2)^Q11),0) -> 0 | R24: =IF(MOD(R11,Entradas!$G$34)=0,($D$24*(1+$B$2)^R11),0) -> 0 | S24: =IF(MOD(S11,Entradas!$G$34)=0,($D$24*(1+$B$2)^S11),0) -> 0 | T24: =IF(MOD(T11,Entradas!$G$34)=0,($D$24*(1+$B$2)^T11),0) -> 0 | U24: =IF(MOD(U11,Entradas!$G$34)=0,($D$24*(1+$B$2)^U11),0) -> 0 | V24: =IF(MOD(V11,Entradas!$G$34)=0,($D$24*(1+$B$2)^V11),0) -> 0 | W24: =IF(MOD(W11,Entradas!$G$34)=0,($D$24*(1+$B$2)^W11),0) -> 0 | X24: =IF(MOD(X11,Entradas!$G$34)=0,($D$24*(1+$B$2)^X11),0) -> 4600156.81 | Y24: =IF(MOD(Y11,Entradas!$G$34)=0,($D$24*(1+$B$2)^Y11),0) -> 0 | Z24: =IF(MOD(Z11,Entradas!$G$34)=0,($D$24*(1+$B$2)^Z11),0) -> 0 | AA24: =IF(MOD(AA11,Entradas!$G$34)=0,($D$24*(1+$B$2)^AA11),0) -> 0 | AB24: =IF(MOD(AB11,Entradas!$G$34)=0,($D$24*(1+$B$2)^AB11),0) -> 0 | AC24: =IF(MOD(AC11,Entradas!$G$34)=0,($D$24*(1+$B$2)^AC11),0) -> 0
A25: =Entradas!C36 -> Unidad de control | C25: =IF(Entradas!$E$8="","",Entradas!$E$8) -> CLP | D25: =Entradas!E35 -> 0 | E25: =IF(MOD(E11,Entradas!$G$36)=0,($D$25*(1+$B$2)^E11),0) -> 0 | F25: =IF(MOD(F11,Entradas!$G$36)=0,($D$25*(1+$B$2)^F11),0) -> 0 | G25: =IF(MOD(G11,Entradas!$G$36)=0,($D$25*(1+$B$2)^G11),0) -> 0 | H25: =IF(MOD(H11,Entradas!$G$36)=0,($D$25*(1+$B$2)^H11),0) -> 0 | I25: =IF(MOD(I11,Entradas!$G$36)=0,($D$25*(1+$B$2)^I11),0) -> 0 | J25: =IF(MOD(J11,Entradas!$G$36)=0,($D$25*(1+$B$2)^J11),0) -> 0 | K25: =IF(MOD(K11,Entradas!$G$36)=0,($D$25*(1+$B$2)^K11),0) -> 0 | L25: =IF(MOD(L11,Entradas!$G$36)=0,($D$25*(1+$B$2)^L11),0) -> 0 | M25: =IF(MOD(M11,Entradas!$G$36)=0,($D$25*(1+$B$2)^M11),0) -> 0 | N25: =IF(MOD(N11,Entradas!$G$36)=0,($D$25*(1+$B$2)^N11),0) -> 0 | O25: =IF(MOD(O11,Entradas!$G$36)=0,($D$25*(1+$B$2)^O11),0) -> 0 | P25: =IF(MOD(P11,Entradas!$G$36)=0,($D$25*(1+$B$2)^P11),0) -> 0 | Q25: =IF(MOD(Q11,Entradas!$G$36)=0,($D$25*(1+$B$2)^Q11),0) -> 0 | R25: =IF(MOD(R11,Entradas!$G$36)=0,($D$25*(1+$B$2)^R11),0) -> 0 | S25: =IF(MOD(S11,Entradas!$G$36)=0,($D$25*(1+$B$2)^S11),0) -> 0 | T25: =IF(MOD(T11,Entradas!$G$36)=0,($D$25*(1+$B$2)^T11),0) -> 0 | U25: =IF(MOD(U11,Entradas!$G$36)=0,($D$25*(1+$B$2)^U11),0) -> 0 | V25: =IF(MOD(V11,Entradas!$G$36)=0,($D$25*(1+$B$2)^V11),0) -> 0 | W25: =IF(MOD(W11,Entradas!$G$36)=0,($D$25*(1+$B$2)^W11),0) -> 0 | X25: =IF(MOD(X11,Entradas!$G$36)=0,($D$25*(1+$B$2)^X11),0) -> 0 | Y25: =IF(MOD(Y11,Entradas!$G$36)=0,($D$25*(1+$B$2)^Y11),0) -> 0 | Z25: =IF(MOD(Z11,Entradas!$G$36)=0,($D$25*(1+$B$2)^Z11),0) -> 0 | AA25: =IF(MOD(AA11,Entradas!$G$36)=0,($D$25*(1+$B$2)^AA11),0) -> 0 | AB25: =IF(MOD(AB11,Entradas!$G$36)=0,($D$25*(1+$B$2)^AB11),0) -> 0 | AC25: =IF(MOD(AC11,Entradas!$G$36)=0,($D$25*(1+$B$2)^AC11),0) -> 0
A26: =Entradas!C37 -> Bomba | C26: =IF(Entradas!$E$8="","",Entradas!$E$8) -> CLP | D26: =Entradas!E37 -> 1700000 | E26: =IF(MOD(E11,Entradas!$G$37)=0,($D$26*(1+$B$2)^E11),0) -> 0 | F26: =IF(MOD(F11,Entradas!$G$37)=0,($D$26*(1+$B$2)^F11),0) -> 0 | G26: =IF(MOD(G11,Entradas!$G$37)=0,($D$26*(1+$B$2)^G11),0) -> 0 | H26: =IF(MOD(H11,Entradas!$G$37)=0,($D$26*(1+$B$2)^H11),0) -> 0 | I26: =IF(MOD(I11,Entradas!$G$37)=0,($D$26*(1+$B$2)^I11),0) -> 1942232.153 | J26: =IF(MOD(J11,Entradas!$G$37)=0,($D$26*(1+$B$2)^J11),0) -> 0 | K26: =IF(MOD(K11,Entradas!$G$37)=0,($D$26*(1+$B$2)^K11),0) -> 0 | L26: =IF(MOD(L11,Entradas!$G$37)=0,($D$26*(1+$B$2)^L11),0) -> 0 | M26: =IF(MOD(M11,Entradas!$G$37)=0,($D$26*(1+$B$2)^M11),0) -> 0 | N26: =IF(MOD(N11,Entradas!$G$37)=0,($D$26*(1+$B$2)^N11),0) -> 2218979.844 | O26: =IF(MOD(O11,Entradas!$G$37)=0,($D$26*(1+$B$2)^O11),0) -> 0 | P26: =IF(MOD(P11,Entradas!$G$37)=0,($D$26*(1+$B$2)^P11),0) -> 0 | Q26: =IF(MOD(Q11,Entradas!$G$37)=0,($D$26*(1+$B$2)^Q11),0) -> 0 | R26: =IF(MOD(R11,Entradas!$G$37)=0,($D$26*(1+$B$2)^R11),0) -> 0 | S26: =IF(MOD(S11,Entradas!$G$37)=0,($D$26*(1+$B$2)^S11),0) -> 2535161.176 | T26: =IF(MOD(T11,Entradas!$G$37)=0,($D$26*(1+$B$2)^T11),0) -> 0 | U26: =IF(MOD(U11,Entradas!$G$37)=0,($D$26*(1+$B$2)^U11),0) -> 0 | V26: =IF(MOD(V11,Entradas!$G$37)=0,($D$26*(1+$B$2)^V11),0) -> 0 | W26: =IF(MOD(W11,Entradas!$G$37)=0,($D$26*(1+$B$2)^W11),0) -> 0 | X26: =IF(MOD(X11,Entradas!$G$37)=0,($D$26*(1+$B$2)^X11),0) -> 2896395.028 | Y26: =IF(MOD(Y11,Entradas!$G$37)=0,($D$26*(1+$B$2)^Y11),0) -> 0 | Z26: =IF(MOD(Z11,Entradas!$G$37)=0,($D$26*(1+$B$2)^Z11),0) -> 0 | AA26: =IF(MOD(AA11,Entradas!$G$37)=0,($D$26*(1+$B$2)^AA11),0) -> 0 | AB26: =IF(MOD(AB11,Entradas!$G$37)=0,($D$26*(1+$B$2)^AB11),0) -> 0 | AC26: =IF(MOD(AC11,Entradas!$G$37)=0,($D$26*(1+$B$2)^AC11),0) -> 3309100.912
A27: Wires / tubes | C27: =IF(Entradas!$E$8="","",Entradas!$E$8) -> CLP | D27: =Entradas!E38 -> 135000 | E27: =IF(MOD(E11,Entradas!$G$38)=0,($D$27*(1+$B$2)^E11),0) -> 0 | F27: =IF(MOD(F11,Entradas!$G$38)=0,($D$27*(1+$B$2)^F11),0) -> 0 | G27: =IF(MOD(G11,Entradas!$G$38)=0,($D$27*(1+$B$2)^G11),0) -> 0 | H27: =IF(MOD(H11,Entradas!$G$38)=0,($D$27*(1+$B$2)^H11),0) -> 0 | I27: =IF(MOD(I11,Entradas!$G$38)=0,($D$27*(1+$B$2)^I11),0) -> 154236.0827 | J27: =IF(MOD(J11,Entradas!$G$38)=0,($D$27*(1+$B$2)^J11),0) -> 0 | K27: =IF(MOD(K11,Entradas!$G$38)=0,($D$27*(1+$B$2)^K11),0) -> 0 | L27: =IF(MOD(L11,Entradas!$G$38)=0,($D$27*(1+$B$2)^L11),0) -> 0 | M27: =IF(MOD(M11,Entradas!$G$38)=0,($D$27*(1+$B$2)^M11),0) -> 0 | N27: =IF(MOD(N11,Entradas!$G$38)=0,($D$27*(1+$B$2)^N11),0) -> 176213.1053 | O27: =IF(MOD(O11,Entradas!$G$38)=0,($D$27*(1+$B$2)^O11),0) -> 0 | P27: =IF(MOD(P11,Entradas!$G$38)=0,($D$27*(1+$B$2)^P11),0) -> 0 | Q27: =IF(MOD(Q11,Entradas!$G$38)=0,($D$27*(1+$B$2)^Q11),0) -> 0 | R27: =IF(MOD(R11,Entradas!$G$38)=0,($D$27*(1+$B$2)^R11),0) -> 0 | S27: =IF(MOD(S11,Entradas!$G$38)=0,($D$27*(1+$B$2)^S11),0) -> 201321.6228 | T27: =IF(MOD(T11,Entradas!$G$38)=0,($D$27*(1+$B$2)^T11),0) -> 0 | U27: =IF(MOD(U11,Entradas!$G$38)=0,($D$27*(1+$B$2)^U11),0) -> 0 | V27: =IF(MOD(V11,Entradas!$G$38)=0,($D$27*(1+$B$2)^V11),0) -> 0 | W27: =IF(MOD(W11,Entradas!$G$38)=0,($D$27*(1+$B$2)^W11),0) -> 0 | X27: =IF(MOD(X11,Entradas!$G$38)=0,($D$27*(1+$B$2)^X11),0) -> 230007.8405 | Y27: =IF(MOD(Y11,Entradas!$G$38)=0,($D$27*(1+$B$2)^Y11),0) -> 0 | Z27: =IF(MOD(Z11,Entradas!$G$38)=0,($D$27*(1+$B$2)^Z11),0) -> 0 | AA27: =IF(MOD(AA11,Entradas!$G$38)=0,($D$27*(1+$B$2)^AA11),0) -> 0 | AB27: =IF(MOD(AB11,Entradas!$G$38)=0,($D$27*(1+$B$2)^AB11),0) -> 0 | AC27: =IF(MOD(AC11,Entradas!$G$38)=0,($D$27*(1+$B$2)^AC11),0) -> 262781.543
A28: Water storage | C28: =IF(Entradas!$E$8="","",Entradas!$E$8) -> CLP | D28: =Entradas!E39 -> 370000 | E28: =IF(MOD(E11,Entradas!$G$39)=0,($D$28*(1+$B$2)^E11),0) -> 0 | F28: =IF(MOD(F11,Entradas!$G$39)=0,($D$28*(1+$B$2)^F11),0) -> 0 | G28: =IF(MOD(G11,Entradas!$G$39)=0,($D$28*(1+$B$2)^G11),0) -> 0 | H28: =IF(MOD(H11,Entradas!$G$39)=0,($D$28*(1+$B$2)^H11),0) -> 0 | I28: =IF(MOD(I11,Entradas!$G$39)=0,($D$28*(1+$B$2)^I11),0) -> 0 | J28: =IF(MOD(J11,Entradas!$G$39)=0,($D$28*(1+$B$2)^J11),0) -> 0 | K28: =IF(MOD(K11,Entradas!$G$39)=0,($D$28*(1+$B$2)^K11),0) -> 0 | L28: =IF(MOD(L11,Entradas!$G$39)=0,($D$28*(1+$B$2)^L11),0) -> 0 | M28: =IF(MOD(M11,Entradas!$G$39)=0,($D$28*(1+$B$2)^M11),0) -> 0 | N28: =IF(MOD(N11,Entradas!$G$39)=0,($D$28*(1+$B$2)^N11),0) -> 0 | O28: =IF(MOD(O11,Entradas!$G$39)=0,($D$28*(1+$B$2)^O11),0) -> 0 | P28: =IF(MOD(P11,Entradas!$G$39)=0,($D$28*(1+$B$2)^P11),0) -> 0 | Q28: =IF(MOD(Q11,Entradas!$G$39)=0,($D$28*(1+$B$2)^Q11),0) -> 0 | R28: =IF(MOD(R11,Entradas!$G$39)=0,($D$28*(1+$B$2)^R11),0) -> 0 | S28: =IF(MOD(S11,Entradas!$G$39)=0,($D$28*(1+$B$2)^S11),0) -> 0 | T28: =IF(MOD(T11,Entradas!$G$39)=0,($D$28*(1+$B$2)^T11),0) -> 0 | U28: =IF(MOD(U11,Entradas!$G$39)=0,($D$28*(1+$B$2)^U11),0) -> 0 | V28: =IF(MOD(V11,Entradas!$G$39)=0,($D$28*(1+$B$2)^V11),0) -> 0 | W28: =IF(MOD(W11,Entradas!$G$39)=0,($D$28*(1+$B$2)^W11),0) -> 0 | X28: =IF(MOD(X11,Entradas!$G$39)=0,($D$28*(1+$B$2)^X11),0) -> 630391.8591 | Y28: =IF(MOD(Y11,Entradas!$G$39)=0,($D$28*(1+$B$2)^Y11),0) -> 0 | Z28: =IF(MOD(Z11,Entradas!$G$39)=0,($D$28*(1+$B$2)^Z11),0) -> 0 | AA28: =IF(MOD(AA11,Entradas!$G$39)=0,($D$28*(1+$B$2)^AA11),0) -> 0 | AB28: =IF(MOD(AB11,Entradas!$G$39)=0,($D$28*(1+$B$2)^AB11),0) -> 0 | AC28: =IF(MOD(AC11,Entradas!$G$39)=0,($D$28*(1+$B$2)^AC11),0) -> 0
A29: Irrigation system | C29: =IF(Entradas!$E$8="","",Entradas!$E$8) -> CLP | D29: =Entradas!E40 -> 535000 | E29: =IF(MOD(E11,Entradas!$G$40)=0,($D$29*(1+$B$2)^E11),0) -> 0 | F29: =IF(MOD(F11,Entradas!$G$40)=0,($D$29*(1+$B$2)^F11),0) -> 0 | G29: =IF(MOD(G11,Entradas!$G$40)=0,($D$29*(1+$B$2)^G11),0) -> 0 | H29: =IF(MOD(H11,Entradas!$G$40)=0,($D$29*(1+$B$2)^H11),0) -> 0 | I29: =IF(MOD(I11,Entradas!$G$40)=0,($D$29*(1+$B$2)^I11),0) -> 611231.8833 | J29: =IF(MOD(J11,Entradas!$G$40)=0,($D$29*(1+$B$2)^J11),0) -> 0 | K29: =IF(MOD(K11,Entradas!$G$40)=0,($D$29*(1+$B$2)^K11),0) -> 0 | L29: =IF(MOD(L11,Entradas!$G$40)=0,($D$29*(1+$B$2)^L11),0) -> 0 | M29: =IF(MOD(M11,Entradas!$G$40)=0,($D$29*(1+$B$2)^M11),0) -> 0 | N29: =IF(MOD(N11,Entradas!$G$40)=0,($D$29*(1+$B$2)^N11),0) -> 698326.0097 | O29: =IF(MOD(O11,Entradas!$G$40)=0,($D$29*(1+$B$2)^O11),0) -> 0 | P29: =IF(MOD(P11,Entradas!$G$40)=0,($D$29*(1+$B$2)^P11),0) -> 0 | Q29: =IF(MOD(Q11,Entradas!$G$40)=0,($D$29*(1+$B$2)^Q11),0) -> 0 | R29: =IF(MOD(R11,Entradas!$G$40)=0,($D$29*(1+$B$2)^R11),0) -> 0 | S29: =IF(MOD(S11,Entradas!$G$40)=0,($D$29*(1+$B$2)^S11),0) -> 797830.1348 | T29: =IF(MOD(T11,Entradas!$G$40)=0,($D$29*(1+$B$2)^T11),0) -> 0 | U29: =IF(MOD(U11,Entradas!$G$40)=0,($D$29*(1+$B$2)^U11),0) -> 0 | V29: =IF(MOD(V11,Entradas!$G$40)=0,($D$29*(1+$B$2)^V11),0) -> 0 | W29: =IF(MOD(W11,Entradas!$G$40)=0,($D$29*(1+$B$2)^W11),0) -> 0 | X29: =IF(MOD(X11,Entradas!$G$40)=0,($D$29*(1+$B$2)^X11),0) -> 911512.553 | Y29: =IF(MOD(Y11,Entradas!$G$40)=0,($D$29*(1+$B$2)^Y11),0) -> 0 | Z29: =IF(MOD(Z11,Entradas!$G$40)=0,($D$29*(1+$B$2)^Z11),0) -> 0 | AA29: =IF(MOD(AA11,Entradas!$G$40)=0,($D$29*(1+$B$2)^AA11),0) -> 0 | AB29: =IF(MOD(AB11,Entradas!$G$40)=0,($D$29*(1+$B$2)^AB11),0) -> 0 | AC29: =IF(MOD(AC11,Entradas!$G$40)=0,($D$29*(1+$B$2)^AC11),0) -> 1041393.522
A30: Drilling | C30: =IF(Entradas!$E$8="","",Entradas!$E$8) -> CLP | D30: =Entradas!E41 -> 0
A31: Installation | C31: =IF(Entradas!$E$8="","",Entradas!$E$8) -> CLP | D31: =Entradas!E42 -> 170000
A32: Other Costs | C32: =IF(Entradas!$E$8="","",Entradas!$E$8) -> CLP | D32: =Entradas!E43 -> 0
A33: Loan Repayment | C33: =IF(Entradas!$E$8="","",Entradas!$E$8) -> CLP | D33: 0 | E33: =IF(E11<='Loan Repayment Solar'!Loan_Years,'Loan Repayment Solar'!Scheduled_Monthly_Payment,0) -> 0 | F33: =IF(F11<='Loan Repayment Solar'!Loan_Years,'Loan Repayment Solar'!Scheduled_Monthly_Payment,0) -> 0 | G33: =IF(G11<='Loan Repayment Solar'!Loan_Years,'Loan Repayment Solar'!Scheduled_Monthly_Payment,0) -> 0 | H33: =IF(H11<='Loan Repayment Solar'!Loan_Years,'Loan Repayment Solar'!Scheduled_Monthly_Payment,0) -> 0 | I33: =IF(I11<='Loan Repayment Solar'!Loan_Years,'Loan Repayment Solar'!Scheduled_Monthly_Payment,0) -> 0 | J33: =IF(J11<='Loan Repayment Solar'!Loan_Years,'Loan Repayment Solar'!Scheduled_Monthly_Payment,0) -> 0 | K33: =IF(K11<='Loan Repayment Solar'!Loan_Years,'Loan Repayment Solar'!Scheduled_Monthly_Payment,0) -> 0 | L33: =IF(L11<='Loan Repayment Solar'!Loan_Years,'Loan Repayment Solar'!Scheduled_Monthly_Payment,0) -> 0 | M33: =IF(M11<='Loan Repayment Solar'!Loan_Years,'Loan Repayment Solar'!Scheduled_Monthly_Payment,0) -> 0 | N33: =IF(N11<='Loan Repayment Solar'!Loan_Years,'Loan Repayment Solar'!Scheduled_Monthly_Payment,0) -> 0 | O33: =IF(O11<='Loan Repayment Solar'!Loan_Years,'Loan Repayment Solar'!Scheduled_Monthly_Payment,0) -> 0 | P33: =IF(P11<='Loan Repayment Solar'!Loan_Years,'Loan Repayment Solar'!Scheduled_Monthly_Payment,0) -> 0 | Q33: =IF(Q11<='Loan Repayment Solar'!Loan_Years,'Loan Repayment Solar'!Scheduled_Monthly_Payment,0) -> 0 | R33: =IF(R11<='Loan Repayment Solar'!Loan_Years,'Loan Repayment Solar'!Scheduled_Monthly_Payment,0) -> 0 | S33: =IF(S11<='Loan Repayment Solar'!Loan_Years,'Loan Repayment Solar'!Scheduled_Monthly_Payment,0) -> 0 | T33: =IF(T11<='Loan Repayment Solar'!Loan_Years,'Loan Repayment Solar'!Scheduled_Monthly_Payment,0) -> 0 | U33: =IF(U11<='Loan Repayment Solar'!Loan_Years,'Loan Repayment Solar'!Scheduled_Monthly_Payment,0) -> 0 | V33: =IF(V11<='Loan Repayment Solar'!Loan_Years,'Loan Repayment Solar'!Scheduled_Monthly_Payment,0) -> 0 | W33: =IF(W11<='Loan Repayment Solar'!Loan_Years,'Loan Repayment Solar'!Scheduled_Monthly_Payment,0) -> 0 | X33: =IF(X11<='Loan Repayment Solar'!Loan_Years,'Loan Repayment Solar'!Scheduled_Monthly_Payment,0) -> 0 | Y33: =IF(Y11<='Loan Repayment Solar'!Loan_Years,'Loan Repayment Solar'!Scheduled_Monthly_Payment,0) -> 0 | Z33: =IF(Z11<='Loan Repayment Solar'!Loan_Years,'Loan Repayment Solar'!Scheduled_Monthly_Payment,0) -> 0 | AA33: =IF(AA11<='Loan Repayment Solar'!Loan_Years,'Loan Repayment Solar'!Scheduled_Monthly_Payment,0) -> 0 | AB33: =IF(AB11<='Loan Repayment Solar'!Loan_Years,'Loan Repayment Solar'!Scheduled_Monthly_Payment,0) -> 0 | AC33: =IF(AC11<='Loan Repayment Solar'!Loan_Years,'Loan Repayment Solar'!Scheduled_Monthly_Payment,0) -> 0
A34: Energy costs (fuel or electricity): | C34: =IF(Entradas!$E$8="","",Entradas!$E$8) -> CLP | D34: 0 | E34: =Entradas!E46 -> 0 | F34: =E34*(1+(1*$B$5)) -> 0 | G34: =F34*(1+(1*$B$5)) -> 0 | H34: 0 | I34: 0 | J34: 0 | K34: 0 | L34: 0 | M34: 0 | N34: 0 | O34: 0 | P34: 0 | Q34: 0 | R34: 0 | S34: 0 | T34: 0 | U34: 0 | V34: 0 | W34: 0 | X34: 0 | Y34: 0 | Z34: 0 | AA34: 0 | AB34: 0 | AC34: 0
A35: Operating Costs: | C35: =IF(Entradas!$E$8="","",Entradas!$E$8) -> CLP | D35: 0 | E35: =SUM(Entradas!E47:E48) -> 40000 | F35: =E35*(1+(1*$B$2)) -> 41080 | G35: 42189.16 | H35: 43328.26732 | I35: 44498.13054 | J35: 45699.58006 | K35: 46933.46872 | L35: 48200.67238 | M35: 49502.09053 | N35: 50838.64698 | O35: 52211.29045 | P35: 53620.99529 | Q35: 55068.76216 | R35: 56555.61874 | S35: 58082.62045 | T35: 59650.8512 | U35: 61261.42418 | V35: 62915.48263 | W35: 64614.20066 | X35: 66358.78408 | Y35: 68150.47125 | Z35: 69990.53398 | AA35: 71880.27839 | AB35: 73821.04591 | AC35: 75814.21415
A36: Water levy | E36: =$B$8*$B$9 -> 0 | F36: =$B$8*$B$9 -> 0 | G36: 0 | H36: 0 | I36: 0 | J36: 0 | K36: 0 | L36: 0 | M36: 0 | N36: 0 | O36: 0 | P36: 0 | Q36: 0 | R36: 0 | S36: 0 | T36: 0 | U36: 0 | V36: 0 | W36: 0 | X36: 0 | Y36: 0 | Z36: 0 | AA36: 0 | AB36: 0 | AC36: 0
A38: Gross Expenses System per year: | C38: =IF(Entradas!$E$8="","",Entradas!$E$8) -> CLP | D38: =SUM(D24:D32) -> 5610000 | E38: =E34+E35+E36+SUMIF(E24:E33,"<1E+307") -> 40000 | F38: 41080 | G38: 42189.16 | H38: 43328.26732 | I38: 2752198.249 | J38: 45699.58006 | K38: 46933.46872 | L38: =L34+L35+L36+SUMIF(L24:L33,"<1E+307") -> 48200.67238 | M38: 49502.09053 | N38: 3144357.606 | O38: 52211.29045 | P38: 53620.99529 | Q38: 55068.76216 | R38: 56555.61874 | S38: 3592395.554 | T38: 59650.8512 | U38: 61261.42418 | V38: 62915.48263 | W38: 64614.20066 | X38: 9334822.874 | Y38: 68150.47125 | Z38: 69990.53398 | AA38: 71880.27839 | AB38: 73821.04591 | AC38: 4689090.192
A41: Cash Flow: | D41: =D14-D46 -> -5610000 | E41: =E14-E46 -> 10809141 | F41: =F14-F46 -> 27720976.23 | G41: =G14-G46 -> 45140289.76 | H41: 63082309.26 | I41: 78855019.21 | J41: 97889975.07 | K41: 117496116.7 | L41: 137690583.4 | M41: 158491028.7 | N41: 176822116.9 | O41: 198889614.8 | P41: 221619294.2 | Q41: 245031025 | R41: 269145272.8 | S41: 290448804.8 | T41: 316031959.3 | U41: 342382787.4 | V41: 369524324.2 | W41: 397480295.8 | X41: 417006676.3 | Y41: 446665565.3 | Z41: 477214425.4 | AA41: 508679961.3 | AB41: 541089678.9 | AC41: 569858633.6
D43: =IF(D41>0,"Yes","No") -> No | E43: =IF(E41>0,"Yes","No") -> Yes | F43: =IF(F41>0,"Yes","No") -> Yes | G43: Yes | H43: Yes | I43: Yes | J43: Yes | K43: Yes | L43: Yes | M43: Yes | N43: Yes | O43: Yes | P43: Yes | Q43: Yes | R43: Yes | S43: Yes | T43: Yes | U43: Yes | V43: Yes | W43: Yes | X43: Yes | Y43: Yes | Z43: Yes | AA43: Yes | AB43: Yes | AC43: Yes
A44: Payback period against investment (years) | B44: =IF(AC41<0,"no payback",COUNTIF(D41:AC41,"<0")) -> 1 | C44: years
A46: System Life Cycle Costs (25 years) | B46: =IF($A$47=TRUE,AC47,NA()) -> 30229538.67 | C46: =IF(Entradas!$E$8="","",Entradas!$E$8) -> CLP | D46: =IF($A$47=TRUE,D47,NA()) -> 5610000 | E46: =IF($A$47=TRUE,E47,NA()) -> 5650000 | F46: =IF($A$47=TRUE,F47,NA()) -> 5691080 | G46: 5733269.16 | H46: 5776597.427 | I46: 8528795.677 | J46: 8574495.257 | K46: 8621428.725 | L46: 8669629.398 | M46: 8719131.488 | N46: 11863489.09 | O46: 11915700.38 | P46: 11969321.38 | Q46: 12024390.14 | R46: 12080945.76 | S46: 15673341.31 | T46: 15732992.17 | U46: 15794253.59 | V46: 15857169.07 | W46: 15921783.27 | X46: 25256606.15 | Y46: 25324756.62 | Z46: 25394747.15 | AA46: 25466627.43 | AB46: 25540448.48 | AC46: 30229538.67
A47: TRUE | D47: =D38 -> 5610000 | E47: =SUM($D$38:E38) -> 5650000 | F47: =SUM($D$38:F38) -> 5691080 | G47: =SUM($D$38:G38) -> 5733269.16 | H47: =SUM($D$38:H38) -> 5776597.427 | I47: =SUM($D$38:I38) -> 8528795.677 | J47: =SUM($D$38:J38) -> 8574495.257 | K47: =SUM($D$38:K38) -> 8621428.725 | L47: =SUM($D$38:L38) -> 8669629.398 | M47: =SUM($D$38:M38) -> 8719131.488 | N47: =SUM($D$38:N38) -> 11863489.09 | O47: =SUM($D$38:O38) -> 11915700.38 | P47: =SUM($D$38:P38) -> 11969321.38 | Q47: =SUM($D$38:Q38) -> 12024390.14 | R47: =SUM($D$38:R38) -> 12080945.76 | S47: =SUM($D$38:S38) -> 15673341.31 | T47: =SUM($D$38:T38) -> 15732992.17 | U47: =SUM($D$38:U38) -> 15794253.59 | V47: =SUM($D$38:V38) -> 15857169.07 | W47: =SUM($D$38:W38) -> 15921783.27 | X47: =SUM($D$38:X38) -> 25256606.15 | Y47: =SUM($D$38:Y38) -> 25324756.62 | Z47: =SUM($D$38:Z38) -> 25394747.15 | AA47: =SUM($D$38:AA38) -> 25466627.43 | AB47: =SUM($D$38:AB38) -> 25540448.48 | AC47: =SUM($D$38:AC38) -> 30229538.67
A48: Cost of water | C48: =IF(Entradas!$E$8="","",Entradas!$E$8&" /m3") -> CLP /m3 | D48: =D38/($B$9*365) -> 471.4681906 | E48: =E38/($B$9*365) -> 3.361627027 | F48: 3.452390957 | G48: 3.545605513 | H48: 3.641336862 | I48: 231.2966005 | J48: 3.840623587 | K48: 3.944320424 | L48: 4.050817075 | M48: 4.160189136 | N48: 264.2539378 | O48: 4.387872128 | P48: 4.506344675 | Q48: 4.628015981 | R48: 4.752972413 | S48: 301.9073497 | T48: 5.01309784 | U48: 5.148451482 | V48: 5.287459672 | W48: 5.430221083 | X48: 784.5048218 | Y48: 5.727411652 | Z48: 5.882051767 | AA48: 6.040867165 | AB48: 6.203970578 | AC48: 394.0743081
A49: Average water cost over 25 years | B49: =AVERAGE(D48:AC48) -> 97.71195598 | C49: =IF(Entradas!$E$8="","",Entradas!$E$8&" /m3") -> CLP /m3 | I49: =AVERAGE(D48:I48) -> 119.4609586 | N49: =AVERAGE(D48:N48) -> 90.63778541
A51: NPV | B51: =Entradas!E12 -> 0.045 | C51: =NPV(B51,E41:AC41)+D41 -> 3103344934
A52: IRR | C52: =IRR(D41:AC41) -> 2.955310181
A59: =Entradas!D60 -> Sistema de riego conectado a la red eléctrica
A62: =Entradas!C64 -> Inversor (si la bomba es CC) | C62: =IF(Entradas!$E$8="","",Entradas!$E$8) -> CLP | D62: =Entradas!E64 -> 0 | E62: =IF(MOD(E11,Entradas!$G$64)=0,($D$62*(1+$B$2)^E11),0) ->  | F62: =IF(MOD(F11,Entradas!$G$64)=0,($D$62*(1+$B$2)^F11),0) ->  | G62: =IF(MOD(G11,Entradas!$G$64)=0,($D$62*(1+$B$2)^G11),0) ->  | H62: =IF(MOD(H11,Entradas!$G$64)=0,($D$62*(1+$B$2)^H11),0) ->  | I62: =IF(MOD(I11,Entradas!$G$64)=0,($D$62*(1+$B$2)^I11),0) ->  | J62: =IF(MOD(J11,Entradas!$G$64)=0,($D$62*(1+$B$2)^J11),0) ->  | K62: =IF(MOD(K11,Entradas!$G$64)=0,($D$62*(1+$B$2)^K11),0) ->  | L62: =IF(MOD(L11,Entradas!$G$64)=0,($D$62*(1+$B$2)^L11),0) ->  | M62: =IF(MOD(M11,Entradas!$G$64)=0,($D$62*(1+$B$2)^M11),0) ->  | N62: =IF(MOD(N11,Entradas!$G$64)=0,($D$62*(1+$B$2)^N11),0) ->  | O62: =IF(MOD(O11,Entradas!$G$64)=0,($D$62*(1+$B$2)^O11),0) ->  | P62: =IF(MOD(P11,Entradas!$G$64)=0,($D$62*(1+$B$2)^P11),0) ->  | Q62: =IF(MOD(Q11,Entradas!$G$64)=0,($D$62*(1+$B$2)^Q11),0) ->  | R62: =IF(MOD(R11,Entradas!$G$64)=0,($D$62*(1+$B$2)^R11),0) ->  | S62: =IF(MOD(S11,Entradas!$G$64)=0,($D$62*(1+$B$2)^S11),0) ->  | T62: =IF(MOD(T11,Entradas!$G$64)=0,($D$62*(1+$B$2)^T11),0) ->  | U62: =IF(MOD(U11,Entradas!$G$64)=0,($D$62*(1+$B$2)^U11),0) ->  | V62: =IF(MOD(V11,Entradas!$G$64)=0,($D$62*(1+$B$2)^V11),0) ->  | W62: =IF(MOD(W11,Entradas!$G$64)=0,($D$62*(1+$B$2)^W11),0) ->  | X62: =IF(MOD(X11,Entradas!$G$64)=0,($D$62*(1+$B$2)^X11),0) ->  | Y62: =IF(MOD(Y11,Entradas!$G$64)=0,($D$62*(1+$B$2)^Y11),0) ->  | Z62: =IF(MOD(Z11,Entradas!$G$64)=0,($D$62*(1+$B$2)^Z11),0) ->  | AA62: =IF(MOD(AA11,Entradas!$G$64)=0,($D$62*(1+$B$2)^AA11),0) ->  | AB62: =IF(MOD(AB11,Entradas!$G$64)=0,($D$62*(1+$B$2)^AB11),0) ->  | AC62: =IF(MOD(AC11,Entradas!$G$64)=0,($D$62*(1+$B$2)^AC11),0) -> 
A63: =Entradas!C65 -> Unidad de control | C63: =IF(Entradas!$E$8="","",Entradas!$E$8) -> CLP | D63: =Entradas!E65 -> 0 | E63: =IF(MOD(E11,Entradas!$G$65)=0,($D$63*(1+$B$2)^E11),0) ->  | F63: =IF(MOD(F11,Entradas!$G$65)=0,($D$63*(1+$B$2)^F11),0) ->  | G63: =IF(MOD(G11,Entradas!$G$65)=0,($D$63*(1+$B$2)^G11),0) ->  | H63: =IF(MOD(H11,Entradas!$G$65)=0,($D$63*(1+$B$2)^H11),0) ->  | I63: =IF(MOD(I11,Entradas!$G$65)=0,($D$63*(1+$B$2)^I11),0) ->  | J63: =IF(MOD(J11,Entradas!$G$65)=0,($D$63*(1+$B$2)^J11),0) ->  | K63: =IF(MOD(K11,Entradas!$G$65)=0,($D$63*(1+$B$2)^K11),0) ->  | L63: =IF(MOD(L11,Entradas!$G$65)=0,($D$63*(1+$B$2)^L11),0) ->  | M63: =IF(MOD(M11,Entradas!$G$65)=0,($D$63*(1+$B$2)^M11),0) ->  | N63: =IF(MOD(N11,Entradas!$G$65)=0,($D$63*(1+$B$2)^N11),0) ->  | O63: =IF(MOD(O11,Entradas!$G$65)=0,($D$63*(1+$B$2)^O11),0) ->  | P63: =IF(MOD(P11,Entradas!$G$65)=0,($D$63*(1+$B$2)^P11),0) ->  | Q63: =IF(MOD(Q11,Entradas!$G$65)=0,($D$63*(1+$B$2)^Q11),0) ->  | R63: =IF(MOD(R11,Entradas!$G$65)=0,($D$63*(1+$B$2)^R11),0) ->  | S63: =IF(MOD(S11,Entradas!$G$65)=0,($D$63*(1+$B$2)^S11),0) ->  | T63: =IF(MOD(T11,Entradas!$G$65)=0,($D$63*(1+$B$2)^T11),0) ->  | U63: =IF(MOD(U11,Entradas!$G$65)=0,($D$63*(1+$B$2)^U11),0) ->  | V63: =IF(MOD(V11,Entradas!$G$65)=0,($D$63*(1+$B$2)^V11),0) ->  | W63: =IF(MOD(W11,Entradas!$G$65)=0,($D$63*(1+$B$2)^W11),0) ->  | X63: =IF(MOD(X11,Entradas!$G$65)=0,($D$63*(1+$B$2)^X11),0) ->  | Y63: =IF(MOD(Y11,Entradas!$G$65)=0,($D$63*(1+$B$2)^Y11),0) ->  | Z63: =IF(MOD(Z11,Entradas!$G$65)=0,($D$63*(1+$B$2)^Z11),0) ->  | AA63: =IF(MOD(AA11,Entradas!$G$65)=0,($D$63*(1+$B$2)^AA11),0) ->  | AB63: =IF(MOD(AB11,Entradas!$G$65)=0,($D$63*(1+$B$2)^AB11),0) ->  | AC63: =IF(MOD(AC11,Entradas!$G$65)=0,($D$63*(1+$B$2)^AC11),0) -> 
A64: =Entradas!C66 -> Bomba | C64: =IF(Entradas!$E$8="","",Entradas!$E$8) -> CLP | D64: =Entradas!E66 -> 1000000 | E64: =IF(MOD(E11,Entradas!$G$66)=0,($D$64*(1+$B$2)^E11),0) -> 0 | F64: =IF(MOD(F11,Entradas!$G$66)=0,($D$64*(1+$B$2)^F11),0) -> 0 | G64: =IF(MOD(G11,Entradas!$G$66)=0,($D$64*(1+$B$2)^G11),0) -> 0 | H64: =IF(MOD(H11,Entradas!$G$66)=0,($D$64*(1+$B$2)^H11),0) -> 0 | I64: =IF(MOD(I11,Entradas!$G$66)=0,($D$64*(1+$B$2)^I11),0) -> 1142489.502 | J64: =IF(MOD(J11,Entradas!$G$66)=0,($D$64*(1+$B$2)^J11),0) -> 0 | K64: =IF(MOD(K11,Entradas!$G$66)=0,($D$64*(1+$B$2)^K11),0) -> 0 | L64: =IF(MOD(L11,Entradas!$G$66)=0,($D$64*(1+$B$2)^L11),0) -> 0 | M64: =IF(MOD(M11,Entradas!$G$66)=0,($D$64*(1+$B$2)^M11),0) -> 0 | N64: =IF(MOD(N11,Entradas!$G$66)=0,($D$64*(1+$B$2)^N11),0) -> 1305282.261 | O64: =IF(MOD(O11,Entradas!$G$66)=0,($D$64*(1+$B$2)^O11),0) -> 0 | P64: =IF(MOD(P11,Entradas!$G$66)=0,($D$64*(1+$B$2)^P11),0) -> 0 | Q64: =IF(MOD(Q11,Entradas!$G$66)=0,($D$64*(1+$B$2)^Q11),0) -> 0 | R64: =IF(MOD(R11,Entradas!$G$66)=0,($D$64*(1+$B$2)^R11),0) -> 0 | S64: =IF(MOD(S11,Entradas!$G$66)=0,($D$64*(1+$B$2)^S11),0) -> 1491271.28 | T64: =IF(MOD(T11,Entradas!$G$66)=0,($D$64*(1+$B$2)^T11),0) -> 0 | U64: =IF(MOD(U11,Entradas!$G$66)=0,($D$64*(1+$B$2)^U11),0) -> 0 | V64: =IF(MOD(V11,Entradas!$G$66)=0,($D$64*(1+$B$2)^V11),0) -> 0 | W64: =IF(MOD(W11,Entradas!$G$66)=0,($D$64*(1+$B$2)^W11),0) -> 0 | X64: =IF(MOD(X11,Entradas!$G$66)=0,($D$64*(1+$B$2)^X11),0) -> 1703761.781 | Y64: =IF(MOD(Y11,Entradas!$G$66)=0,($D$64*(1+$B$2)^Y11),0) -> 0 | Z64: =IF(MOD(Z11,Entradas!$G$66)=0,($D$64*(1+$B$2)^Z11),0) -> 0 | AA64: =IF(MOD(AA11,Entradas!$G$66)=0,($D$64*(1+$B$2)^AA11),0) -> 0 | AB64: =IF(MOD(AB11,Entradas!$G$66)=0,($D$64*(1+$B$2)^AB11),0) -> 0 | AC64: =IF(MOD(AC11,Entradas!$G$66)=0,($D$64*(1+$B$2)^AC11),0) -> 1946529.948
A65: Wires / tubes | C65: =IF(Entradas!$E$8="","",Entradas!$E$8) -> CLP | D65: =Entradas!E67 -> 335000 | E65: =IF(MOD(E11,Entradas!$G$67)=0,($D$65*(1+$B$2)^E11),0) -> 0 | F65: =IF(MOD(F11,Entradas!$G$67)=0,($D$65*(1+$B$2)^F11),0) -> 0 | G65: =IF(MOD(G11,Entradas!$G$67)=0,($D$65*(1+$B$2)^G11),0) -> 0 | H65: =IF(MOD(H11,Entradas!$G$67)=0,($D$65*(1+$B$2)^H11),0) -> 0 | I65: =IF(MOD(I11,Entradas!$G$67)=0,($D$65*(1+$B$2)^I11),0) -> 382733.983 | J65: =IF(MOD(J11,Entradas!$G$67)=0,($D$65*(1+$B$2)^J11),0) -> 0 | K65: =IF(MOD(K11,Entradas!$G$67)=0,($D$65*(1+$B$2)^K11),0) -> 0 | L65: =IF(MOD(L11,Entradas!$G$67)=0,($D$65*(1+$B$2)^L11),0) -> 0 | M65: =IF(MOD(M11,Entradas!$G$67)=0,($D$65*(1+$B$2)^M11),0) -> 0 | N65: =IF(MOD(N11,Entradas!$G$67)=0,($D$65*(1+$B$2)^N11),0) -> 437269.5575 | O65: =IF(MOD(O11,Entradas!$G$67)=0,($D$65*(1+$B$2)^O11),0) -> 0 | P65: =IF(MOD(P11,Entradas!$G$67)=0,($D$65*(1+$B$2)^P11),0) -> 0 | Q65: =IF(MOD(Q11,Entradas!$G$67)=0,($D$65*(1+$B$2)^Q11),0) -> 0 | R65: =IF(MOD(R11,Entradas!$G$67)=0,($D$65*(1+$B$2)^R11),0) -> 0 | S65: =IF(MOD(S11,Entradas!$G$67)=0,($D$65*(1+$B$2)^S11),0) -> 499575.8788 | T65: =IF(MOD(T11,Entradas!$G$67)=0,($D$65*(1+$B$2)^T11),0) -> 0 | U65: =IF(MOD(U11,Entradas!$G$67)=0,($D$65*(1+$B$2)^U11),0) -> 0 | V65: =IF(MOD(V11,Entradas!$G$67)=0,($D$65*(1+$B$2)^V11),0) -> 0 | W65: =IF(MOD(W11,Entradas!$G$67)=0,($D$65*(1+$B$2)^W11),0) -> 0 | X65: =IF(MOD(X11,Entradas!$G$67)=0,($D$65*(1+$B$2)^X11),0) -> 570760.1967 | Y65: =IF(MOD(Y11,Entradas!$G$67)=0,($D$65*(1+$B$2)^Y11),0) -> 0 | Z65: =IF(MOD(Z11,Entradas!$G$67)=0,($D$65*(1+$B$2)^Z11),0) -> 0 | AA65: =IF(MOD(AA11,Entradas!$G$67)=0,($D$65*(1+$B$2)^AA11),0) -> 0 | AB65: =IF(MOD(AB11,Entradas!$G$67)=0,($D$65*(1+$B$2)^AB11),0) -> 0 | AC65: =IF(MOD(AC11,Entradas!$G$67)=0,($D$65*(1+$B$2)^AC11),0) -> 652087.5327
A66: =Entradas!C68 -> Almacenamiento de agua | C66: =IF(Entradas!$E$8="","",Entradas!$E$8) -> CLP | D66: =Entradas!E68 -> 370000 | E66: =IF(MOD(E11,Entradas!$G$68)=0,($D$66*(1+$B$2)^E11),0) -> 0 | F66: =IF(MOD(F11,Entradas!$G$68)=0,($D$66*(1+$B$2)^F11),0) -> 0 | G66: =IF(MOD(G11,Entradas!$G$68)=0,($D$66*(1+$B$2)^G11),0) -> 0 | H66: =IF(MOD(H11,Entradas!$G$68)=0,($D$66*(1+$B$2)^H11),0) -> 0 | I66: =IF(MOD(I11,Entradas!$G$68)=0,($D$66*(1+$B$2)^I11),0) -> 0 | J66: =IF(MOD(J11,Entradas!$G$68)=0,($D$66*(1+$B$2)^J11),0) -> 0 | K66: =IF(MOD(K11,Entradas!$G$68)=0,($D$66*(1+$B$2)^K11),0) -> 0 | L66: =IF(MOD(L11,Entradas!$G$68)=0,($D$66*(1+$B$2)^L11),0) -> 0 | M66: =IF(MOD(M11,Entradas!$G$68)=0,($D$66*(1+$B$2)^M11),0) -> 0 | N66: =IF(MOD(N11,Entradas!$G$68)=0,($D$66*(1+$B$2)^N11),0) -> 0 | O66: =IF(MOD(O11,Entradas!$G$68)=0,($D$66*(1+$B$2)^O11),0) -> 0 | P66: =IF(MOD(P11,Entradas!$G$68)=0,($D$66*(1+$B$2)^P11),0) -> 0 | Q66: =IF(MOD(Q11,Entradas!$G$68)=0,($D$66*(1+$B$2)^Q11),0) -> 0 | R66: =IF(MOD(R11,Entradas!$G$68)=0,($D$66*(1+$B$2)^R11),0) -> 0 | S66: =IF(MOD(S11,Entradas!$G$68)=0,($D$66*(1+$B$2)^S11),0) -> 0 | T66: =IF(MOD(T11,Entradas!$G$68)=0,($D$66*(1+$B$2)^T11),0) -> 0 | U66: =IF(MOD(U11,Entradas!$G$68)=0,($D$66*(1+$B$2)^U11),0) -> 0 | V66: =IF(MOD(V11,Entradas!$G$68)=0,($D$66*(1+$B$2)^V11),0) -> 0 | W66: =IF(MOD(W11,Entradas!$G$68)=0,($D$66*(1+$B$2)^W11),0) -> 0 | X66: =IF(MOD(X11,Entradas!$G$68)=0,($D$66*(1+$B$2)^X11),0) -> 630391.8591 | Y66: =IF(MOD(Y11,Entradas!$G$68)=0,($D$66*(1+$B$2)^Y11),0) -> 0 | Z66: =IF(MOD(Z11,Entradas!$G$68)=0,($D$66*(1+$B$2)^Z11),0) -> 0 | AA66: =IF(MOD(AA11,Entradas!$G$68)=0,($D$66*(1+$B$2)^AA11),0) -> 0 | AB66: =IF(MOD(AB11,Entradas!$G$68)=0,($D$66*(1+$B$2)^AB11),0) -> 0 | AC66: =IF(MOD(AC11,Entradas!$G$68)=0,($D$66*(1+$B$2)^AC11),0) -> 0
A67: Irrigation system | C67: =IF(Entradas!$E$8="","",Entradas!$E$8) -> CLP | D67: =Entradas!E69 -> 535000 | E67: =IF(MOD(E11,Entradas!$G$69)=0,($D$67*(1+$B$2)^E11),0) -> 0 | F67: =IF(MOD(F11,Entradas!$G$69)=0,($D$67*(1+$B$2)^F11),0) -> 0 | G67: =IF(MOD(G11,Entradas!$G$69)=0,($D$67*(1+$B$2)^G11),0) -> 0 | H67: =IF(MOD(H11,Entradas!$G$69)=0,($D$67*(1+$B$2)^H11),0) -> 0 | I67: =IF(MOD(I11,Entradas!$G$69)=0,($D$67*(1+$B$2)^I11),0) -> 611231.8833 | J67: =IF(MOD(J11,Entradas!$G$69)=0,($D$67*(1+$B$2)^J11),0) -> 0 | K67: =IF(MOD(K11,Entradas!$G$69)=0,($D$67*(1+$B$2)^K11),0) -> 0 | L67: =IF(MOD(L11,Entradas!$G$69)=0,($D$67*(1+$B$2)^L11),0) -> 0 | M67: =IF(MOD(M11,Entradas!$G$69)=0,($D$67*(1+$B$2)^M11),0) -> 0 | N67: =IF(MOD(N11,Entradas!$G$69)=0,($D$67*(1+$B$2)^N11),0) -> 698326.0097 | O67: =IF(MOD(O11,Entradas!$G$69)=0,($D$67*(1+$B$2)^O11),0) -> 0 | P67: =IF(MOD(P11,Entradas!$G$69)=0,($D$67*(1+$B$2)^P11),0) -> 0 | Q67: =IF(MOD(Q11,Entradas!$G$69)=0,($D$67*(1+$B$2)^Q11),0) -> 0 | R67: =IF(MOD(R11,Entradas!$G$69)=0,($D$67*(1+$B$2)^R11),0) -> 0 | S67: =IF(MOD(S11,Entradas!$G$69)=0,($D$67*(1+$B$2)^S11),0) -> 797830.1348 | T67: =IF(MOD(T11,Entradas!$G$69)=0,($D$67*(1+$B$2)^T11),0) -> 0 | U67: =IF(MOD(U11,Entradas!$G$69)=0,($D$67*(1+$B$2)^U11),0) -> 0 | V67: =IF(MOD(V11,Entradas!$G$69)=0,($D$67*(1+$B$2)^V11),0) -> 0 | W67: =IF(MOD(W11,Entradas!$G$69)=0,($D$67*(1+$B$2)^W11),0) -> 0 | X67: =IF(MOD(X11,Entradas!$G$69)=0,($D$67*(1+$B$2)^X11),0) -> 911512.553 | Y67: =IF(MOD(Y11,Entradas!$G$69)=0,($D$67*(1+$B$2)^Y11),0) -> 0 | Z67: =IF(MOD(Z11,Entradas!$G$69)=0,($D$67*(1+$B$2)^Z11),0) -> 0 | AA67: =IF(MOD(AA11,Entradas!$G$69)=0,($D$67*(1+$B$2)^AA11),0) -> 0 | AB67: =IF(MOD(AB11,Entradas!$G$69)=0,($D$67*(1+$B$2)^AB11),0) -> 0 | AC67: =IF(MOD(AC11,Entradas!$G$69)=0,($D$67*(1+$B$2)^AC11),0) -> 1041393.522
A68: Drilling | C68: =IF(Entradas!$E$8="","",Entradas!$E$8) -> CLP | D68: =Entradas!E70 -> 0
A69: Installation | C69: =IF(Entradas!$E$8="","",Entradas!$E$8) -> CLP | D69: =Entradas!E71 -> 100000
A70: Other Costs | C70: =IF(Entradas!$E$8="","",Entradas!$E$8) -> CLP | D70: =Entradas!E72 -> 0
A71: Loan Repayment | C71: =IF(Entradas!$E$8="","",Entradas!$E$8) -> CLP | D71: 0 | E71: =IF(E11<='Loan Repayment Grid'!Loan_Years,'Loan Repayment Grid'!Scheduled_Monthly_Payment,0) -> 0 | F71: =IF(F11<='Loan Repayment Grid'!Loan_Years,'Loan Repayment Grid'!Scheduled_Monthly_Payment,0) -> 0 | G71: =IF(G11<='Loan Repayment Grid'!Loan_Years,'Loan Repayment Grid'!Scheduled_Monthly_Payment,0) -> 0 | H71: =IF(H11<='Loan Repayment Grid'!Loan_Years,'Loan Repayment Grid'!Scheduled_Monthly_Payment,0) -> 0 | I71: =IF(I11<='Loan Repayment Grid'!Loan_Years,'Loan Repayment Grid'!Scheduled_Monthly_Payment,0) -> 0 | J71: =IF(J11<='Loan Repayment Grid'!Loan_Years,'Loan Repayment Grid'!Scheduled_Monthly_Payment,0) -> 0 | K71: =IF(K11<='Loan Repayment Grid'!Loan_Years,'Loan Repayment Grid'!Scheduled_Monthly_Payment,0) -> 0 | L71: =IF(L11<='Loan Repayment Grid'!Loan_Years,'Loan Repayment Grid'!Scheduled_Monthly_Payment,0) -> 0 | M71: =IF(M11<='Loan Repayment Grid'!Loan_Years,'Loan Repayment Grid'!Scheduled_Monthly_Payment,0) -> 0 | N71: =IF(N11<='Loan Repayment Grid'!Loan_Years,'Loan Repayment Grid'!Scheduled_Monthly_Payment,0) -> 0 | O71: =IF(O11<='Loan Repayment Grid'!Loan_Years,'Loan Repayment Grid'!Scheduled_Monthly_Payment,0) -> 0 | P71: =IF(P11<='Loan Repayment Grid'!Loan_Years,'Loan Repayment Grid'!Scheduled_Monthly_Payment,0) -> 0 | Q71: =IF(Q11<='Loan Repayment Grid'!Loan_Years,'Loan Repayment Grid'!Scheduled_Monthly_Payment,0) -> 0 | R71: =IF(R11<='Loan Repayment Grid'!Loan_Years,'Loan Repayment Grid'!Scheduled_Monthly_Payment,0) -> 0 | S71: =IF(S11<='Loan Repayment Grid'!Loan_Years,'Loan Repayment Grid'!Scheduled_Monthly_Payment,0) -> 0 | T71: =IF(T11<='Loan Repayment Grid'!Loan_Years,'Loan Repayment Grid'!Scheduled_Monthly_Payment,0) -> 0 | U71: =IF(U11<='Loan Repayment Grid'!Loan_Years,'Loan Repayment Grid'!Scheduled_Monthly_Payment,0) -> 0 | V71: =IF(V11<='Loan Repayment Grid'!Loan_Years,'Loan Repayment Grid'!Scheduled_Monthly_Payment,0) -> 0 | W71: =IF(W11<='Loan Repayment Grid'!Loan_Years,'Loan Repayment Grid'!Scheduled_Monthly_Payment,0) -> 0 | X71: =IF(X11<='Loan Repayment Grid'!Loan_Years,'Loan Repayment Grid'!Scheduled_Monthly_Payment,0) -> 0 | Y71: =IF(Y11<='Loan Repayment Grid'!Loan_Years,'Loan Repayment Grid'!Scheduled_Monthly_Payment,0) -> 0 | Z71: =IF(Z11<='Loan Repayment Grid'!Loan_Years,'Loan Repayment Grid'!Scheduled_Monthly_Payment,0) -> 0 | AA71: =IF(AA11<='Loan Repayment Grid'!Loan_Years,'Loan Repayment Grid'!Scheduled_Monthly_Payment,0) -> 0 | AB71: =IF(AB11<='Loan Repayment Grid'!Loan_Years,'Loan Repayment Grid'!Scheduled_Monthly_Payment,0) -> 0 | AC71: =IF(AC11<='Loan Repayment Grid'!Loan_Years,'Loan Repayment Grid'!Scheduled_Monthly_Payment,0) -> 0
A72: Electricity costs: | C72: =IF(Entradas!$E$8="","",Entradas!$E$8) -> CLP | D72: 0 | E72: =Entradas!E77 -> 130400 | F72: =E72*(1+(1*$B$6)) -> 143440 | G72: =F72*(1+(1*$B$6)) -> 157784 | H72: =G72*(1+(1*$B$6)) -> 173562.4 | I72: 190918.64 | J72: 210010.504 | K72: 231011.5544 | L72: 254112.7098 | M72: 279523.9808 | N72: 307476.3789 | O72: 338224.0168 | P72: 372046.4185 | Q72: 409251.0603 | R72: 450176.1664 | S72: 495193.783 | T72: 544713.1613 | U72: 599184.4774 | V72: 659102.9252 | W72: 725013.2177 | X72: 797514.5394 | Y72: 877265.9934 | Z72: 964992.5927 | AA72: 1061491.852 | AB72: 1167641.037 | AC72: 1284405.141
A73: Operating Costs: | C73: =IF(Entradas!$E$8="","",Entradas!$E$8) -> CLP | D73: 0 | E73: =SUM(Entradas!E78:E79) -> 335000 | F73: =E73*(1+(1*$B$2)) -> 344045 | G73: 353334.215 | H73: 362874.2388 | I73: 372671.8433 | J73: 382733.983 | K73: 393067.8006 | L73: 403680.6312 | M73: 414580.0082 | N73: 425773.6684 | O73: 437269.5575 | P73: 449075.8355 | Q73: 461200.8831 | R73: 473653.3069 | S73: 486441.9462 | T73: 499575.8788 | U73: 513064.4275 | V73: 526917.167 | W73: 541143.9306 | X73: 555754.8167 | Y73: 570760.1967 | Z73: 586170.722 | AA73: 601997.3315 | AB73: 618251.2595 | AC73: 634944.0435
A74: Water levy | E74: =$B$8*$B$9 -> 0 | F74: =$B$8*$B$9 -> 0 | G74: 0 | H74: 0 | I74: 0 | J74: 0 | K74: 0 | L74: 0 | M74: 0 | N74: 0 | O74: 0 | P74: 0 | Q74: 0 | R74: 0 | S74: 0 | T74: 0 | U74: 0 | V74: 0 | W74: 0 | X74: 0 | Y74: 0 | Z74: 0 | AA74: 0 | AB74: 0 | AC74: 0
A76: Gross Expenses System per year: | C76: =IF(Entradas!$E$8="","",Entradas!$E$8) -> CLP | D76: =SUM(D62:D70) -> 2340000 | E76: =E72+E73+E74+SUMIF(E62:E71,"<1E+307") -> 465400 | F76: =F72+F73+F74+SUMIF(F62:F71,"<1E+307") -> 487485 | G76: 511118.215 | H76: 536436.6388 | I76: 2700045.851 | J76: 592744.487 | K76: 624079.355 | L76: 657793.341 | M76: 694103.989 | N76: 3174127.876 | O76: 775493.5743 | P76: 821122.254 | Q76: 870451.9434 | R76: 923829.4733 | S76: 3770313.023 | T76: 1044289.04 | U76: 1112248.905 | V76: 1186020.092 | W76: 1266157.148 | X76: 5169695.746 | Y76: 1448026.19 | Z76: 1551163.315 | AA76: 1663489.184 | AB76: 1785892.297 | AC76: 5559360.188
A79: Cash Flow: | C79: =IF(Entradas!$E$8="","",Entradas!$E$8) -> CLP | D79: =D14-D84 -> -2340000 | E79: =E14-E84 -> 13653741 | F79: 30119171.23 | G79: 47069555.7 | H79: 64518466.83 | I79: 80343329.18 | J79: 98831240.14 | K79: 117860235.9 | L79: 137445109.9 | M79: 157600953.3 | N79: 175902271.2 | O79: 197246486.8 | P79: 219208665 | Q79: 241805012.6 | R79: 265051986.6 | S79: 286177601.1 | T79: 310776117.4 | U79: 336075958.1 | V79: 362094390.2 | W79: 388848818.9 | X79: 412540326.5 | Y79: 440819339.8 | Z79: 469887027.1 | AA79: 499760954.1 | AB79: 530458600.5 | AC79: 558357285.1
D81: =IF(D79>0,"Yes","No") -> No | E81: =IF(E79>0,"Yes","No") -> Yes | F81: Yes | G81: Yes | H81: Yes | I81: Yes | J81: Yes | K81: Yes | L81: Yes | M81: Yes | N81: Yes | O81: Yes | P81: Yes | Q81: Yes | R81: Yes | S81: Yes | T81: Yes | U81: Yes | V81: Yes | W81: Yes | X81: Yes | Y81: Yes | Z81: Yes | AA81: Yes | AB81: Yes | AC81: Yes
A82: Payback period against investment (years) | B82: =IF(AC79<0,"no payback",COUNTIF(D79:AC79,"<0")) -> 1 | C82: years
A84: System Life Cycle Costs | B84: =IF($A$85=TRUE,AC85,NA()) -> 41730887.13 | C84: =IF(Entradas!$E$8="","",Entradas!$E$8) -> CLP | D84: =IF($A$85=TRUE,D85,NA()) -> 2340000 | E84: 2805400 | F84: 3292885 | G84: 3804003.215 | H84: 4340439.854 | I84: 7040485.705 | J84: 7633230.192 | K84: 8257309.547 | L84: 8915102.888 | M84: 9609206.877 | N84: 12783334.75 | O84: 13558828.33 | P84: 14379950.58 | Q84: 15250402.52 | R84: 16174232 | S84: 19944545.02 | T84: 20988834.06 | U84: 22101082.97 | V84: 23287103.06 | W84: 24553260.21 | X84: 29722955.95 | Y84: 31170982.14 | Z84: 32722145.46 | AA84: 34385634.64 | AB84: 36171526.94 | AC84: 41730887.13
A85: TRUE | D85: =D76 -> 2340000 | E85: =SUM($D$76:E76) -> 2805400 | F85: =SUM($D$76:F76) -> 3292885 | G85: =SUM($D$76:G76) -> 3804003.215 | H85: =SUM($D$76:H76) -> 4340439.854 | I85: =SUM($D$76:I76) -> 7040485.705 | J85: =SUM($D$76:J76) -> 7633230.192 | K85: =SUM($D$76:K76) -> 8257309.547 | L85: =SUM($D$76:L76) -> 8915102.888 | M85: =SUM($D$76:M76) -> 9609206.877 | N85: =SUM($D$76:N76) -> 12783334.75 | O85: =SUM($D$76:O76) -> 13558828.33 | P85: =SUM($D$76:P76) -> 14379950.58 | Q85: =SUM($D$76:Q76) -> 15250402.52 | R85: =SUM($D$76:R76) -> 16174232 | S85: =SUM($D$76:S76) -> 19944545.02 | T85: =SUM($D$76:T76) -> 20988834.06 | U85: =SUM($D$76:U76) -> 22101082.97 | V85: =SUM($D$76:V76) -> 23287103.06 | W85: =SUM($D$76:W76) -> 24553260.21 | X85: =SUM($D$76:X76) -> 29722955.95 | Y85: =SUM($D$76:Y76) -> 31170982.14 | Z85: =SUM($D$76:Z76) -> 32722145.46 | AA85: =SUM($D$76:AA76) -> 34385634.64 | AB85: =SUM($D$76:AB76) -> 36171526.94 | AC85: =SUM($D$76:AC76) -> 41730887.13
A86: Cost of water | C86: =IF(Entradas!$E$8="","",Entradas!$E$8&" /m3") -> CLP /m3 | D86: =D76/($B$9*365) -> 196.6551811 | E86: =E76/($B$9*365) -> 39.11253046 | F86: 40.96856879 | G86: 42.95472014 | H86: 45.08249759 | I86: 226.9136777 | J86: 49.8146472 | K86: 52.44805067 | L86: 55.28139684 | M86: 58.33296824 | N86: 266.7558514 | O86: 65.17300397 | P86: 69.00766905 | Q86: 73.15336948 | R86: 77.63925316 | S86: 316.859654 | T86: 87.76275654 | U86: 93.4741495 | V86: 99.67392993 | W86: 106.4087023 | X86: 434.4647236 | Y86: 121.6930994 | Z86: 130.3608131 | AA86: 139.800755 | AB86: 150.0875953 | AC86: 467.2123866
A87: Average water cost over 25 years | B87: =AVERAGE(D86:AC86) -> 134.888152 | C87: =IF(Entradas!$E$8="","",Entradas!$E$8&" /m3") -> CLP /m3 | I87: =AVERAGE(D86:I86) -> 98.6145293 | N87: =AVERAGE(D86:N86) -> 97.66546274
A89: NPV | B89: =Entradas!E12 -> 0.045 | C89: =NPV(B89,E79:AC79)+D79 -> 3076171951
A90: IRR | C90: =IRR(D79:AC79) -> 6.86421073
N97: PV | P97: Diesel
L98: Anuties of Investment | N98: =C51 -> 3103344934 | P98: =C89 -> 3076171951
L100: Year | N100: Annuity | O100: NPV | P100: Annuity | Q100: NPV
L101: 0
L102: 1 | N102: =PMT($B$51,$L$121,$C$51,0,0)*-1 -> 238573193 | O102: =N102*(1.05^-L102) -> 227212564.8 | P102: =PMT($B$89,$L$121,$C$89,0,0)*-1 -> 236484238.8 | Q102: =P102*(1.06^-L102) -> 223098338.5
L103: =L102+1 -> 2 | N103: =PMT($B$51,$L$121,$C$51,0,0)*-1 -> 238573193 | O103: =N103*(1.06^-L103) -> 212329292.5 | P103: =PMT($B$89,$L$121,$C$89,0,0)*-1 -> 236484238.8 | Q103: =P103*(1.06^-L103) -> 210470130.7
L104: 3 | N104: 238573193 | O104: 200310653.3 | P104: 236484238.8 | Q104: 198556727.1
L105: 4 | N105: 238573193 | O105: 188972314.4 | P105: 236484238.8 | Q105: 187317667
L106: 5 | N106: 238573193 | O106: 178275768.3 | P106: 236484238.8 | Q106: 176714780.2
L107: 6 | N107: 238573193 | O107: 168184687.1 | P107: 236484238.8 | Q107: 166712056.8
L108: 7 | N108: 238573193 | O108: 158664799.1 | P108: 236484238.8 | Q108: 157275525.3
L109: 8 | N109: 238573193 | O109: 149683772.8 | P109: 236484238.8 | Q109: 148373137.1
L110: 9 | N110: 238573193 | O110: 141211106.4 | P110: 236484238.8 | Q110: 139974657.6
L111: 10 | N111: 238573193 | O111: 133218024.9 | P111: 236484238.8 | Q111: 132051563.8
L112: 11 | N112: 238573193 | O112: 125677382 | P112: 236484238.8 | Q112: 124576947
L113: 12 | N113: 238573193 | O113: 118563567.9 | P113: 236484238.8 | Q113: 117525421.7
L114: 13 | N114: 238573193 | O114: 111852422.5 | P114: 236484238.8 | Q114: 110873039.3
L115: 14 | N115: 238573193 | O115: 105521153.3 | P115: 236484238.8 | Q115: 104597206.9
L116: 15 | N116: 238573193 | O116: 99548257.88 | P116: 236484238.8 | Q116: 98676610.29
L117: 16 | N117: 238573193 | O117: 93913450.83 | P117: 236484238.8 | Q117: 93091141.78
L118: 17 | N118: 238573193 | O118: 88597595.12 | P118: 236484238.8 | Q118: 87821831.87
L119: 18 | N119: 238573193 | O119: 83582636.91 | P119: 236484238.8 | Q119: 82850784.78
L120: 19 | N120: 238573193 | O120: 78851544.25 | P120: 236484238.8 | Q120: 78161117.72
L121: 20 | N121: 238573193 | O121: 74388249.29 | P121: 236484238.8 | Q121: 73736903.51
L123: Total | O123: =SUM(O102:O121) -> 2738559244 | Q123: =SUM(Q102:Q121) -> 2712455589
A127: =Entradas!D92 -> Sistema de riego con generador diésel
A129: =Entradas!C96 -> Generador | C129: =IF(Entradas!$E$8="","",Entradas!$E$8) -> CLP | D129: =Entradas!E96 -> 1000000 | E129: =IF(MOD(E11,Entradas!$G$96)=0,($D$129*(1+$B$2)^E11),0) -> 0 | F129: =IF(MOD(F11,Entradas!$G$96)=0,($D$129*(1+$B$2)^F11),0) -> 0 | G129: =IF(MOD(G11,Entradas!$G$96)=0,($D$129*(1+$B$2)^G11),0) -> 1083206.683 | H129: =IF(MOD(H11,Entradas!$G$96)=0,($D$129*(1+$B$2)^H11),0) -> 0 | I129: =IF(MOD(I11,Entradas!$G$96)=0,($D$129*(1+$B$2)^I11),0) -> 0 | J129: =IF(MOD(J11,Entradas!$G$96)=0,($D$129*(1+$B$2)^J11),0) -> 1173336.718 | K129: =IF(MOD(K11,Entradas!$G$96)=0,($D$129*(1+$B$2)^K11),0) -> 0 | L129: =IF(MOD(L11,Entradas!$G$96)=0,($D$129*(1+$B$2)^L11),0) -> 0 | M129: =IF(MOD(M11,Entradas!$G$96)=0,($D$129*(1+$B$2)^M11),0) -> 1270966.174 | N129: =IF(MOD(N11,Entradas!$G$96)=0,($D$129*(1+$B$2)^N11),0) -> 0 | O129: =IF(MOD(O11,Entradas!$G$96)=0,($D$129*(1+$B$2)^O11),0) -> 0 | P129: =IF(MOD(P11,Entradas!$G$96)=0,($D$129*(1+$B$2)^P11),0) -> 1376719.054 | Q129: =IF(MOD(Q11,Entradas!$G$96)=0,($D$129*(1+$B$2)^Q11),0) -> 0 | R129: =IF(MOD(R11,Entradas!$G$96)=0,($D$129*(1+$B$2)^R11),0) -> 0 | S129: =IF(MOD(S11,Entradas!$G$96)=0,($D$129*(1+$B$2)^S11),0) -> 1491271.28 | T129: =IF(MOD(T11,Entradas!$G$96)=0,($D$129*(1+$B$2)^T11),0) -> 0 | U129: =IF(MOD(U11,Entradas!$G$96)=0,($D$129*(1+$B$2)^U11),0) -> 0 | V129: =IF(MOD(V11,Entradas!$G$96)=0,($D$129*(1+$B$2)^V11),0) -> 1615355.017 | W129: =IF(MOD(W11,Entradas!$G$96)=0,($D$129*(1+$B$2)^W11),0) -> 0 | X129: =IF(MOD(X11,Entradas!$G$96)=0,($D$129*(1+$B$2)^X11),0) -> 0 | Y129: =IF(MOD(Y11,Entradas!$G$96)=0,($D$129*(1+$B$2)^Y11),0) -> 1749763.349 | Z129: =IF(MOD(Z11,Entradas!$G$96)=0,($D$129*(1+$B$2)^Z11),0) -> 0 | AA129: =IF(MOD(AA11,Entradas!$G$96)=0,($D$129*(1+$B$2)^AA11),0) -> 0 | AB129: =IF(MOD(AB11,Entradas!$G$96)=0,($D$129*(1+$B$2)^AB11),0) -> 1895355.354 | AC129: =IF(MOD(AC11,Entradas!$G$96)=0,($D$129*(1+$B$2)^AC11),0) -> 0
A130: =Entradas!C97 -> Bomba | C130: =IF(Entradas!$E$8="","",Entradas!$E$8) -> CLP | D130: =Entradas!E97 -> 1000000 | E130: =IF(MOD(E11,Entradas!$G$97)=0,($D$130*(1+$B$2)^E11),0) -> 0 | F130: =IF(MOD(F11,Entradas!$G$97)=0,($D$130*(1+$B$2)^F11),0) -> 0 | G130: =IF(MOD(G11,Entradas!$G$97)=0,($D$130*(1+$B$2)^G11),0) -> 0 | H130: =IF(MOD(H11,Entradas!$G$97)=0,($D$130*(1+$B$2)^H11),0) -> 0 | I130: =IF(MOD(I11,Entradas!$G$97)=0,($D$130*(1+$B$2)^I11),0) -> 1142489.502 | J130: =IF(MOD(J11,Entradas!$G$97)=0,($D$130*(1+$B$2)^J11),0) -> 0 | K130: =IF(MOD(K11,Entradas!$G$97)=0,($D$130*(1+$B$2)^K11),0) -> 0 | L130: =IF(MOD(L11,Entradas!$G$97)=0,($D$130*(1+$B$2)^L11),0) -> 0 | M130: =IF(MOD(M11,Entradas!$G$97)=0,($D$130*(1+$B$2)^M11),0) -> 0 | N130: =IF(MOD(N11,Entradas!$G$97)=0,($D$130*(1+$B$2)^N11),0) -> 1305282.261 | O130: =IF(MOD(O11,Entradas!$G$97)=0,($D$130*(1+$B$2)^O11),0) -> 0 | P130: =IF(MOD(P11,Entradas!$G$97)=0,($D$130*(1+$B$2)^P11),0) -> 0 | Q130: =IF(MOD(Q11,Entradas!$G$97)=0,($D$130*(1+$B$2)^Q11),0) -> 0 | R130: =IF(MOD(R11,Entradas!$G$97)=0,($D$130*(1+$B$2)^R11),0) -> 0 | S130: =IF(MOD(S11,Entradas!$G$97)=0,($D$130*(1+$B$2)^S11),0) -> 1491271.28 | T130: =IF(MOD(T11,Entradas!$G$97)=0,($D$130*(1+$B$2)^T11),0) -> 0 | U130: =IF(MOD(U11,Entradas!$G$97)=0,($D$130*(1+$B$2)^U11),0) -> 0 | V130: =IF(MOD(V11,Entradas!$G$97)=0,($D$130*(1+$B$2)^V11),0) -> 0 | W130: =IF(MOD(W11,Entradas!$G$97)=0,($D$130*(1+$B$2)^W11),0) -> 0 | X130: =IF(MOD(X11,Entradas!$G$97)=0,($D$130*(1+$B$2)^X11),0) -> 1703761.781 | Y130: =IF(MOD(Y11,Entradas!$G$97)=0,($D$130*(1+$B$2)^Y11),0) -> 0 | Z130: =IF(MOD(Z11,Entradas!$G$97)=0,($D$130*(1+$B$2)^Z11),0) -> 0 | AA130: =IF(MOD(AA11,Entradas!$G$97)=0,($D$130*(1+$B$2)^AA11),0) -> 0 | AB130: =IF(MOD(AB11,Entradas!$G$97)=0,($D$130*(1+$B$2)^AB11),0) -> 0 | AC130: =IF(MOD(AC11,Entradas!$G$97)=0,($D$130*(1+$B$2)^AC11),0) -> 1946529.948
A131: Wires / tubes | C131: =IF(Entradas!$E$8="","",Entradas!$E$8) -> CLP | D131: =Entradas!E98 -> 335000 | E131: =IF(MOD(E11,Entradas!$G$98)=0,($D$131*(1+$B$2)^E11),0) -> 0 | F131: =IF(MOD(F11,Entradas!$G$98)=0,($D$131*(1+$B$2)^F11),0) -> 0 | G131: =IF(MOD(G11,Entradas!$G$98)=0,($D$131*(1+$B$2)^G11),0) -> 0 | H131: =IF(MOD(H11,Entradas!$G$98)=0,($D$131*(1+$B$2)^H11),0) -> 0 | I131: =IF(MOD(I11,Entradas!$G$98)=0,($D$131*(1+$B$2)^I11),0) -> 382733.983 | J131: =IF(MOD(J11,Entradas!$G$98)=0,($D$131*(1+$B$2)^J11),0) -> 0 | K131: =IF(MOD(K11,Entradas!$G$98)=0,($D$131*(1+$B$2)^K11),0) -> 0 | L131: =IF(MOD(L11,Entradas!$G$98)=0,($D$131*(1+$B$2)^L11),0) -> 0 | M131: =IF(MOD(M11,Entradas!$G$98)=0,($D$131*(1+$B$2)^M11),0) -> 0 | N131: =IF(MOD(N11,Entradas!$G$98)=0,($D$131*(1+$B$2)^N11),0) -> 437269.5575 | O131: =IF(MOD(O11,Entradas!$G$98)=0,($D$131*(1+$B$2)^O11),0) -> 0 | P131: =IF(MOD(P11,Entradas!$G$98)=0,($D$131*(1+$B$2)^P11),0) -> 0 | Q131: =IF(MOD(Q11,Entradas!$G$98)=0,($D$131*(1+$B$2)^Q11),0) -> 0 | R131: =IF(MOD(R11,Entradas!$G$98)=0,($D$131*(1+$B$2)^R11),0) -> 0 | S131: =IF(MOD(S11,Entradas!$G$98)=0,($D$131*(1+$B$2)^S11),0) -> 499575.8788 | T131: =IF(MOD(T11,Entradas!$G$98)=0,($D$131*(1+$B$2)^T11),0) -> 0 | U131: =IF(MOD(U11,Entradas!$G$98)=0,($D$131*(1+$B$2)^U11),0) -> 0 | V131: =IF(MOD(V11,Entradas!$G$98)=0,($D$131*(1+$B$2)^V11),0) -> 0 | W131: =IF(MOD(W11,Entradas!$G$98)=0,($D$131*(1+$B$2)^W11),0) -> 0 | X131: =IF(MOD(X11,Entradas!$G$98)=0,($D$131*(1+$B$2)^X11),0) -> 570760.1967 | Y131: =IF(MOD(Y11,Entradas!$G$98)=0,($D$131*(1+$B$2)^Y11),0) -> 0 | Z131: =IF(MOD(Z11,Entradas!$G$98)=0,($D$131*(1+$B$2)^Z11),0) -> 0 | AA131: =IF(MOD(AA11,Entradas!$G$98)=0,($D$131*(1+$B$2)^AA11),0) -> 0 | AB131: =IF(MOD(AB11,Entradas!$G$98)=0,($D$131*(1+$B$2)^AB11),0) -> 0 | AC131: =IF(MOD(AC11,Entradas!$G$98)=0,($D$131*(1+$B$2)^AC11),0) -> 652087.5327
A132: =Entradas!C99 -> Almacenamiento de agua | C132: =IF(Entradas!$E$8="","",Entradas!$E$8) -> CLP | D132: =Entradas!E99 -> 370000 | E132: =IF(MOD(E11,Entradas!$G$99)=0,($D$132*(1+$B$2)^E11),0) -> 0 | F132: =IF(MOD(F11,Entradas!$G$99)=0,($D$132*(1+$B$2)^F11),0) -> 0 | G132: =IF(MOD(G11,Entradas!$G$99)=0,($D$132*(1+$B$2)^G11),0) -> 0 | H132: =IF(MOD(H11,Entradas!$G$99)=0,($D$132*(1+$B$2)^H11),0) -> 0 | I132: =IF(MOD(I11,Entradas!$G$99)=0,($D$132*(1+$B$2)^I11),0) -> 0 | J132: =IF(MOD(J11,Entradas!$G$99)=0,($D$132*(1+$B$2)^J11),0) -> 0 | K132: =IF(MOD(K11,Entradas!$G$99)=0,($D$132*(1+$B$2)^K11),0) -> 0 | L132: =IF(MOD(L11,Entradas!$G$99)=0,($D$132*(1+$B$2)^L11),0) -> 0 | M132: =IF(MOD(M11,Entradas!$G$99)=0,($D$132*(1+$B$2)^M11),0) -> 0 | N132: =IF(MOD(N11,Entradas!$G$99)=0,($D$132*(1+$B$2)^N11),0) -> 0 | O132: =IF(MOD(O11,Entradas!$G$99)=0,($D$132*(1+$B$2)^O11),0) -> 0 | P132: =IF(MOD(P11,Entradas!$G$99)=0,($D$132*(1+$B$2)^P11),0) -> 0 | Q132: =IF(MOD(Q11,Entradas!$G$99)=0,($D$132*(1+$B$2)^Q11),0) -> 0 | R132: =IF(MOD(R11,Entradas!$G$99)=0,($D$132*(1+$B$2)^R11),0) -> 0 | S132: =IF(MOD(S11,Entradas!$G$99)=0,($D$132*(1+$B$2)^S11),0) -> 0 | T132: =IF(MOD(T11,Entradas!$G$99)=0,($D$132*(1+$B$2)^T11),0) -> 0 | U132: =IF(MOD(U11,Entradas!$G$99)=0,($D$132*(1+$B$2)^U11),0) -> 0 | V132: =IF(MOD(V11,Entradas!$G$99)=0,($D$132*(1+$B$2)^V11),0) -> 0 | W132: =IF(MOD(W11,Entradas!$G$99)=0,($D$132*(1+$B$2)^W11),0) -> 0 | X132: =IF(MOD(X11,Entradas!$G$99)=0,($D$132*(1+$B$2)^X11),0) -> 630391.8591 | Y132: =IF(MOD(Y11,Entradas!$G$99)=0,($D$132*(1+$B$2)^Y11),0) -> 0 | Z132: =IF(MOD(Z11,Entradas!$G$99)=0,($D$132*(1+$B$2)^Z11),0) -> 0 | AA132: =IF(MOD(AA11,Entradas!$G$99)=0,($D$132*(1+$B$2)^AA11),0) -> 0 | AB132: =IF(MOD(AB11,Entradas!$G$99)=0,($D$132*(1+$B$2)^AB11),0) -> 0 | AC132: =IF(MOD(AC11,Entradas!$G$99)=0,($D$132*(1+$B$2)^AC11),0) -> 0
A133: Irrigation system | C133: =IF(Entradas!$E$8="","",Entradas!$E$8) -> CLP | D133: =Entradas!E100 -> 535000 | E133: =IF(MOD(E11,Entradas!$G$100)=0,($D$133*(1+$B$2)^E11),0) -> 0 | F133: =IF(MOD(F11,Entradas!$G$100)=0,($D$133*(1+$B$2)^F11),0) -> 0 | G133: =IF(MOD(G11,Entradas!$G$100)=0,($D$133*(1+$B$2)^G11),0) -> 0 | H133: =IF(MOD(H11,Entradas!$G$100)=0,($D$133*(1+$B$2)^H11),0) -> 0 | I133: =IF(MOD(I11,Entradas!$G$100)=0,($D$133*(1+$B$2)^I11),0) -> 611231.8833 | J133: =IF(MOD(J11,Entradas!$G$100)=0,($D$133*(1+$B$2)^J11),0) -> 0 | K133: =IF(MOD(K11,Entradas!$G$100)=0,($D$133*(1+$B$2)^K11),0) -> 0 | L133: =IF(MOD(L11,Entradas!$G$100)=0,($D$133*(1+$B$2)^L11),0) -> 0 | M133: =IF(MOD(M11,Entradas!$G$100)=0,($D$133*(1+$B$2)^M11),0) -> 0 | N133: =IF(MOD(N11,Entradas!$G$100)=0,($D$133*(1+$B$2)^N11),0) -> 698326.0097 | O133: =IF(MOD(O11,Entradas!$G$100)=0,($D$133*(1+$B$2)^O11),0) -> 0 | P133: =IF(MOD(P11,Entradas!$G$100)=0,($D$133*(1+$B$2)^P11),0) -> 0 | Q133: =IF(MOD(Q11,Entradas!$G$100)=0,($D$133*(1+$B$2)^Q11),0) -> 0 | R133: =IF(MOD(R11,Entradas!$G$100)=0,($D$133*(1+$B$2)^R11),0) -> 0 | S133: =IF(MOD(S11,Entradas!$G$100)=0,($D$133*(1+$B$2)^S11),0) -> 797830.1348 | T133: =IF(MOD(T11,Entradas!$G$100)=0,($D$133*(1+$B$2)^T11),0) -> 0 | U133: =IF(MOD(U11,Entradas!$G$100)=0,($D$133*(1+$B$2)^U11),0) -> 0 | V133: =IF(MOD(V11,Entradas!$G$100)=0,($D$133*(1+$B$2)^V11),0) -> 0 | W133: =IF(MOD(W11,Entradas!$G$100)=0,($D$133*(1+$B$2)^W11),0) -> 0 | X133: =IF(MOD(X11,Entradas!$G$100)=0,($D$133*(1+$B$2)^X11),0) -> 911512.553 | Y133: =IF(MOD(Y11,Entradas!$G$100)=0,($D$133*(1+$B$2)^Y11),0) -> 0 | Z133: =IF(MOD(Z11,Entradas!$G$100)=0,($D$133*(1+$B$2)^Z11),0) -> 0 | AA133: =IF(MOD(AA11,Entradas!$G$100)=0,($D$133*(1+$B$2)^AA11),0) -> 0 | AB133: =IF(MOD(AB11,Entradas!$G$100)=0,($D$133*(1+$B$2)^AB11),0) -> 0 | AC133: =IF(MOD(AC11,Entradas!$G$100)=0,($D$133*(1+$B$2)^AC11),0) -> 1041393.522
A134: Drilling | C134: =IF(Entradas!$E$8="","",Entradas!$E$8) -> CLP | D134: =Entradas!E101 -> 0
A135: Installation | C135: =IF(Entradas!$E$8="","",Entradas!$E$8) -> CLP | D135: =Entradas!E102 -> 170000
A136: Other Costs | C136: =IF(Entradas!$E$8="","",Entradas!$E$8) -> CLP | D136: =Entradas!E103 -> 0
A137: Loan Repayment | C137: =IF(Entradas!$E$8="","",Entradas!$E$8) -> CLP | D137: 0 | E137: =IF(E11<='Loan Repayment Diesel'!Loan_Years,'Loan Repayment Diesel'!Scheduled_Monthly_Payment,0) -> 0 | F137: =IF(F11<='Loan Repayment Diesel'!Loan_Years,'Loan Repayment Diesel'!Scheduled_Monthly_Payment,0) -> 0 | G137: =IF(G11<='Loan Repayment Diesel'!Loan_Years,'Loan Repayment Diesel'!Scheduled_Monthly_Payment,0) -> 0 | H137: =IF(H11<='Loan Repayment Diesel'!Loan_Years,'Loan Repayment Diesel'!Scheduled_Monthly_Payment,0) -> 0 | I137: =IF(I11<='Loan Repayment Diesel'!Loan_Years,'Loan Repayment Diesel'!Scheduled_Monthly_Payment,0) -> 0 | J137: =IF(J11<='Loan Repayment Diesel'!Loan_Years,'Loan Repayment Diesel'!Scheduled_Monthly_Payment,0) -> 0 | K137: =IF(K11<='Loan Repayment Diesel'!Loan_Years,'Loan Repayment Diesel'!Scheduled_Monthly_Payment,0) -> 0 | L137: =IF(L11<='Loan Repayment Diesel'!Loan_Years,'Loan Repayment Diesel'!Scheduled_Monthly_Payment,0) -> 0 | M137: =IF(M11<='Loan Repayment Diesel'!Loan_Years,'Loan Repayment Diesel'!Scheduled_Monthly_Payment,0) -> 0 | N137: =IF(N11<='Loan Repayment Diesel'!Loan_Years,'Loan Repayment Diesel'!Scheduled_Monthly_Payment,0) -> 0 | O137: =IF(O11<='Loan Repayment Diesel'!Loan_Years,'Loan Repayment Diesel'!Scheduled_Monthly_Payment,0) -> 0 | P137: =IF(P11<='Loan Repayment Diesel'!Loan_Years,'Loan Repayment Diesel'!Scheduled_Monthly_Payment,0) -> 0 | Q137: =IF(Q11<='Loan Repayment Diesel'!Loan_Years,'Loan Repayment Diesel'!Scheduled_Monthly_Payment,0) -> 0 | R137: =IF(R11<='Loan Repayment Diesel'!Loan_Years,'Loan Repayment Diesel'!Scheduled_Monthly_Payment,0) -> 0 | S137: =IF(S11<='Loan Repayment Diesel'!Loan_Years,'Loan Repayment Diesel'!Scheduled_Monthly_Payment,0) -> 0 | T137: =IF(T11<='Loan Repayment Diesel'!Loan_Years,'Loan Repayment Diesel'!Scheduled_Monthly_Payment,0) -> 0 | U137: =IF(U11<='Loan Repayment Diesel'!Loan_Years,'Loan Repayment Diesel'!Scheduled_Monthly_Payment,0) -> 0 | V137: =IF(V11<='Loan Repayment Diesel'!Loan_Years,'Loan Repayment Diesel'!Scheduled_Monthly_Payment,0) -> 0 | W137: =IF(W11<='Loan Repayment Diesel'!Loan_Years,'Loan Repayment Diesel'!Scheduled_Monthly_Payment,0) -> 0 | X137: =IF(X11<='Loan Repayment Diesel'!Loan_Years,'Loan Repayment Diesel'!Scheduled_Monthly_Payment,0) -> 0 | Y137: =IF(Y11<='Loan Repayment Diesel'!Loan_Years,'Loan Repayment Diesel'!Scheduled_Monthly_Payment,0) -> 0 | Z137: =IF(Z11<='Loan Repayment Diesel'!Loan_Years,'Loan Repayment Diesel'!Scheduled_Monthly_Payment,0) -> 0 | AA137: =IF(AA11<='Loan Repayment Diesel'!Loan_Years,'Loan Repayment Diesel'!Scheduled_Monthly_Payment,0) -> 0 | AB137: =IF(AB11<='Loan Repayment Diesel'!Loan_Years,'Loan Repayment Diesel'!Scheduled_Monthly_Payment,0) -> 0 | AC137: =IF(AC11<='Loan Repayment Diesel'!Loan_Years,'Loan Repayment Diesel'!Scheduled_Monthly_Payment,0) -> 0
A138: Fuel costs: | C138: =IF(Entradas!$E$8="","",Entradas!$E$8) -> CLP | D138: 0 | E138: =Entradas!E108 -> 652000 | F138: =E138*(1+(1*$B$5)) -> 677036.8 | G138: =F138*(1+(1*$B$5)) -> 703035.0131 | H138: 730031.5576 | I138: 758064.7694 | J138: 787174.4566 | K138: 817401.9557 | L138: 848790.1908 | M138: 881383.7341 | N138: 915228.8695 | O138: 950373.6581 | P138: 986868.0066 | Q138: 1024763.738 | R138: 1064114.666 | S138: 1104976.669 | T138: 1147407.773 | U138: 1191468.231 | V138: 1237220.611 | W138: 1284729.883 | X138: 1334063.51 | Y138: 1385291.549 | Z138: 1438486.745 | AA138: 1493724.636 | AB138: 1551083.662 | AC138: 1610645.274
A139: Operating Costs: | C139: =IF(Entradas!$E$8="","",Entradas!$E$8) -> CLP | D139: 0 | E139: =SUM(Entradas!E109:E110) -> 200000 | F139: =E139*(1+(1*$B$2)) -> 205400 | G139: =F139*(1+(1*$B$2)) -> 210945.8 | H139: =G139*(1+(1*$B$2)) -> 216641.3366 | I139: =H139*(1+(1*$B$2)) -> 222490.6527 | J139: =I139*(1+(1*$B$2)) -> 228497.9003 | K139: =J139*(1+(1*$B$2)) -> 234667.3436 | L139: =K139*(1+(1*$B$2)) -> 241003.3619 | M139: =L139*(1+(1*$B$2)) -> 247510.4527 | N139: =M139*(1+(1*$B$2)) -> 254193.2349 | O139: =N139*(1+(1*$B$2)) -> 261056.4522 | P139: =O139*(1+(1*$B$2)) -> 268104.9764 | Q139: =P139*(1+(1*$B$2)) -> 275343.8108 | R139: =Q139*(1+(1*$B$2)) -> 282778.0937 | S139: =R139*(1+(1*$B$2)) -> 290413.1022 | T139: =S139*(1+(1*$B$2)) -> 298254.256 | U139: =T139*(1+(1*$B$2)) -> 306307.1209 | V139: =U139*(1+(1*$B$2)) -> 314577.4132 | W139: =V139*(1+(1*$B$2)) -> 323071.0033 | X139: =W139*(1+(1*$B$2)) -> 331793.9204 | Y139: =X139*(1+(1*$B$2)) -> 340752.3563 | Z139: =Y139*(1+(1*$B$2)) -> 349952.6699 | AA139: =Z139*(1+(1*$B$2)) -> 359401.392 | AB139: =AA139*(1+(1*$B$2)) -> 369105.2295 | AC139: =AB139*(1+(1*$B$2)) -> 379071.0707
A140: Water levy | E140: =$B$8*$B$9 -> 0 | F140: =$B$8*$B$9 -> 0 | G140: 0 | H140: 0 | I140: 0 | J140: 0 | K140: 0 | L140: 0 | M140: 0 | N140: 0 | O140: 0 | P140: 0 | Q140: 0 | R140: 0 | S140: 0 | T140: 0 | U140: 0 | V140: 0 | W140: 0 | X140: 0 | Y140: 0 | Z140: 0 | AA140: 0 | AB140: 0 | AC140: 0
A142: Gross Expenses System per year: | C142: =IF(Entradas!$E$8="","",Entradas!$E$8) -> CLP | D142: =SUM(D129:D136) -> 3410000 | E142: =E138+E139+E140+SUMIF(E129:E137,"<1E+307") -> 852000 | F142: =F138+F139+F140+SUMIF(F129:F137,"<1E+307") -> 882436.8 | G142: 1997187.496 | H142: 946672.8942 | I142: 3117010.79 | J142: 2189009.075 | K142: 1052069.299 | L142: 1089793.553 | M142: 2399860.361 | N142: 3610299.933 | O142: 1211430.11 | P142: 2631692.037 | Q142: 1300107.549 | R142: 1346892.759 | S142: 5675338.344 | T142: 1445662.029 | U142: 1497775.352 | V142: 3167153.041 | W142: 1607800.886 | X142: 5482283.821 | Y142: 3475807.255 | Z142: 1788439.415 | AA142: 1853126.028 | AB142: 3815544.245 | AC142: 5629727.348
A145: Cash Flow: | C145: =IF(Entradas!$E$8="","",Entradas!$E$8) -> CLP | D145: =D14-D150 -> -3410000 | E145: =E14-E150 -> 12197141 | F145: =F14-F150 -> 28267619.43 | G145: =G14-G150 -> 43731934.62 | H145: 60770609.49 | I145: 76178506.9 | J145: 93070153.28 | K145: 111671159.1 | L145: 130824032.9 | M145: 149274119.9 | N145: 167139265.8 | O145: 188047544.9 | P145: 208199153.3 | Q145: 230365845.2 | R145: 253189755.9 | S145: 272410345.1 | T145: 296607488.5 | U145: 321521802.7 | V145: 345559101.8 | W145: 371971886.8 | X145: 395350806.3 | Y145: 421602038.5 | Z145: 450432449.8 | AA145: 480116739.9 | AB145: 508784734.3 | AC145: 536613051.8
D147: =IF(D145>0,"Yes","No") -> No | E147: =IF(E145>0,"Yes","No") -> Yes | F147: Yes | G147: Yes | H147: Yes | I147: Yes | J147: Yes | K147: Yes | L147: Yes | M147: Yes | N147: Yes | O147: Yes | P147: Yes | Q147: Yes | R147: Yes | S147: Yes | T147: Yes | U147: Yes | V147: =IF(V145>0,"Yes","No") -> Yes | W147: Yes | X147: Yes | Y147: Yes | Z147: Yes | AA147: Yes | AB147: Yes | AC147: Yes
A148: Payback period against investment (years) | B148: =IF(AC145<0,"no payback",COUNTIF(D145:AC145,"<0")) -> 1 | C148: years
A150: System Life Cycle Costs | B150: =IF($A$151=TRUE,AC151,NA()) -> 63475120.42 | C150: =IF(Entradas!$E$8="","",Entradas!$E$8) -> CLP | D150: =IF($A$151=TRUE,D151,NA()) -> 3410000 | E150: =IF($A$151=TRUE,E151,NA()) -> 4262000 | F150: 5144436.8 | G150: 7141624.296 | H150: 8088297.19 | I150: 11205307.98 | J150: 13394317.06 | K150: 14446386.35 | L150: 15536179.91 | M150: 17936040.27 | N150: 21546340.2 | O150: 22757770.31 | P150: 25389462.35 | Q150: 26689569.9 | R150: 28036462.66 | S150: 33711801 | T150: 35157463.03 | U150: 36655238.38 | V150: 39822391.42 | W150: 41430192.31 | X150: 46912476.13 | Y150: 50388283.39 | Z150: 52176722.8 | AA150: 54029848.83 | AB150: 57845393.07 | AC150: =IF($A$151=TRUE,AC151,NA()) -> 63475120.42
A151: TRUE | D151: =D142 -> 3410000 | E151: =SUM($D$142:E142) -> 4262000 | F151: =SUM($D$142:F142) -> 5144436.8 | G151: =SUM($D$142:G142) -> 7141624.296 | H151: =SUM($D$142:H142) -> 8088297.19 | I151: =SUM($D$142:I142) -> 11205307.98 | J151: =SUM($D$142:J142) -> 13394317.06 | K151: =SUM($D$142:K142) -> 14446386.35 | L151: =SUM($D$142:L142) -> 15536179.91 | M151: =SUM($D$142:M142) -> 17936040.27 | N151: =SUM($D$142:N142) -> 21546340.2 | O151: =SUM($D$142:O142) -> 22757770.31 | P151: =SUM($D$142:P142) -> 25389462.35 | Q151: =SUM($D$142:Q142) -> 26689569.9 | R151: =SUM($D$142:R142) -> 28036462.66 | S151: =SUM($D$142:S142) -> 33711801 | T151: =SUM($D$142:T142) -> 35157463.03 | U151: =SUM($D$142:U142) -> 36655238.38 | V151: =SUM($D$142:V142) -> 39822391.42 | W151: =SUM($D$142:W142) -> 41430192.31 | X151: =SUM($D$142:X142) -> 46912476.13 | Y151: =SUM($D$142:Y142) -> 50388283.39 | Z151: =SUM($D$142:Z142) -> 52176722.8 | AA151: =SUM($D$142:AA142) -> 54029848.83 | AB151: =SUM($D$142:AB142) -> 57845393.07 | AC151: =SUM($D$142:AC142) -> 63475120.42
A152: Cost of water | C152: =IF(Entradas!$E$8="","",Entradas!$E$8&" /m3") -> CLP /m3 | D152: =D142/($B$9*365) -> 286.5787041 | E152: =E142/($B$9*365) -> 71.60265569 | F152: 74.16058492 | G152: 167.8449866 | H152: 79.55902969 | I152: 261.9556929 | J152: 183.9658017 | K152: 88.41661479 | L152: 91.58698653 | M152: 201.6858863 | N152: 303.4120458 | O152: 101.809405 | P152: 221.169177 | Q152: 109.2619169 | R152: 113.1937776 | S152: 476.9592692 | T152: 121.4944137 | U152: 125.8740526 | V152: 266.1696816 | W152: 135.1206728 | X152: 460.7348366 | Y152: 292.1091903 | Z152: 150.3016568 | AA152: 155.7379635 | AB152: 320.6609165 | AC152: 473.1260903
A153: Average water cost over 25 years | B153: =AVERAGE(D152:AC152) -> 205.1727696 | C153: =IF(Entradas!$E$8="","",Entradas!$E$8&" /m3") -> CLP /m3 | I153: =AVERAGE(D152:I152) -> 156.9502757 | N153: =AVERAGE(D152:N152) -> 164.6153626
A155: NPV | B155: =Entradas!E12 -> 0.045 | C155: =NPV(B155,E145:AC145)+D145 -> 2932854153
A156: IRR | C156: =IRR(D145:AC145) -> 4.597715967
F181: Diagramms (Output) - Number:
E185: =Resultados!B23 -> Valor actual neto (VAN): | H185: =Resultados!B21 -> Tasa interna de retorno (TIR) durante más de 25 años: | K185: =Resultados!B27 -> Costos del ciclo de vida del sistema (25 años): | N185: =Resultados!B29 -> Años para amortización: | R185: Accumulated cash flow | U185: Water cost | V185: 5 years | W185: 10 years | X185: 25 years
E187: =Entradas!D30 -> Sistema de riego con energía solar | F187: =C51 -> 3103344934 | H187: =Entradas!D30 -> Sistema de riego con energía solar | I187: =C52 -> 2.955310181 | K187: =Entradas!D30 -> Sistema de riego con energía solar | L187: =B46 -> 30229538.67 | N187: =Entradas!D30 -> Sistema de riego con energía solar | O187: =B44 -> 1 | R187: =Entradas!D30 -> Sistema de riego con energía solar | S187: =AC41 -> 569858633.6 | U187: =Entradas!D30 -> Sistema de riego con energía solar | V187: =IF($A$47=TRUE,I49,NA()) -> 119.4609586 | W187: =IF($A$47=TRUE,N49,NA()) -> 90.63778541 | X187: =IF($A$47=TRUE,B49,NA()) -> 97.71195598
E188: =Entradas!D60 -> Sistema de riego conectado a la red eléctrica | F188: =C89 -> 3076171951 | H188: =Entradas!D60 -> Sistema de riego conectado a la red eléctrica | I188: =C90 -> 6.86421073 | K188: =Entradas!D60 -> Sistema de riego conectado a la red eléctrica | L188: =B84 -> 41730887.13 | N188: =Entradas!D60 -> Sistema de riego conectado a la red eléctrica | O188: =B82 -> 1 | R188: =Entradas!D60 -> Sistema de riego conectado a la red eléctrica | S188: =AC79 -> 558357285.1 | U188: =Entradas!D60 -> Sistema de riego conectado a la red eléctrica | V188: =IF($A$85=TRUE,I87,NA()) -> 98.6145293 | W188: =IF($A$85=TRUE,N87,NA()) -> 97.66546274 | X188: =IF($A$85=TRUE,B87,NA()) -> 134.888152
E189: =Entradas!D92 -> Sistema de riego con generador diésel | F189: =C155 -> 2932854153 | H189: =Entradas!D92 -> Sistema de riego con generador diésel | I189: =C156 -> 4.597715967 | K189: =Entradas!D92 -> Sistema de riego con generador diésel | L189: =B150 -> 63475120.42 | N189: =Entradas!D92 -> Sistema de riego con generador diésel | O189: =B148 -> 1 | R189: =Entradas!D92 -> Sistema de riego con generador diésel | S189: =AC145 -> 536613051.8 | U189: =Entradas!D92 -> Sistema de riego con generador diésel | V189: =IF($A$151=TRUE,I153,NA()) -> 156.9502757 | W189: =IF($A$151=TRUE,N153,NA()) -> 164.6153626 | X189: =IF($A$151=TRUE,B153,NA()) -> 205.1727696
E190: =" " & Entradas!E8 -> CLP | H190: % | K190: =" " & Entradas!E8 -> CLP | N190: Years | S190: =" " & Entradas!E8 -> CLP | V190: =" " & Entradas!E8 -> CLP
E191: ="Comparative accumulated income and system costs over first 10 years in " & E190 -> Comparative accumulated income and system costs over first 10 years in CLP
E192: ="Comparative accumulated income and system costs over first 25 years in " & E190 -> Comparative accumulated income and system costs over first 25 years in CLP
E193: ="Comparative accumulated cash flow over first 10 years in " & E190 -> Comparative accumulated cash flow over first 10 years in CLP
E194: ="Average annual water cost in " & E190 &" /m³" -> Average annual water cost in CLP /m³
J195: Connections:
E196: =Entradas!D30 -> Sistema de riego con energía solar | J196: =Entradas!E8 & "/kWh" -> CLP/kWh
E197: =Entradas!D60 -> Sistema de riego conectado a la red eléctrica | J197: =Entradas!E8 & "/l" -> CLP/l

Sheet Loan Repayment Solar (hidden)
A1: Loan Repayment: | F1: =Entradas!D30 -> Sistema de riego con energía solar
A2: Bank: | B2: =Entradas!E56 -> Banco Alpha
B3: Enter Values | F3: Loan Summary
C4: Loan Amount | D4: =Entradas!E53 -> 0 | G4: Scheduled Payment | H4: =IF(Values_Entered,-PMT(Interest_Rate/Num_Pmt_Per_Year,Loan_Years*Num_Pmt_Per_Year,Loan_Amount),"0") -> 0
C5: Annual Interest Rate | D5: =Entradas!E54 -> 0 | G5: Scheduled Number of Payments | H5: =IF(Values_Entered,Loan_Years*Num_Pmt_Per_Year,"") -> 
C6: Loan Period in Years | D6: =Entradas!E55 -> 0 | G6: Actual Number of Payments | H6: =IF(Values_Entered,Number_of_Payments,"") -> 
C7: Number of Payments Per Year | D7: 1 | G7: Total Early Payments | H7: =IF(Values_Entered,SUMIF(Beg_Bal,">0",Extra_Pay),"") -> 
C8: Start Date of Loan | D8: 2017-01-01 | G8: Total Interest | H8: =IF(Values_Entered,SUMIF(Beg_Bal,">0",Int),"") -> 
C9: Optional Extra Payments | D9: 0
A12: PmtNo. | B12: Payment Date | C12: Beginning Balance | D12: Scheduled Payment | E12: Extra Payment | F12: Total Payment | G12: Principal | H12: Interest | I12: Ending Balance | J12: Cumulative Interest
A14: =IF(Values_Entered,1,"") ->  | B14: =IF(Pay_Num<>"",DATE(YEAR(Loan_Start),MONTH(Loan_Start)+(Pay_Num)*12/Num_Pmt_Per_Year,DAY(Loan_Start)),"") ->  | C14: =IF(Values_Entered,Loan_Amount,"") ->  | D14: =IF(Pay_Num<>"",Scheduled_Monthly_Payment,"") ->  | E14: =IF(AND(Pay_Num<>"",Sched_Pay+Scheduled_Extra_Payments<Beg_Bal),Scheduled_Extra_Payments,IF(AND(Pay_Num<>"",Beg_Bal-Sched_Pay>0),Beg_Bal-Sched_Pay,IF(Pay_Num<>"",0,""))) ->  | F14: =IF(AND(Pay_Num<>"",Sched_Pay+Extra_Pay<Beg_Bal),Sched_Pay+Extra_Pay,IF(Pay_Num<>"",Beg_Bal,"")) ->  | G14: =IF(Pay_Num<>"",Total_Pay-Int,"") ->  | H14: =IF(Pay_Num<>"",Beg_Bal*(Interest_Rate/Num_Pmt_Per_Year),"") ->  | I14: =IF(AND(Pay_Num<>"",Sched_Pay+Extra_Pay<Beg_Bal),Beg_Bal-Princ,IF(Pay_Num<>"",0,"")) ->  | J14: =SUM($H$14:$H14) -> 0
A15: =IF(Values_Entered,A14+1,"") ->  | C15: =IF(Pay_Num<>"",I14,"") ->  | D15: =IF(Pay_Num<>"",Scheduled_Monthly_Payment,"") ->  | G15: =IF(Pay_Num<>"",Total_Pay-Int,"") ->  | H15: =IF(Pay_Num<>"",Beg_Bal*Interest_Rate/Num_Pmt_Per_Year,"") ->  | J15: =SUM($H$14:$H15) -> 0
A16: =IF(Values_Entered,A15+1,"") ->  | D16: =IF(Pay_Num<>"",Scheduled_Monthly_Payment,"") ->  | J16: =SUM($H$14:$H16) -> 0
A17: =IF(Values_Entered,A16+1,"") ->  | D17: =IF(Pay_Num<>"",Scheduled_Monthly_Payment,"") ->  | J17: =SUM($H$14:$H17) -> 0
A18: =IF(Values_Entered,A17+1,"") ->  | J18: =SUM($H$14:$H18) -> 0
A19: =IF(Values_Entered,A18+1,"") ->  | J19: =SUM($H$14:$H19) -> 0
A20: =IF(Values_Entered,A19+1,"") ->  | J20: =SUM($H$14:$H20) -> 0
A21: =IF(Values_Entered,A20+1,"") ->  | J21: =SUM($H$14:$H21) -> 0
A22: =IF(Values_Entered,A21+1,"") ->  | J22: =SUM($H$14:$H22) -> 0
A23: =IF(Values_Entered,A22+1,"") ->  | J23: =SUM($H$14:$H23) -> 0
A24: =IF(Values_Entered,A23+1,"") ->  | J24: =SUM($H$14:$H24) -> 0
A25: =IF(Values_Entered,A24+1,"") ->  | J25: =SUM($H$14:$H25) -> 0
A26: =IF(Values_Entered,A25+1,"") ->  | J26: =SUM($H$14:$H26) -> 0
A27: =IF(Values_Entered,A26+1,"") ->  | J27: =SUM($H$14:$H27) -> 0
A28: =IF(Values_Entered,A27+1,"") ->  | J28: =SUM($H$14:$H28) -> 0
A29: =IF(Values_Entered,A28+1,"") ->  | J29: =SUM($H$14:$H29) -> 0
A30: =IF(Values_Entered,A29+1,"") ->  | J30: =SUM($H$14:$H30) -> 0
A31: =IF(Values_Entered,A30+1,"") ->  | J31: =SUM($H$14:$H31) -> 0
A32: =IF(Values_Entered,A31+1,"") ->  | J32: =SUM($H$14:$H32) -> 0
A33: =IF(Values_Entered,A32+1,"") ->  | J33: =SUM($H$14:$H33) -> 0
A34: =IF(Values_Entered,A33+1,"") ->  | J34: =SUM($H$14:$H34) -> 0
A35: =IF(Values_Entered,A34+1,"") ->  | J35: =SUM($H$14:$H35) -> 0
A36: =IF(Values_Entered,A35+1,"") ->  | J36: =SUM($H$14:$H36) -> 0
A37: =IF(Values_Entered,A36+1,"") ->  | J37: =SUM($H$14:$H37) -> 0
A38: =IF(Values_Entered,A37+1,"") ->  | J38: =SUM($H$14:$H38) -> 0
A39: =IF(Values_Entered,A38+1,"") ->  | J39: =SUM($H$14:$H39) -> 0
A40: =IF(Values_Entered,A39+1,"") ->  | J40: =SUM($H$14:$H40) -> 0
A41: =IF(Values_Entered,A40+1,"") ->  | J41: =SUM($H$14:$H41) -> 0
A42: =IF(Values_Entered,A41+1,"") ->  | J42: =SUM($H$14:$H42) -> 0
A43: =IF(Values_Entered,A42+1,"") ->  | J43: =SUM($H$14:$H43) -> 0
A44: =IF(Values_Entered,A43+1,"") ->  | J44: =SUM($H$14:$H44) -> 0
A45: =IF(Values_Entered,A44+1,"") ->  | J45: =SUM($H$14:$H45) -> 0
A46: =IF(Values_Entered,A45+1,"") ->  | J46: =SUM($H$14:$H46) -> 0
A47: =IF(Values_Entered,A46+1,"") ->  | J47: =SUM($H$14:$H47) -> 0
A48: =IF(Values_Entered,A47+1,"") ->  | J48: =SUM($H$14:$H48) -> 0
A49: =IF(Values_Entered,A48+1,"") ->  | J49: =SUM($H$14:$H49) -> 0
A50: =IF(Values_Entered,A49+1,"") ->  | J50: =SUM($H$14:$H50) -> 0
A51: =IF(Values_Entered,A50+1,"") ->  | J51: =SUM($H$14:$H51) -> 0
A52: =IF(Values_Entered,A51+1,"") ->  | J52: =SUM($H$14:$H52) -> 0
A53: =IF(Values_Entered,A52+1,"") ->  | J53: =SUM($H$14:$H53) -> 0
A54: =IF(Values_Entered,A53+1,"") ->  | J54: =SUM($H$14:$H54) -> 0
A55: =IF(Values_Entered,A54+1,"") ->  | J55: =SUM($H$14:$H55) -> 0
A56: =IF(Values_Entered,A55+1,"") ->  | J56: =SUM($H$14:$H56) -> 0
A57: =IF(Values_Entered,A56+1,"") ->  | J57: =SUM($H$14:$H57) -> 0
A58: =IF(Values_Entered,A57+1,"") ->  | J58: =SUM($H$14:$H58) -> 0
A59: =IF(Values_Entered,A58+1,"") ->  | J59: =SUM($H$14:$H59) -> 0
A60: =IF(Values_Entered,A59+1,"") ->  | J60: =SUM($H$14:$H60) -> 0
A61: =IF(Values_Entered,A60+1,"") ->  | J61: =SUM($H$14:$H61) -> 0
A62: =IF(Values_Entered,A61+1,"") ->  | J62: =SUM($H$14:$H62) -> 0
A63: =IF(Values_Entered,A62+1,"") ->  | J63: =SUM($H$14:$H63) -> 0
A64: =IF(Values_Entered,A63+1,"") ->  | J64: =SUM($H$14:$H64) -> 0
A65: =IF(Values_Entered,A64+1,"") ->  | J65: =SUM($H$14:$H65) -> 0
A66: =IF(Values_Entered,A65+1,"") ->  | J66: =SUM($H$14:$H66) -> 0
A67: =IF(Values_Entered,A66+1,"") ->  | J67: =SUM($H$14:$H67) -> 0
A68: =IF(Values_Entered,A67+1,"") ->  | J68: =SUM($H$14:$H68) -> 0
A69: =IF(Values_Entered,A68+1,"") ->  | J69: =SUM($H$14:$H69) -> 0
A70: =IF(Values_Entered,A69+1,"") ->  | J70: =SUM($H$14:$H70) -> 0
A71: =IF(Values_Entered,A70+1,"") ->  | J71: =SUM($H$14:$H71) -> 0
A72: =IF(Values_Entered,A71+1,"") ->  | J72: =SUM($H$14:$H72) -> 0
A73: =IF(Values_Entered,A72+1,"") ->  | J73: =SUM($H$14:$H73) -> 0
A74: =IF(Values_Entered,A73+1,"") ->  | J74: =SUM($H$14:$H74) -> 0
A75: =IF(Values_Entered,A74+1,"") ->  | J75: =SUM($H$14:$H75) -> 0
A76: =IF(Values_Entered,A75+1,"") ->  | J76: =SUM($H$14:$H76) -> 0
A77: =IF(Values_Entered,A76+1,"") ->  | J77: =SUM($H$14:$H77) -> 0
A78: =IF(Values_Entered,A77+1,"") ->  | B78: =IF(Pay_Num<>"",DATE(YEAR(Loan_Start),MONTH(Loan_Start)+(Pay_Num)*12/Num_Pmt_Per_Year,DAY(Loan_Start)),"") ->  | E78: =IF(AND(Pay_Num<>"",Sched_Pay+Scheduled_Extra_Payments<Beg_Bal),Scheduled_Extra_Payments,IF(AND(Pay_Num<>"",Beg_Bal-Sched_Pay>0),Beg_Bal-Sched_Pay,IF(Pay_Num<>"",0,""))) ->  | F78: =IF(AND(Pay_Num<>"",Sched_Pay+Extra_Pay<Beg_Bal),Sched_Pay+Extra_Pay,IF(Pay_Num<>"",Beg_Bal,"")) ->  | I78: =IF(AND(Pay_Num<>"",Sched_Pay+Extra_Pay<Beg_Bal),Beg_Bal-Princ,IF(Pay_Num<>"",0,"")) ->  | J78: =SUM($H$14:$H78) -> 0
A79: =IF(Values_Entered,A78+1,"") ->  | C79: =IF(Pay_Num<>"",I78,"") ->  | G79: =IF(Pay_Num<>"",Total_Pay-Int,"") ->  | H79: =IF(Pay_Num<>"",Beg_Bal*Interest_Rate/Num_Pmt_Per_Year,"") ->  | J79: =SUM($H$14:$H79) -> 0
A80: =IF(Values_Entered,A79+1,"") ->  | D80: =IF(Pay_Num<>"",Scheduled_Monthly_Payment,"") ->  | J80: =SUM($H$14:$H80) -> 0
A81: =IF(Values_Entered,A80+1,"") ->  | J81: =SUM($H$14:$H81) -> 0
A82: =IF(Values_Entered,A81+1,"") ->  | J82: =SUM($H$14:$H82) -> 0
A83: =IF(Values_Entered,A82+1,"") ->  | J83: =SUM($H$14:$H83) -> 0
A84: =IF(Values_Entered,A83+1,"") ->  | J84: =SUM($H$14:$H84) -> 0
A85: =IF(Values_Entered,A84+1,"") ->  | J85: =SUM($H$14:$H85) -> 0
A86: =IF(Values_Entered,A85+1,"") ->  | J86: =SUM($H$14:$H86) -> 0
A87: =IF(Values_Entered,A86+1,"") ->  | J87: =SUM($H$14:$H87) -> 0
A88: =IF(Values_Entered,A87+1,"") ->  | J88: =SUM($H$14:$H88) -> 0
A89: =IF(Values_Entered,A88+1,"") ->  | J89: =SUM($H$14:$H89) -> 0
A90: =IF(Values_Entered,A89+1,"") ->  | J90: =SUM($H$14:$H90) -> 0
A91: =IF(Values_Entered,A90+1,"") ->  | J91: =SUM($H$14:$H91) -> 0
A92: =IF(Values_Entered,A91+1,"") ->  | J92: =SUM($H$14:$H92) -> 0
A93: =IF(Values_Entered,A92+1,"") ->  | J93: =SUM($H$14:$H93) -> 0
A94: =IF(Values_Entered,A93+1,"") ->  | J94: =SUM($H$14:$H94) -> 0
A95: =IF(Values_Entered,A94+1,"") ->  | J95: =SUM($H$14:$H95) -> 0
A96: =IF(Values_Entered,A95+1,"") ->  | J96: =SUM($H$14:$H96) -> 0
A97: =IF(Values_Entered,A96+1,"") ->  | J97: =SUM($H$14:$H97) -> 0
A98: =IF(Values_Entered,A97+1,"") ->  | J98: =SUM($H$14:$H98) -> 0
A99: =IF(Values_Entered,A98+1,"") ->  | J99: =SUM($H$14:$H99) -> 0
A100: =IF(Values_Entered,A99+1,"") ->  | J100: =SUM($H$14:$H100) -> 0
A101: =IF(Values_Entered,A100+1,"") ->  | J101: =SUM($H$14:$H101) -> 0
A102: =IF(Values_Entered,A101+1,"") ->  | J102: =SUM($H$14:$H102) -> 0
A103: =IF(Values_Entered,A102+1,"") ->  | J103: =SUM($H$14:$H103) -> 0
A104: =IF(Values_Entered,A103+1,"") ->  | J104: =SUM($H$14:$H104) -> 0
A105: =IF(Values_Entered,A104+1,"") ->  | J105: =SUM($H$14:$H105) -> 0
A106: =IF(Values_Entered,A105+1,"") ->  | J106: =SUM($H$14:$H106) -> 0
A107: =IF(Values_Entered,A106+1,"") ->  | J107: =SUM($H$14:$H107) -> 0
A108: =IF(Values_Entered,A107+1,"") ->  | J108: =SUM($H$14:$H108) -> 0
A109: =IF(Values_Entered,A108+1,"") ->  | J109: =SUM($H$14:$H109) -> 0
A110: =IF(Values_Entered,A109+1,"") ->  | J110: =SUM($H$14:$H110) -> 0
A111: =IF(Values_Entered,A110+1,"") ->  | J111: =SUM($H$14:$H111) -> 0
A112: =IF(Values_Entered,A111+1,"") ->  | J112: =SUM($H$14:$H112) -> 0
A113: =IF(Values_Entered,A112+1,"") ->  | J113: =SUM($H$14:$H113) -> 0
A114: =IF(Values_Entered,A113+1,"") ->  | J114: =SUM($H$14:$H114) -> 0
A115: =IF(Values_Entered,A114+1,"") ->  | J115: =SUM($H$14:$H115) -> 0
A116: =IF(Values_Entered,A115+1,"") ->  | J116: =SUM($H$14:$H116) -> 0
A117: =IF(Values_Entered,A116+1,"") ->  | J117: =SUM($H$14:$H117) -> 0
A118: =IF(Values_Entered,A117+1,"") ->  | J118: =SUM($H$14:$H118) -> 0
A119: =IF(Values_Entered,A118+1,"") ->  | J119: =SUM($H$14:$H119) -> 0
A120: =IF(Values_Entered,A119+1,"") ->  | J120: =SUM($H$14:$H120) -> 0
A121: =IF(Values_Entered,A120+1,"") ->  | J121: =SUM($H$14:$H121) -> 0
A122: =IF(Values_Entered,A121+1,"") ->  | J122: =SUM($H$14:$H122) -> 0
A123: =IF(Values_Entered,A122+1,"") ->  | J123: =SUM($H$14:$H123) -> 0
A124: =IF(Values_Entered,A123+1,"") ->  | J124: =SUM($H$14:$H124) -> 0
A125: =IF(Values_Entered,A124+1,"") ->  | J125: =SUM($H$14:$H125) -> 0
A126: =IF(Values_Entered,A125+1,"") ->  | J126: =SUM($H$14:$H126) -> 0
A127: =IF(Values_Entered,A126+1,"") ->  | J127: =SUM($H$14:$H127) -> 0
A128: =IF(Values_Entered,A127+1,"") ->  | J128: =SUM($H$14:$H128) -> 0
A129: =IF(Values_Entered,A128+1,"") ->  | J129: =SUM($H$14:$H129) -> 0
A130: =IF(Values_Entered,A129+1,"") ->  | J130: =SUM($H$14:$H130) -> 0
A131: =IF(Values_Entered,A130+1,"") ->  | J131: =SUM($H$14:$H131) -> 0
A132: =IF(Values_Entered,A131+1,"") ->  | J132: =SUM($H$14:$H132) -> 0
A133: =IF(Values_Entered,A132+1,"") ->  | J133: =SUM($H$14:$H133) -> 0
A134: =IF(Values_Entered,A133+1,"") ->  | J134: =SUM($H$14:$H134) -> 0
A135: =IF(Values_Entered,A134+1,"") ->  | J135: =SUM($H$14:$H135) -> 0
A136: =IF(Values_Entered,A135+1,"") ->  | J136: =SUM($H$14:$H136) -> 0
A137: =IF(Values_Entered,A136+1,"") ->  | J137: =SUM($H$14:$H137) -> 0
A138: =IF(Values_Entered,A137+1,"") ->  | J138: =SUM($H$14:$H138) -> 0
A139: =IF(Values_Entered,A138+1,"") ->  | J139: =SUM($H$14:$H139) -> 0
A140: =IF(Values_Entered,A139+1,"") ->  | J140: =SUM($H$14:$H140) -> 0
A141: =IF(Values_Entered,A140+1,"") ->  | J141: =SUM($H$14:$H141) -> 0
A142: =IF(Values_Entered,A141+1,"") ->  | B142: =IF(Pay_Num<>"",DATE(YEAR(Loan_Start),MONTH(Loan_Start)+(Pay_Num)*12/Num_Pmt_Per_Year,DAY(Loan_Start)),"") ->  | E142: =IF(AND(Pay_Num<>"",Sched_Pay+Scheduled_Extra_Payments<Beg_Bal),Scheduled_Extra_Payments,IF(AND(Pay_Num<>"",Beg_Bal-Sched_Pay>0),Beg_Bal-Sched_Pay,IF(Pay_Num<>"",0,""))) ->  | F142: =IF(AND(Pay_Num<>"",Sched_Pay+Extra_Pay<Beg_Bal),Sched_Pay+Extra_Pay,IF(Pay_Num<>"",Beg_Bal,"")) ->  | I142: =IF(AND(Pay_Num<>"",Sched_Pay+Extra_Pay<Beg_Bal),Beg_Bal-Princ,IF(Pay_Num<>"",0,"")) ->  | J142: =SUM($H$14:$H142) -> 0
A143: =IF(Values_Entered,A142+1,"") ->  | C143: =IF(Pay_Num<>"",I142,"") ->  | G143: =IF(Pay_Num<>"",Total_Pay-Int,"") ->  | H143: =IF(Pay_Num<>"",Beg_Bal*Interest_Rate/Num_Pmt_Per_Year,"") ->  | J143: =SUM($H$14:$H143) -> 0
A144: =IF(Values_Entered,A143+1,"") ->  | D144: =IF(Pay_Num<>"",Scheduled_Monthly_Payment,"") ->  | J144: =SUM($H$14:$H144) -> 0
A145: =IF(Values_Entered,A144+1,"") ->  | J145: =SUM($H$14:$H145) -> 0
A146: =IF(Values_Entered,A145+1,"") ->  | J146: =SUM($H$14:$H146) -> 0
A147: =IF(Values_Entered,A146+1,"") ->  | J147: =SUM($H$14:$H147) -> 0
A148: =IF(Values_Entered,A147+1,"") ->  | J148: =SUM($H$14:$H148) -> 0
A149: =IF(Values_Entered,A148+1,"") ->  | J149: =SUM($H$14:$H149) -> 0
A150: =IF(Values_Entered,A149+1,"") ->  | J150: =SUM($H$14:$H150) -> 0
A151: =IF(Values_Entered,A150+1,"") ->  | J151: =SUM($H$14:$H151) -> 0
A152: =IF(Values_Entered,A151+1,"") ->  | J152: =SUM($H$14:$H152) -> 0
A153: =IF(Values_Entered,A152+1,"") ->  | J153: =SUM($H$14:$H153) -> 0
A154: =IF(Values_Entered,A153+1,"") ->  | J154: =SUM($H$14:$H154) -> 0
A155: =IF(Values_Entered,A154+1,"") ->  | J155: =SUM($H$14:$H155) -> 0
A156: =IF(Values_Entered,A155+1,"") ->  | J156: =SUM($H$14:$H156) -> 0
A157: =IF(Values_Entered,A156+1,"") ->  | J157: =SUM($H$14:$H157) -> 0
A158: =IF(Values_Entered,A157+1,"") ->  | J158: =SUM($H$14:$H158) -> 0
A159: =IF(Values_Entered,A158+1,"") ->  | J159: =SUM($H$14:$H159) -> 0
A160: =IF(Values_Entered,A159+1,"") ->  | J160: =SUM($H$14:$H160) -> 0
A161: =IF(Values_Entered,A160+1,"") ->  | J161: =SUM($H$14:$H161) -> 0
A162: =IF(Values_Entered,A161+1,"") ->  | J162: =SUM($H$14:$H162) -> 0
A163: =IF(Values_Entered,A162+1,"") ->  | J163: =SUM($H$14:$H163) -> 0
A164: =IF(Values_Entered,A163+1,"") ->  | J164: =SUM($H$14:$H164) -> 0
A165: =IF(Values_Entered,A164+1,"") ->  | J165: =SUM($H$14:$H165) -> 0
A166: =IF(Values_Entered,A165+1,"") ->  | J166: =SUM($H$14:$H166) -> 0
A167: =IF(Values_Entered,A166+1,"") ->  | J167: =SUM($H$14:$H167) -> 0
A168: =IF(Values_Entered,A167+1,"") ->  | J168: =SUM($H$14:$H168) -> 0
A169: =IF(Values_Entered,A168+1,"") ->  | J169: =SUM($H$14:$H169) -> 0
A170: =IF(Values_Entered,A169+1,"") ->  | J170: =SUM($H$14:$H170) -> 0
A171: =IF(Values_Entered,A170+1,"") ->  | J171: =SUM($H$14:$H171) -> 0
A172: =IF(Values_Entered,A171+1,"") ->  | J172: =SUM($H$14:$H172) -> 0
A173: =IF(Values_Entered,A172+1,"") ->  | J173: =SUM($H$14:$H173) -> 0
A174: =IF(Values_Entered,A173+1,"") ->  | J174: =SUM($H$14:$H174) -> 0
A175: =IF(Values_Entered,A174+1,"") ->  | J175: =SUM($H$14:$H175) -> 0
A176: =IF(Values_Entered,A175+1,"") ->  | J176: =SUM($H$14:$H176) -> 0
A177: =IF(Values_Entered,A176+1,"") ->  | J177: =SUM($H$14:$H177) -> 0
A178: =IF(Values_Entered,A177+1,"") ->  | J178: =SUM($H$14:$H178) -> 0
A179: =IF(Values_Entered,A178+1,"") ->  | J179: =SUM($H$14:$H179) -> 0
A180: =IF(Values_Entered,A179+1,"") ->  | J180: =SUM($H$14:$H180) -> 0
A181: =IF(Values_Entered,A180+1,"") ->  | J181: =SUM($H$14:$H181) -> 0
A182: =IF(Values_Entered,A181+1,"") ->  | J182: =SUM($H$14:$H182) -> 0
A183: =IF(Values_Entered,A182+1,"") ->  | J183: =SUM($H$14:$H183) -> 0
A184: =IF(Values_Entered,A183+1,"") ->  | J184: =SUM($H$14:$H184) -> 0
A185: =IF(Values_Entered,A184+1,"") ->  | J185: =SUM($H$14:$H185) -> 0
A186: =IF(Values_Entered,A185+1,"") ->  | J186: =SUM($H$14:$H186) -> 0
A187: =IF(Values_Entered,A186+1,"") ->  | J187: =SUM($H$14:$H187) -> 0
A188: =IF(Values_Entered,A187+1,"") ->  | J188: =SUM($H$14:$H188) -> 0
A189: =IF(Values_Entered,A188+1,"") ->  | J189: =SUM($H$14:$H189) -> 0
A190: =IF(Values_Entered,A189+1,"") ->  | J190: =SUM($H$14:$H190) -> 0
A191: =IF(Values_Entered,A190+1,"") ->  | J191: =SUM($H$14:$H191) -> 0
A192: =IF(Values_Entered,A191+1,"") ->  | J192: =SUM($H$14:$H192) -> 0
A193: =IF(Values_Entered,A192+1,"") ->  | J193: =SUM($H$14:$H193) -> 0
A194: =IF(Values_Entered,A193+1,"") ->  | J194: =SUM($H$14:$H194) -> 0
A195: =IF(Values_Entered,A194+1,"") ->  | J195: =SUM($H$14:$H195) -> 0
A196: =IF(Values_Entered,A195+1,"") ->  | J196: =SUM($H$14:$H196) -> 0
A197: =IF(Values_Entered,A196+1,"") ->  | J197: =SUM($H$14:$H197) -> 0
A198: =IF(Values_Entered,A197+1,"") ->  | J198: =SUM($H$14:$H198) -> 0
A199: =IF(Values_Entered,A198+1,"") ->  | J199: =SUM($H$14:$H199) -> 0
A200: =IF(Values_Entered,A199+1,"") ->  | J200: =SUM($H$14:$H200) -> 0
A201: =IF(Values_Entered,A200+1,"") ->  | J201: =SUM($H$14:$H201) -> 0
A202: =IF(Values_Entered,A201+1,"") ->  | J202: =SUM($H$14:$H202) -> 0
A203: =IF(Values_Entered,A202+1,"") ->  | J203: =SUM($H$14:$H203) -> 0
... 170 more rows

Sheet Loan Repayment Grid (hidden)
A1: Loan Repayment: | F1: =Entradas!D60 -> Sistema de riego conectado a la red eléctrica
A2: Bank: | B2: =Entradas!E88 -> Banco Alpha
B3: Enter Values | F3: Loan Summary
C4: Loan Amount | D4: =Entradas!E85 -> 0 | G4: Scheduled Payment | H4: =IF(Values_Entered,-PMT(Interest_Rate/Num_Pmt_Per_Year,Loan_Years*Num_Pmt_Per_Year,Loan_Amount),"0") -> 0
C5: Annual Interest Rate | D5: =Entradas!E86 -> 0 | G5: Scheduled Number of Payments | H5: =IF(Values_Entered,Loan_Years*Num_Pmt_Per_Year,"") -> 
C6: Loan Period in Years | D6: =Entradas!E87 -> 0 | G6: Actual Number of Payments | H6: =IF(Values_Entered,Number_of_Payments,"") -> 
C7: Number of Payments Per Year | D7: 1 | G7: Total Early Payments | H7: =IF(Values_Entered,SUMIF(Beg_Bal,">0",Extra_Pay),"") -> 
C8: Start Date of Loan | D8: 2017-01-01 | G8: Total Interest | H8: =IF(Values_Entered,SUMIF(Beg_Bal,">0",Int),"") -> 
C9: Optional Extra Payments | D9: 0
A12: PmtNo. | B12: Payment Date | C12: Beginning Balance | D12: Scheduled Payment | E12: Extra Payment | F12: Total Payment | G12: Principal | H12: Interest | I12: Ending Balance | J12: Cumulative Interest
A14: =IF(Values_Entered,1,"") ->  | B14: =IF(Pay_Num<>"",DATE(YEAR(Loan_Start),MONTH(Loan_Start)+(Pay_Num)*12/Num_Pmt_Per_Year,DAY(Loan_Start)),"") ->  | C14: =IF(Values_Entered,Loan_Amount,"") ->  | D14: =IF(Pay_Num<>"",Scheduled_Monthly_Payment,"") ->  | E14: =IF(AND(Pay_Num<>"",Sched_Pay+Scheduled_Extra_Payments<Beg_Bal),Scheduled_Extra_Payments,IF(AND(Pay_Num<>"",Beg_Bal-Sched_Pay>0),Beg_Bal-Sched_Pay,IF(Pay_Num<>"",0,""))) ->  | F14: =IF(AND(Pay_Num<>"",Sched_Pay+Extra_Pay<Beg_Bal),Sched_Pay+Extra_Pay,IF(Pay_Num<>"",Beg_Bal,"")) ->  | G14: =IF(Pay_Num<>"",Total_Pay-Int,"") ->  | H14: =IF(Pay_Num<>"",Beg_Bal*(Interest_Rate/Num_Pmt_Per_Year),"") ->  | I14: =IF(AND(Pay_Num<>"",Sched_Pay+Extra_Pay<Beg_Bal),Beg_Bal-Princ,IF(Pay_Num<>"",0,"")) ->  | J14: =SUM($H$14:$H14) -> 0
A15: =IF(Values_Entered,A14+1,"") ->  | C15: =IF(Pay_Num<>"",I14,"") ->  | D15: =IF(Pay_Num<>"",Scheduled_Monthly_Payment,"") ->  | G15: =IF(Pay_Num<>"",Total_Pay-Int,"") ->  | H15: =IF(Pay_Num<>"",Beg_Bal*Interest_Rate/Num_Pmt_Per_Year,"") ->  | J15: =SUM($H$14:$H15) -> 0
A16: =IF(Values_Entered,A15+1,"") ->  | D16: =IF(Pay_Num<>"",Scheduled_Monthly_Payment,"") ->  | J16: =SUM($H$14:$H16) -> 0
A17: =IF(Values_Entered,A16+1,"") ->  | D17: =IF(Pay_Num<>"",Scheduled_Monthly_Payment,"") ->  | J17: =SUM($H$14:$H17) -> 0
A18: =IF(Values_Entered,A17+1,"") ->  | J18: =SUM($H$14:$H18) -> 0
A19: =IF(Values_Entered,A18+1,"") ->  | J19: =SUM($H$14:$H19) -> 0
A20: =IF(Values_Entered,A19+1,"") ->  | J20: =SUM($H$14:$H20) -> 0
A21: =IF(Values_Entered,A20+1,"") ->  | J21: =SUM($H$14:$H21) -> 0
A22: =IF(Values_Entered,A21+1,"") ->  | J22: =SUM($H$14:$H22) -> 0
A23: =IF(Values_Entered,A22+1,"") ->  | J23: =SUM($H$14:$H23) -> 0
A24: =IF(Values_Entered,A23+1,"") ->  | J24: =SUM($H$14:$H24) -> 0
A25: =IF(Values_Entered,A24+1,"") ->  | J25: =SUM($H$14:$H25) -> 0
A26: =IF(Values_Entered,A25+1,"") ->  | J26: =SUM($H$14:$H26) -> 0
A27: =IF(Values_Entered,A26+1,"") ->  | J27: =SUM($H$14:$H27) -> 0
A28: =IF(Values_Entered,A27+1,"") ->  | J28: =SUM($H$14:$H28) -> 0
A29: =IF(Values_Entered,A28+1,"") ->  | J29: =SUM($H$14:$H29) -> 0
A30: =IF(Values_Entered,A29+1,"") ->  | J30: =SUM($H$14:$H30) -> 0
A31: =IF(Values_Entered,A30+1,"") ->  | J31: =SUM($H$14:$H31) -> 0
A32: =IF(Values_Entered,A31+1,"") ->  | J32: =SUM($H$14:$H32) -> 0
A33: =IF(Values_Entered,A32+1,"") ->  | J33: =SUM($H$14:$H33) -> 0
A34: =IF(Values_Entered,A33+1,"") ->  | J34: =SUM($H$14:$H34) -> 0
A35: =IF(Values_Entered,A34+1,"") ->  | J35: =SUM($H$14:$H35) -> 0
A36: =IF(Values_Entered,A35+1,"") ->  | J36: =SUM($H$14:$H36) -> 0
A37: =IF(Values_Entered,A36+1,"") ->  | J37: =SUM($H$14:$H37) -> 0
A38: =IF(Values_Entered,A37+1,"") ->  | J38: =SUM($H$14:$H38) -> 0
A39: =IF(Values_Entered,A38+1,"") ->  | J39: =SUM($H$14:$H39) -> 0
A40: =IF(Values_Entered,A39+1,"") ->  | J40: =SUM($H$14:$H40) -> 0
A41: =IF(Values_Entered,A40+1,"") ->  | J41: =SUM($H$14:$H41) -> 0
A42: =IF(Values_Entered,A41+1,"") ->  | J42: =SUM($H$14:$H42) -> 0
A43: =IF(Values_Entered,A42+1,"") ->  | J43: =SUM($H$14:$H43) -> 0
A44: =IF(Values_Entered,A43+1,"") ->  | J44: =SUM($H$14:$H44) -> 0
A45: =IF(Values_Entered,A44+1,"") ->  | J45: =SUM($H$14:$H45) -> 0
A46: =IF(Values_Entered,A45+1,"") ->  | J46: =SUM($H$14:$H46) -> 0
A47: =IF(Values_Entered,A46+1,"") ->  | J47: =SUM($H$14:$H47) -> 0
A48: =IF(Values_Entered,A47+1,"") ->  | J48: =SUM($H$14:$H48) -> 0
A49: =IF(Values_Entered,A48+1,"") ->  | J49: =SUM($H$14:$H49) -> 0
A50: =IF(Values_Entered,A49+1,"") ->  | J50: =SUM($H$14:$H50) -> 0
A51: =IF(Values_Entered,A50+1,"") ->  | J51: =SUM($H$14:$H51) -> 0
A52: =IF(Values_Entered,A51+1,"") ->  | J52: =SUM($H$14:$H52) -> 0
A53: =IF(Values_Entered,A52+1,"") ->  | J53: =SUM($H$14:$H53) -> 0
A54: =IF(Values_Entered,A53+1,"") ->  | J54: =SUM($H$14:$H54) -> 0
A55: =IF(Values_Entered,A54+1,"") ->  | J55: =SUM($H$14:$H55) -> 0
A56: =IF(Values_Entered,A55+1,"") ->  | J56: =SUM($H$14:$H56) -> 0
A57: =IF(Values_Entered,A56+1,"") ->  | J57: =SUM($H$14:$H57) -> 0
A58: =IF(Values_Entered,A57+1,"") ->  | J58: =SUM($H$14:$H58) -> 0
A59: =IF(Values_Entered,A58+1,"") ->  | J59: =SUM($H$14:$H59) -> 0
A60: =IF(Values_Entered,A59+1,"") ->  | J60: =SUM($H$14:$H60) -> 0
A61: =IF(Values_Entered,A60+1,"") ->  | J61: =SUM($H$14:$H61) -> 0
A62: =IF(Values_Entered,A61+1,"") ->  | J62: =SUM($H$14:$H62) -> 0
A63: =IF(Values_Entered,A62+1,"") ->  | J63: =SUM($H$14:$H63) -> 0
A64: =IF(Values_Entered,A63+1,"") ->  | J64: =SUM($H$14:$H64) -> 0
A65: =IF(Values_Entered,A64+1,"") ->  | J65: =SUM($H$14:$H65) -> 0
A66: =IF(Values_Entered,A65+1,"") ->  | J66: =SUM($H$14:$H66) -> 0
A67: =IF(Values_Entered,A66+1,"") ->  | J67: =SUM($H$14:$H67) -> 0
A68: =IF(Values_Entered,A67+1,"") ->  | J68: =SUM($H$14:$H68) -> 0
A69: =IF(Values_Entered,A68+1,"") ->  | J69: =SUM($H$14:$H69) -> 0
A70: =IF(Values_Entered,A69+1,"") ->  | J70: =SUM($H$14:$H70) -> 0
A71: =IF(Values_Entered,A70+1,"") ->  | J71: =SUM($H$14:$H71) -> 0
A72: =IF(Values_Entered,A71+1,"") ->  | J72: =SUM($H$14:$H72) -> 0
A73: =IF(Values_Entered,A72+1,"") ->  | J73: =SUM($H$14:$H73) -> 0
A74: =IF(Values_Entered,A73+1,"") ->  | J74: =SUM($H$14:$H74) -> 0
A75: =IF(Values_Entered,A74+1,"") ->  | J75: =SUM($H$14:$H75) -> 0
A76: =IF(Values_Entered,A75+1,"") ->  | J76: =SUM($H$14:$H76) -> 0
A77: =IF(Values_Entered,A76+1,"") ->  | J77: =SUM($H$14:$H77) -> 0
A78: =IF(Values_Entered,A77+1,"") ->  | B78: =IF(Pay_Num<>"",DATE(YEAR(Loan_Start),MONTH(Loan_Start)+(Pay_Num)*12/Num_Pmt_Per_Year,DAY(Loan_Start)),"") ->  | E78: =IF(AND(Pay_Num<>"",Sched_Pay+Scheduled_Extra_Payments<Beg_Bal),Scheduled_Extra_Payments,IF(AND(Pay_Num<>"",Beg_Bal-Sched_Pay>0),Beg_Bal-Sched_Pay,IF(Pay_Num<>"",0,""))) ->  | F78: =IF(AND(Pay_Num<>"",Sched_Pay+Extra_Pay<Beg_Bal),Sched_Pay+Extra_Pay,IF(Pay_Num<>"",Beg_Bal,"")) ->  | I78: =IF(AND(Pay_Num<>"",Sched_Pay+Extra_Pay<Beg_Bal),Beg_Bal-Princ,IF(Pay_Num<>"",0,"")) ->  | J78: =SUM($H$14:$H78) -> 0
A79: =IF(Values_Entered,A78+1,"") ->  | C79: =IF(Pay_Num<>"",I78,"") ->  | G79: =IF(Pay_Num<>"",Total_Pay-Int,"") ->  | H79: =IF(Pay_Num<>"",Beg_Bal*Interest_Rate/Num_Pmt_Per_Year,"") ->  | J79: =SUM($H$14:$H79) -> 0
A80: =IF(Values_Entered,A79+1,"") ->  | D80: =IF(Pay_Num<>"",Scheduled_Monthly_Payment,"") ->  | J80: =SUM($H$14:$H80) -> 0
A81: =IF(Values_Entered,A80+1,"") ->  | J81: =SUM($H$14:$H81) -> 0
A82: =IF(Values_Entered,A81+1,"") ->  | J82: =SUM($H$14:$H82) -> 0
A83: =IF(Values_Entered,A82+1,"") ->  | J83: =SUM($H$14:$H83) -> 0
A84: =IF(Values_Entered,A83+1,"") ->  | J84: =SUM($H$14:$H84) -> 0
A85: =IF(Values_Entered,A84+1,"") ->  | J85: =SUM($H$14:$H85) -> 0
A86: =IF(Values_Entered,A85+1,"") ->  | J86: =SUM($H$14:$H86) -> 0
A87: =IF(Values_Entered,A86+1,"") ->  | J87: =SUM($H$14:$H87) -> 0
A88: =IF(Values_Entered,A87+1,"") ->  | J88: =SUM($H$14:$H88) -> 0
A89: =IF(Values_Entered,A88+1,"") ->  | J89: =SUM($H$14:$H89) -> 0
A90: =IF(Values_Entered,A89+1,"") ->  | J90: =SUM($H$14:$H90) -> 0
A91: =IF(Values_Entered,A90+1,"") ->  | J91: =SUM($H$14:$H91) -> 0
A92: =IF(Values_Entered,A91+1,"") ->  | J92: =SUM($H$14:$H92) -> 0
A93: =IF(Values_Entered,A92+1,"") ->  | J93: =SUM($H$14:$H93) -> 0
A94: =IF(Values_Entered,A93+1,"") ->  | J94: =SUM($H$14:$H94) -> 0
A95: =IF(Values_Entered,A94+1,"") ->  | J95: =SUM($H$14:$H95) -> 0
A96: =IF(Values_Entered,A95+1,"") ->  | J96: =SUM($H$14:$H96) -> 0
A97: =IF(Values_Entered,A96+1,"") ->  | J97: =SUM($H$14:$H97) -> 0
A98: =IF(Values_Entered,A97+1,"") ->  | J98: =SUM($H$14:$H98) -> 0
A99: =IF(Values_Entered,A98+1,"") ->  | J99: =SUM($H$14:$H99) -> 0
A100: =IF(Values_Entered,A99+1,"") ->  | J100: =SUM($H$14:$H100) -> 0
A101: =IF(Values_Entered,A100+1,"") ->  | J101: =SUM($H$14:$H101) -> 0
A102: =IF(Values_Entered,A101+1,"") ->  | J102: =SUM($H$14:$H102) -> 0
A103: =IF(Values_Entered,A102+1,"") ->  | J103: =SUM($H$14:$H103) -> 0
A104: =IF(Values_Entered,A103+1,"") ->  | J104: =SUM($H$14:$H104) -> 0
A105: =IF(Values_Entered,A104+1,"") ->  | J105: =SUM($H$14:$H105) -> 0
A106: =IF(Values_Entered,A105+1,"") ->  | J106: =SUM($H$14:$H106) -> 0
A107: =IF(Values_Entered,A106+1,"") ->  | J107: =SUM($H$14:$H107) -> 0
A108: =IF(Values_Entered,A107+1,"") ->  | J108: =SUM($H$14:$H108) -> 0
A109: =IF(Values_Entered,A108+1,"") ->  | J109: =SUM($H$14:$H109) -> 0
A110: =IF(Values_Entered,A109+1,"") ->  | J110: =SUM($H$14:$H110) -> 0
A111: =IF(Values_Entered,A110+1,"") ->  | J111: =SUM($H$14:$H111) -> 0
A112: =IF(Values_Entered,A111+1,"") ->  | J112: =SUM($H$14:$H112) -> 0
A113: =IF(Values_Entered,A112+1,"") ->  | J113: =SUM($H$14:$H113) -> 0
A114: =IF(Values_Entered,A113+1,"") ->  | J114: =SUM($H$14:$H114) -> 0
A115: =IF(Values_Entered,A114+1,"") ->  | J115: =SUM($H$14:$H115) -> 0
A116: =IF(Values_Entered,A115+1,"") ->  | J116: =SUM($H$14:$H116) -> 0
A117: =IF(Values_Entered,A116+1,"") ->  | J117: =SUM($H$14:$H117) -> 0
A118: =IF(Values_Entered,A117+1,"") ->  | J118: =SUM($H$14:$H118) -> 0
A119: =IF(Values_Entered,A118+1,"") ->  | J119: =SUM($H$14:$H119) -> 0
A120: =IF(Values_Entered,A119+1,"") ->  | J120: =SUM($H$14:$H120) -> 0
A121: =IF(Values_Entered,A120+1,"") ->  | J121: =SUM($H$14:$H121) -> 0
A122: =IF(Values_Entered,A121+1,"") ->  | J122: =SUM($H$14:$H122) -> 0
A123: =IF(Values_Entered,A122+1,"") ->  | J123: =SUM($H$14:$H123) -> 0
A124: =IF(Values_Entered,A123+1,"") ->  | J124: =SUM($H$14:$H124) -> 0
A125: =IF(Values_Entered,A124+1,"") ->  | J125: =SUM($H$14:$H125) -> 0
A126: =IF(Values_Entered,A125+1,"") ->  | J126: =SUM($H$14:$H126) -> 0
A127: =IF(Values_Entered,A126+1,"") ->  | J127: =SUM($H$14:$H127) -> 0
A128: =IF(Values_Entered,A127+1,"") ->  | J128: =SUM($H$14:$H128) -> 0
A129: =IF(Values_Entered,A128+1,"") ->  | J129: =SUM($H$14:$H129) -> 0
A130: =IF(Values_Entered,A129+1,"") ->  | J130: =SUM($H$14:$H130) -> 0
A131: =IF(Values_Entered,A130+1,"") ->  | J131: =SUM($H$14:$H131) -> 0
A132: =IF(Values_Entered,A131+1,"") ->  | J132: =SUM($H$14:$H132) -> 0
A133: =IF(Values_Entered,A132+1,"") ->  | J133: =SUM($H$14:$H133) -> 0
A134: =IF(Values_Entered,A133+1,"") ->  | J134: =SUM($H$14:$H134) -> 0
A135: =IF(Values_Entered,A134+1,"") ->  | J135: =SUM($H$14:$H135) -> 0
A136: =IF(Values_Entered,A135+1,"") ->  | J136: =SUM($H$14:$H136) -> 0
A137: =IF(Values_Entered,A136+1,"") ->  | J137: =SUM($H$14:$H137) -> 0
A138: =IF(Values_Entered,A137+1,"") ->  | J138: =SUM($H$14:$H138) -> 0
A139: =IF(Values_Entered,A138+1,"") ->  | J139: =SUM($H$14:$H139) -> 0
A140: =IF(Values_Entered,A139+1,"") ->  | J140: =SUM($H$14:$H140) -> 0
A141: =IF(Values_Entered,A140+1,"") ->  | J141: =SUM($H$14:$H141) -> 0
A142: =IF(Values_Entered,A141+1,"") ->  | B142: =IF(Pay_Num<>"",DATE(YEAR(Loan_Start),MONTH(Loan_Start)+(Pay_Num)*12/Num_Pmt_Per_Year,DAY(Loan_Start)),"") ->  | E142: =IF(AND(Pay_Num<>"",Sched_Pay+Scheduled_Extra_Payments<Beg_Bal),Scheduled_Extra_Payments,IF(AND(Pay_Num<>"",Beg_Bal-Sched_Pay>0),Beg_Bal-Sched_Pay,IF(Pay_Num<>"",0,""))) ->  | F142: =IF(AND(Pay_Num<>"",Sched_Pay+Extra_Pay<Beg_Bal),Sched_Pay+Extra_Pay,IF(Pay_Num<>"",Beg_Bal,"")) ->  | I142: =IF(AND(Pay_Num<>"",Sched_Pay+Extra_Pay<Beg_Bal),Beg_Bal-Princ,IF(Pay_Num<>"",0,"")) ->  | J142: =SUM($H$14:$H142) -> 0
A143: =IF(Values_Entered,A142+1,"") ->  | C143: =IF(Pay_Num<>"",I142,"") ->  | G143: =IF(Pay_Num<>"",Total_Pay-Int,"") ->  | H143: =IF(Pay_Num<>"",Beg_Bal*Interest_Rate/Num_Pmt_Per_Year,"") ->  | J143: =SUM($H$14:$H143) -> 0
A144: =IF(Values_Entered,A143+1,"") ->  | D144: =IF(Pay_Num<>"",Scheduled_Monthly_Payment,"") ->  | J144: =SUM($H$14:$H144) -> 0
A145: =IF(Values_Entered,A144+1,"") ->  | J145: =SUM($H$14:$H145) -> 0
A146: =IF(Values_Entered,A145+1,"") ->  | J146: =SUM($H$14:$H146) -> 0
A147: =IF(Values_Entered,A146+1,"") ->  | J147: =SUM($H$14:$H147) -> 0
A148: =IF(Values_Entered,A147+1,"") ->  | J148: =SUM($H$14:$H148) -> 0
A149: =IF(Values_Entered,A148+1,"") ->  | J149: =SUM($H$14:$H149) -> 0
A150: =IF(Values_Entered,A149+1,"") ->  | J150: =SUM($H$14:$H150) -> 0
A151: =IF(Values_Entered,A150+1,"") ->  | J151: =SUM($H$14:$H151) -> 0
A152: =IF(Values_Entered,A151+1,"") ->  | J152: =SUM($H$14:$H152) -> 0
A153: =IF(Values_Entered,A152+1,"") ->  | J153: =SUM($H$14:$H153) -> 0
A154: =IF(Values_Entered,A153+1,"") ->  | J154: =SUM($H$14:$H154) -> 0
A155: =IF(Values_Entered,A154+1,"") ->  | J155: =SUM($H$14:$H155) -> 0
A156: =IF(Values_Entered,A155+1,"") ->  | J156: =SUM($H$14:$H156) -> 0
A157: =IF(Values_Entered,A156+1,"") ->  | J157: =SUM($H$14:$H157) -> 0
A158: =IF(Values_Entered,A157+1,"") ->  | J158: =SUM($H$14:$H158) -> 0
A159: =IF(Values_Entered,A158+1,"") ->  | J159: =SUM($H$14:$H159) -> 0
A160: =IF(Values_Entered,A159+1,"") ->  | J160: =SUM($H$14:$H160) -> 0
A161: =IF(Values_Entered,A160+1,"") ->  | J161: =SUM($H$14:$H161) -> 0
A162: =IF(Values_Entered,A161+1,"") ->  | J162: =SUM($H$14:$H162) -> 0
A163: =IF(Values_Entered,A162+1,"") ->  | J163: =SUM($H$14:$H163) -> 0
A164: =IF(Values_Entered,A163+1,"") ->  | J164: =SUM($H$14:$H164) -> 0
A165: =IF(Values_Entered,A164+1,"") ->  | J165: =SUM($H$14:$H165) -> 0
A166: =IF(Values_Entered,A165+1,"") ->  | J166: =SUM($H$14:$H166) -> 0
A167: =IF(Values_Entered,A166+1,"") ->  | J167: =SUM($H$14:$H167) -> 0
A168: =IF(Values_Entered,A167+1,"") ->  | J168: =SUM($H$14:$H168) -> 0
A169: =IF(Values_Entered,A168+1,"") ->  | J169: =SUM($H$14:$H169) -> 0
A170: =IF(Values_Entered,A169+1,"") ->  | J170: =SUM($H$14:$H170) -> 0
A171: =IF(Values_Entered,A170+1,"") ->  | J171: =SUM($H$14:$H171) -> 0
A172: =IF(Values_Entered,A171+1,"") ->  | J172: =SUM($H$14:$H172) -> 0
A173: =IF(Values_Entered,A172+1,"") ->  | J173: =SUM($H$14:$H173) -> 0
A174: =IF(Values_Entered,A173+1,"") ->  | J174: =SUM($H$14:$H174) -> 0
A175: =IF(Values_Entered,A174+1,"") ->  | J175: =SUM($H$14:$H175) -> 0
A176: =IF(Values_Entered,A175+1,"") ->  | J176: =SUM($H$14:$H176) -> 0
A177: =IF(Values_Entered,A176+1,"") ->  | J177: =SUM($H$14:$H177) -> 0
A178: =IF(Values_Entered,A177+1,"") ->  | J178: =SUM($H$14:$H178) -> 0
A179: =IF(Values_Entered,A178+1,"") ->  | J179: =SUM($H$14:$H179) -> 0
A180: =IF(Values_Entered,A179+1,"") ->  | J180: =SUM($H$14:$H180) -> 0
A181: =IF(Values_Entered,A180+1,"") ->  | J181: =SUM($H$14:$H181) -> 0
A182: =IF(Values_Entered,A181+1,"") ->  | J182: =SUM($H$14:$H182) -> 0
A183: =IF(Values_Entered,A182+1,"") ->  | J183: =SUM($H$14:$H183) -> 0
A184: =IF(Values_Entered,A183+1,"") ->  | J184: =SUM($H$14:$H184) -> 0
A185: =IF(Values_Entered,A184+1,"") ->  | J185: =SUM($H$14:$H185) -> 0
A186: =IF(Values_Entered,A185+1,"") ->  | J186: =SUM($H$14:$H186) -> 0
A187: =IF(Values_Entered,A186+1,"") ->  | J187: =SUM($H$14:$H187) -> 0
A188: =IF(Values_Entered,A187+1,"") ->  | J188: =SUM($H$14:$H188) -> 0
A189: =IF(Values_Entered,A188+1,"") ->  | J189: =SUM($H$14:$H189) -> 0
A190: =IF(Values_Entered,A189+1,"") ->  | J190: =SUM($H$14:$H190) -> 0
A191: =IF(Values_Entered,A190+1,"") ->  | J191: =SUM($H$14:$H191) -> 0
A192: =IF(Values_Entered,A191+1,"") ->  | J192: =SUM($H$14:$H192) -> 0
A193: =IF(Values_Entered,A192+1,"") ->  | J193: =SUM($H$14:$H193) -> 0
A194: =IF(Values_Entered,A193+1,"") ->  | J194: =SUM($H$14:$H194) -> 0
A195: =IF(Values_Entered,A194+1,"") ->  | J195: =SUM($H$14:$H195) -> 0
A196: =IF(Values_Entered,A195+1,"") ->  | J196: =SUM($H$14:$H196) -> 0
A197: =IF(Values_Entered,A196+1,"") ->  | J197: =SUM($H$14:$H197) -> 0
A198: =IF(Values_Entered,A197+1,"") ->  | J198: =SUM($H$14:$H198) -> 0
A199: =IF(Values_Entered,A198+1,"") ->  | J199: =SUM($H$14:$H199) -> 0
A200: =IF(Values_Entered,A199+1,"") ->  | J200: =SUM($H$14:$H200) -> 0
A201: =IF(Values_Entered,A200+1,"") ->  | J201: =SUM($H$14:$H201) -> 0
A202: =IF(Values_Entered,A201+1,"") ->  | J202: =SUM($H$14:$H202) -> 0
A203: =IF(Values_Entered,A202+1,"") ->  | J203: =SUM($H$14:$H203) -> 0
... 170 more rows

Sheet Loan Repayment Diesel (hidden)
A1: Loan Repayment: | F1: =Entradas!D60 -> Sistema de riego conectado a la red eléctrica
A2: Bank: | B2: =Entradas!E119 -> 0
B3: Enter Values | F3: Loan Summary
C4: Loan Amount | D4: =Entradas!E116 -> 0 | G4: Scheduled Payment | H4: =IF(Values_Entered,-PMT(Interest_Rate/Num_Pmt_Per_Year,Loan_Years*Num_Pmt_Per_Year,Loan_Amount),"0") -> 0
C5: Annual Interest Rate | D5: =Entradas!E117 -> 0 | G5: Scheduled Number of Payments | H5: =IF(Values_Entered,Loan_Years*Num_Pmt_Per_Year,"") -> 
C6: Loan Period in Years | D6: =Entradas!E118 -> 0 | G6: Actual Number of Payments | H6: =IF(Values_Entered,Number_of_Payments,"") -> 
C7: Number of Payments Per Year | D7: 1 | G7: Total Early Payments | H7: =IF(Values_Entered,SUMIF(Beg_Bal,">0",Extra_Pay),"") -> 
C8: Start Date of Loan | D8: 2017-01-01 | G8: Total Interest | H8: =IF(Values_Entered,SUMIF(Beg_Bal,">0",Int),"") -> 
C9: Optional Extra Payments | D9: 0
A12: PmtNo. | B12: Payment Date | C12: Beginning Balance | D12: Scheduled Payment | E12: Extra Payment | F12: Total Payment | G12: Principal | H12: Interest | I12: Ending Balance | J12: Cumulative Interest
A14: =IF(Values_Entered,1,"") ->  | B14: =IF(Pay_Num<>"",DATE(YEAR(Loan_Start),MONTH(Loan_Start)+(Pay_Num)*12/Num_Pmt_Per_Year,DAY(Loan_Start)),"") ->  | C14: =IF(Values_Entered,Loan_Amount,"") ->  | D14: =IF(Pay_Num<>"",Scheduled_Monthly_Payment,"") ->  | E14: =IF(AND(Pay_Num<>"",Sched_Pay+Scheduled_Extra_Payments<Beg_Bal),Scheduled_Extra_Payments,IF(AND(Pay_Num<>"",Beg_Bal-Sched_Pay>0),Beg_Bal-Sched_Pay,IF(Pay_Num<>"",0,""))) ->  | F14: =IF(AND(Pay_Num<>"",Sched_Pay+Extra_Pay<Beg_Bal),Sched_Pay+Extra_Pay,IF(Pay_Num<>"",Beg_Bal,"")) ->  | G14: =IF(Pay_Num<>"",Total_Pay-Int,"") ->  | H14: =IF(Pay_Num<>"",Beg_Bal*(Interest_Rate/Num_Pmt_Per_Year),"") ->  | I14: =IF(AND(Pay_Num<>"",Sched_Pay+Extra_Pay<Beg_Bal),Beg_Bal-Princ,IF(Pay_Num<>"",0,"")) ->  | J14: =SUM($H$14:$H14) -> 0
A15: =IF(Values_Entered,A14+1,"") ->  | C15: =IF(Pay_Num<>"",I14,"") ->  | D15: =IF(Pay_Num<>"",Scheduled_Monthly_Payment,"") ->  | G15: =IF(Pay_Num<>"",Total_Pay-Int,"") ->  | H15: =IF(Pay_Num<>"",Beg_Bal*Interest_Rate/Num_Pmt_Per_Year,"") ->  | J15: =SUM($H$14:$H15) -> 0
A16: =IF(Values_Entered,A15+1,"") ->  | D16: =IF(Pay_Num<>"",Scheduled_Monthly_Payment,"") ->  | J16: =SUM($H$14:$H16) -> 0
A17: =IF(Values_Entered,A16+1,"") ->  | D17: =IF(Pay_Num<>"",Scheduled_Monthly_Payment,"") ->  | J17: =SUM($H$14:$H17) -> 0
A18: =IF(Values_Entered,A17+1,"") ->  | J18: =SUM($H$14:$H18) -> 0
A19: =IF(Values_Entered,A18+1,"") ->  | J19: =SUM($H$14:$H19) -> 0
A20: =IF(Values_Entered,A19+1,"") ->  | J20: =SUM($H$14:$H20) -> 0
A21: =IF(Values_Entered,A20+1,"") ->  | J21: =SUM($H$14:$H21) -> 0
A22: =IF(Values_Entered,A21+1,"") ->  | J22: =SUM($H$14:$H22) -> 0
A23: =IF(Values_Entered,A22+1,"") ->  | J23: =SUM($H$14:$H23) -> 0
A24: =IF(Values_Entered,A23+1,"") ->  | J24: =SUM($H$14:$H24) -> 0
A25: =IF(Values_Entered,A24+1,"") ->  | J25: =SUM($H$14:$H25) -> 0
A26: =IF(Values_Entered,A25+1,"") ->  | J26: =SUM($H$14:$H26) -> 0
A27: =IF(Values_Entered,A26+1,"") ->  | J27: =SUM($H$14:$H27) -> 0
A28: =IF(Values_Entered,A27+1,"") ->  | J28: =SUM($H$14:$H28) -> 0
A29: =IF(Values_Entered,A28+1,"") ->  | J29: =SUM($H$14:$H29) -> 0
A30: =IF(Values_Entered,A29+1,"") ->  | J30: =SUM($H$14:$H30) -> 0
A31: =IF(Values_Entered,A30+1,"") ->  | J31: =SUM($H$14:$H31) -> 0
A32: =IF(Values_Entered,A31+1,"") ->  | J32: =SUM($H$14:$H32) -> 0
A33: =IF(Values_Entered,A32+1,"") ->  | J33: =SUM($H$14:$H33) -> 0
A34: =IF(Values_Entered,A33+1,"") ->  | J34: =SUM($H$14:$H34) -> 0
A35: =IF(Values_Entered,A34+1,"") ->  | J35: =SUM($H$14:$H35) -> 0
A36: =IF(Values_Entered,A35+1,"") ->  | J36: =SUM($H$14:$H36) -> 0
A37: =IF(Values_Entered,A36+1,"") ->  | J37: =SUM($H$14:$H37) -> 0
A38: =IF(Values_Entered,A37+1,"") ->  | J38: =SUM($H$14:$H38) -> 0
A39: =IF(Values_Entered,A38+1,"") ->  | J39: =SUM($H$14:$H39) -> 0
A40: =IF(Values_Entered,A39+1,"") ->  | J40: =SUM($H$14:$H40) -> 0
A41: =IF(Values_Entered,A40+1,"") ->  | J41: =SUM($H$14:$H41) -> 0
A42: =IF(Values_Entered,A41+1,"") ->  | J42: =SUM($H$14:$H42) -> 0
A43: =IF(Values_Entered,A42+1,"") ->  | J43: =SUM($H$14:$H43) -> 0
A44: =IF(Values_Entered,A43+1,"") ->  | J44: =SUM($H$14:$H44) -> 0
A45: =IF(Values_Entered,A44+1,"") ->  | J45: =SUM($H$14:$H45) -> 0
A46: =IF(Values_Entered,A45+1,"") ->  | J46: =SUM($H$14:$H46) -> 0
A47: =IF(Values_Entered,A46+1,"") ->  | J47: =SUM($H$14:$H47) -> 0
A48: =IF(Values_Entered,A47+1,"") ->  | J48: =SUM($H$14:$H48) -> 0
A49: =IF(Values_Entered,A48+1,"") ->  | J49: =SUM($H$14:$H49) -> 0
A50: =IF(Values_Entered,A49+1,"") ->  | J50: =SUM($H$14:$H50) -> 0
A51: =IF(Values_Entered,A50+1,"") ->  | J51: =SUM($H$14:$H51) -> 0
A52: =IF(Values_Entered,A51+1,"") ->  | J52: =SUM($H$14:$H52) -> 0
A53: =IF(Values_Entered,A52+1,"") ->  | J53: =SUM($H$14:$H53) -> 0
A54: =IF(Values_Entered,A53+1,"") ->  | J54: =SUM($H$14:$H54) -> 0
A55: =IF(Values_Entered,A54+1,"") ->  | J55: =SUM($H$14:$H55) -> 0
A56: =IF(Values_Entered,A55+1,"") ->  | J56: =SUM($H$14:$H56) -> 0
A57: =IF(Values_Entered,A56+1,"") ->  | J57: =SUM($H$14:$H57) -> 0
A58: =IF(Values_Entered,A57+1,"") ->  | J58: =SUM($H$14:$H58) -> 0
A59: =IF(Values_Entered,A58+1,"") ->  | J59: =SUM($H$14:$H59) -> 0
A60: =IF(Values_Entered,A59+1,"") ->  | J60: =SUM($H$14:$H60) -> 0
A61: =IF(Values_Entered,A60+1,"") ->  | J61: =SUM($H$14:$H61) -> 0
A62: =IF(Values_Entered,A61+1,"") ->  | J62: =SUM($H$14:$H62) -> 0
A63: =IF(Values_Entered,A62+1,"") ->  | J63: =SUM($H$14:$H63) -> 0
A64: =IF(Values_Entered,A63+1,"") ->  | J64: =SUM($H$14:$H64) -> 0
A65: =IF(Values_Entered,A64+1,"") ->  | J65: =SUM($H$14:$H65) -> 0
A66: =IF(Values_Entered,A65+1,"") ->  | J66: =SUM($H$14:$H66) -> 0
A67: =IF(Values_Entered,A66+1,"") ->  | J67: =SUM($H$14:$H67) -> 0
A68: =IF(Values_Entered,A67+1,"") ->  | J68: =SUM($H$14:$H68) -> 0
A69: =IF(Values_Entered,A68+1,"") ->  | J69: =SUM($H$14:$H69) -> 0
A70: =IF(Values_Entered,A69+1,"") ->  | J70: =SUM($H$14:$H70) -> 0
A71: =IF(Values_Entered,A70+1,"") ->  | J71: =SUM($H$14:$H71) -> 0
A72: =IF(Values_Entered,A71+1,"") ->  | J72: =SUM($H$14:$H72) -> 0
A73: =IF(Values_Entered,A72+1,"") ->  | J73: =SUM($H$14:$H73) -> 0
A74: =IF(Values_Entered,A73+1,"") ->  | J74: =SUM($H$14:$H74) -> 0
A75: =IF(Values_Entered,A74+1,"") ->  | J75: =SUM($H$14:$H75) -> 0
A76: =IF(Values_Entered,A75+1,"") ->  | J76: =SUM($H$14:$H76) -> 0
A77: =IF(Values_Entered,A76+1,"") ->  | J77: =SUM($H$14:$H77) -> 0
A78: =IF(Values_Entered,A77+1,"") ->  | B78: =IF(Pay_Num<>"",DATE(YEAR(Loan_Start),MONTH(Loan_Start)+(Pay_Num)*12/Num_Pmt_Per_Year,DAY(Loan_Start)),"") ->  | E78: =IF(AND(Pay_Num<>"",Sched_Pay+Scheduled_Extra_Payments<Beg_Bal),Scheduled_Extra_Payments,IF(AND(Pay_Num<>"",Beg_Bal-Sched_Pay>0),Beg_Bal-Sched_Pay,IF(Pay_Num<>"",0,""))) ->  | F78: =IF(AND(Pay_Num<>"",Sched_Pay+Extra_Pay<Beg_Bal),Sched_Pay+Extra_Pay,IF(Pay_Num<>"",Beg_Bal,"")) ->  | I78: =IF(AND(Pay_Num<>"",Sched_Pay+Extra_Pay<Beg_Bal),Beg_Bal-Princ,IF(Pay_Num<>"",0,"")) ->  | J78: =SUM($H$14:$H78) -> 0
A79: =IF(Values_Entered,A78+1,"") ->  | C79: =IF(Pay_Num<>"",I78,"") ->  | G79: =IF(Pay_Num<>"",Total_Pay-Int,"") ->  | H79: =IF(Pay_Num<>"",Beg_Bal*Interest_Rate/Num_Pmt_Per_Year,"") ->  | J79: =SUM($H$14:$H79) -> 0
A80: =IF(Values_Entered,A79+1,"") ->  | D80: =IF(Pay_Num<>"",Scheduled_Monthly_Payment,"") ->  | J80: =SUM($H$14:$H80) -> 0
A81: =IF(Values_Entered,A80+1,"") ->  | J81: =SUM($H$14:$H81) -> 0
A82: =IF(Values_Entered,A81+1,"") ->  | J82: =SUM($H$14:$H82) -> 0
A83: =IF(Values_Entered,A82+1,"") ->  | J83: =SUM($H$14:$H83) -> 0
A84: =IF(Values_Entered,A83+1,"") ->  | J84: =SUM($H$14:$H84) -> 0
A85: =IF(Values_Entered,A84+1,"") ->  | J85: =SUM($H$14:$H85) -> 0
A86: =IF(Values_Entered,A85+1,"") ->  | J86: =SUM($H$14:$H86) -> 0
A87: =IF(Values_Entered,A86+1,"") ->  | J87: =SUM($H$14:$H87) -> 0
A88: =IF(Values_Entered,A87+1,"") ->  | J88: =SUM($H$14:$H88) -> 0
A89: =IF(Values_Entered,A88+1,"") ->  | J89: =SUM($H$14:$H89) -> 0
A90: =IF(Values_Entered,A89+1,"") ->  | J90: =SUM($H$14:$H90) -> 0
A91: =IF(Values_Entered,A90+1,"") ->  | J91: =SUM($H$14:$H91) -> 0
A92: =IF(Values_Entered,A91+1,"") ->  | J92: =SUM($H$14:$H92) -> 0
A93: =IF(Values_Entered,A92+1,"") ->  | J93: =SUM($H$14:$H93) -> 0
A94: =IF(Values_Entered,A93+1,"") ->  | J94: =SUM($H$14:$H94) -> 0
A95: =IF(Values_Entered,A94+1,"") ->  | J95: =SUM($H$14:$H95) -> 0
A96: =IF(Values_Entered,A95+1,"") ->  | J96: =SUM($H$14:$H96) -> 0
A97: =IF(Values_Entered,A96+1,"") ->  | J97: =SUM($H$14:$H97) -> 0
A98: =IF(Values_Entered,A97+1,"") ->  | J98: =SUM($H$14:$H98) -> 0
A99: =IF(Values_Entered,A98+1,"") ->  | J99: =SUM($H$14:$H99) -> 0
A100: =IF(Values_Entered,A99+1,"") ->  | J100: =SUM($H$14:$H100) -> 0
A101: =IF(Values_Entered,A100+1,"") ->  | J101: =SUM($H$14:$H101) -> 0
A102: =IF(Values_Entered,A101+1,"") ->  | J102: =SUM($H$14:$H102) -> 0
A103: =IF(Values_Entered,A102+1,"") ->  | J103: =SUM($H$14:$H103) -> 0
A104: =IF(Values_Entered,A103+1,"") ->  | J104: =SUM($H$14:$H104) -> 0
A105: =IF(Values_Entered,A104+1,"") ->  | J105: =SUM($H$14:$H105) -> 0
A106: =IF(Values_Entered,A105+1,"") ->  | J106: =SUM($H$14:$H106) -> 0
A107: =IF(Values_Entered,A106+1,"") ->  | J107: =SUM($H$14:$H107) -> 0
A108: =IF(Values_Entered,A107+1,"") ->  | J108: =SUM($H$14:$H108) -> 0
A109: =IF(Values_Entered,A108+1,"") ->  | J109: =SUM($H$14:$H109) -> 0
A110: =IF(Values_Entered,A109+1,"") ->  | J110: =SUM($H$14:$H110) -> 0
A111: =IF(Values_Entered,A110+1,"") ->  | J111: =SUM($H$14:$H111) -> 0
A112: =IF(Values_Entered,A111+1,"") ->  | J112: =SUM($H$14:$H112) -> 0
A113: =IF(Values_Entered,A112+1,"") ->  | J113: =SUM($H$14:$H113) -> 0
A114: =IF(Values_Entered,A113+1,"") ->  | J114: =SUM($H$14:$H114) -> 0
A115: =IF(Values_Entered,A114+1,"") ->  | J115: =SUM($H$14:$H115) -> 0
A116: =IF(Values_Entered,A115+1,"") ->  | J116: =SUM($H$14:$H116) -> 0
A117: =IF(Values_Entered,A116+1,"") ->  | J117: =SUM($H$14:$H117) -> 0
A118: =IF(Values_Entered,A117+1,"") ->  | J118: =SUM($H$14:$H118) -> 0
A119: =IF(Values_Entered,A118+1,"") ->  | J119: =SUM($H$14:$H119) -> 0
A120: =IF(Values_Entered,A119+1,"") ->  | J120: =SUM($H$14:$H120) -> 0
A121: =IF(Values_Entered,A120+1,"") ->  | J121: =SUM($H$14:$H121) -> 0
A122: =IF(Values_Entered,A121+1,"") ->  | J122: =SUM($H$14:$H122) -> 0
A123: =IF(Values_Entered,A122+1,"") ->  | J123: =SUM($H$14:$H123) -> 0
A124: =IF(Values_Entered,A123+1,"") ->  | J124: =SUM($H$14:$H124) -> 0
A125: =IF(Values_Entered,A124+1,"") ->  | J125: =SUM($H$14:$H125) -> 0
A126: =IF(Values_Entered,A125+1,"") ->  | J126: =SUM($H$14:$H126) -> 0
A127: =IF(Values_Entered,A126+1,"") ->  | J127: =SUM($H$14:$H127) -> 0
A128: =IF(Values_Entered,A127+1,"") ->  | J128: =SUM($H$14:$H128) -> 0
A129: =IF(Values_Entered,A128+1,"") ->  | J129: =SUM($H$14:$H129) -> 0
A130: =IF(Values_Entered,A129+1,"") ->  | J130: =SUM($H$14:$H130) -> 0
A131: =IF(Values_Entered,A130+1,"") ->  | J131: =SUM($H$14:$H131) -> 0
A132: =IF(Values_Entered,A131+1,"") ->  | J132: =SUM($H$14:$H132) -> 0
A133: =IF(Values_Entered,A132+1,"") ->  | J133: =SUM($H$14:$H133) -> 0
A134: =IF(Values_Entered,A133+1,"") ->  | J134: =SUM($H$14:$H134) -> 0
A135: =IF(Values_Entered,A134+1,"") ->  | J135: =SUM($H$14:$H135) -> 0
A136: =IF(Values_Entered,A135+1,"") ->  | J136: =SUM($H$14:$H136) -> 0
A137: =IF(Values_Entered,A136+1,"") ->  | J137: =SUM($H$14:$H137) -> 0
A138: =IF(Values_Entered,A137+1,"") ->  | J138: =SUM($H$14:$H138) -> 0
A139: =IF(Values_Entered,A138+1,"") ->  | J139: =SUM($H$14:$H139) -> 0
A140: =IF(Values_Entered,A139+1,"") ->  | J140: =SUM($H$14:$H140) -> 0
A141: =IF(Values_Entered,A140+1,"") ->  | J141: =SUM($H$14:$H141) -> 0
A142: =IF(Values_Entered,A141+1,"") ->  | B142: =IF(Pay_Num<>"",DATE(YEAR(Loan_Start),MONTH(Loan_Start)+(Pay_Num)*12/Num_Pmt_Per_Year,DAY(Loan_Start)),"") ->  | E142: =IF(AND(Pay_Num<>"",Sched_Pay+Scheduled_Extra_Payments<Beg_Bal),Scheduled_Extra_Payments,IF(AND(Pay_Num<>"",Beg_Bal-Sched_Pay>0),Beg_Bal-Sched_Pay,IF(Pay_Num<>"",0,""))) ->  | F142: =IF(AND(Pay_Num<>"",Sched_Pay+Extra_Pay<Beg_Bal),Sched_Pay+Extra_Pay,IF(Pay_Num<>"",Beg_Bal,"")) ->  | I142: =IF(AND(Pay_Num<>"",Sched_Pay+Extra_Pay<Beg_Bal),Beg_Bal-Princ,IF(Pay_Num<>"",0,"")) ->  | J142: =SUM($H$14:$H142) -> 0
A143: =IF(Values_Entered,A142+1,"") ->  | C143: =IF(Pay_Num<>"",I142,"") ->  | G143: =IF(Pay_Num<>"",Total_Pay-Int,"") ->  | H143: =IF(Pay_Num<>"",Beg_Bal*Interest_Rate/Num_Pmt_Per_Year,"") ->  | J143: =SUM($H$14:$H143) -> 0
A144: =IF(Values_Entered,A143+1,"") ->  | D144: =IF(Pay_Num<>"",Scheduled_Monthly_Payment,"") ->  | J144: =SUM($H$14:$H144) -> 0
A145: =IF(Values_Entered,A144+1,"") ->  | J145: =SUM($H$14:$H145) -> 0
A146: =IF(Values_Entered,A145+1,"") ->  | J146: =SUM($H$14:$H146) -> 0
A147: =IF(Values_Entered,A146+1,"") ->  | J147: =SUM($H$14:$H147) -> 0
A148: =IF(Values_Entered,A147+1,"") ->  | J148: =SUM($H$14:$H148) -> 0
A149: =IF(Values_Entered,A148+1,"") ->  | J149: =SUM($H$14:$H149) -> 0
A150: =IF(Values_Entered,A149+1,"") ->  | J150: =SUM($H$14:$H150) -> 0
A151: =IF(Values_Entered,A150+1,"") ->  | J151: =SUM($H$14:$H151) -> 0
A152: =IF(Values_Entered,A151+1,"") ->  | J152: =SUM($H$14:$H152) -> 0
A153: =IF(Values_Entered,A152+1,"") ->  | J153: =SUM($H$14:$H153) -> 0
A154: =IF(Values_Entered,A153+1,"") ->  | J154: =SUM($H$14:$H154) -> 0
A155: =IF(Values_Entered,A154+1,"") ->  | J155: =SUM($H$14:$H155) -> 0
A156: =IF(Values_Entered,A155+1,"") ->  | J156: =SUM($H$14:$H156) -> 0
A157: =IF(Values_Entered,A156+1,"") ->  | J157: =SUM($H$14:$H157) -> 0
A158: =IF(Values_Entered,A157+1,"") ->  | J158: =SUM($H$14:$H158) -> 0
A159: =IF(Values_Entered,A158+1,"") ->  | J159: =SUM($H$14:$H159) -> 0
A160: =IF(Values_Entered,A159+1,"") ->  | J160: =SUM($H$14:$H160) -> 0
A161: =IF(Values_Entered,A160+1,"") ->  | J161: =SUM($H$14:$H161) -> 0
A162: =IF(Values_Entered,A161+1,"") ->  | J162: =SUM($H$14:$H162) -> 0
A163: =IF(Values_Entered,A162+1,"") ->  | J163: =SUM($H$14:$H163) -> 0
A164: =IF(Values_Entered,A163+1,"") ->  | J164: =SUM($H$14:$H164) -> 0
A165: =IF(Values_Entered,A164+1,"") ->  | J165: =SUM($H$14:$H165) -> 0
A166: =IF(Values_Entered,A165+1,"") ->  | J166: =SUM($H$14:$H166) -> 0
A167: =IF(Values_Entered,A166+1,"") ->  | J167: =SUM($H$14:$H167) -> 0
A168: =IF(Values_Entered,A167+1,"") ->  | J168: =SUM($H$14:$H168) -> 0
A169: =IF(Values_Entered,A168+1,"") ->  | J169: =SUM($H$14:$H169) -> 0
A170: =IF(Values_Entered,A169+1,"") ->  | J170: =SUM($H$14:$H170) -> 0
A171: =IF(Values_Entered,A170+1,"") ->  | J171: =SUM($H$14:$H171) -> 0
A172: =IF(Values_Entered,A171+1,"") ->  | J172: =SUM($H$14:$H172) -> 0
A173: =IF(Values_Entered,A172+1,"") ->  | J173: =SUM($H$14:$H173) -> 0
A174: =IF(Values_Entered,A173+1,"") ->  | J174: =SUM($H$14:$H174) -> 0
A175: =IF(Values_Entered,A174+1,"") ->  | J175: =SUM($H$14:$H175) -> 0
A176: =IF(Values_Entered,A175+1,"") ->  | J176: =SUM($H$14:$H176) -> 0
A177: =IF(Values_Entered,A176+1,"") ->  | J177: =SUM($H$14:$H177) -> 0
A178: =IF(Values_Entered,A177+1,"") ->  | J178: =SUM($H$14:$H178) -> 0
A179: =IF(Values_Entered,A178+1,"") ->  | J179: =SUM($H$14:$H179) -> 0
A180: =IF(Values_Entered,A179+1,"") ->  | J180: =SUM($H$14:$H180) -> 0
A181: =IF(Values_Entered,A180+1,"") ->  | J181: =SUM($H$14:$H181) -> 0
A182: =IF(Values_Entered,A181+1,"") ->  | J182: =SUM($H$14:$H182) -> 0
A183: =IF(Values_Entered,A182+1,"") ->  | J183: =SUM($H$14:$H183) -> 0
A184: =IF(Values_Entered,A183+1,"") ->  | J184: =SUM($H$14:$H184) -> 0
A185: =IF(Values_Entered,A184+1,"") ->  | J185: =SUM($H$14:$H185) -> 0
A186: =IF(Values_Entered,A185+1,"") ->  | J186: =SUM($H$14:$H186) -> 0
A187: =IF(Values_Entered,A186+1,"") ->  | J187: =SUM($H$14:$H187) -> 0
A188: =IF(Values_Entered,A187+1,"") ->  | J188: =SUM($H$14:$H188) -> 0
A189: =IF(Values_Entered,A188+1,"") ->  | J189: =SUM($H$14:$H189) -> 0
A190: =IF(Values_Entered,A189+1,"") ->  | J190: =SUM($H$14:$H190) -> 0
A191: =IF(Values_Entered,A190+1,"") ->  | J191: =SUM($H$14:$H191) -> 0
A192: =IF(Values_Entered,A191+1,"") ->  | J192: =SUM($H$14:$H192) -> 0
A193: =IF(Values_Entered,A192+1,"") ->  | J193: =SUM($H$14:$H193) -> 0
A194: =IF(Values_Entered,A193+1,"") ->  | J194: =SUM($H$14:$H194) -> 0
A195: =IF(Values_Entered,A194+1,"") ->  | J195: =SUM($H$14:$H195) -> 0
A196: =IF(Values_Entered,A195+1,"") ->  | J196: =SUM($H$14:$H196) -> 0
A197: =IF(Values_Entered,A196+1,"") ->  | J197: =SUM($H$14:$H197) -> 0
A198: =IF(Values_Entered,A197+1,"") ->  | J198: =SUM($H$14:$H198) -> 0
A199: =IF(Values_Entered,A198+1,"") ->  | J199: =SUM($H$14:$H199) -> 0
A200: =IF(Values_Entered,A199+1,"") ->  | J200: =SUM($H$14:$H200) -> 0
A201: =IF(Values_Entered,A200+1,"") ->  | J201: =SUM($H$14:$H201) -> 0
A202: =IF(Values_Entered,A201+1,"") ->  | J202: =SUM($H$14:$H202) -> 0
A203: =IF(Values_Entered,A202+1,"") ->  | J203: =SUM($H$14:$H203) -> 0
... 170 more rows
